Workbook

Sheet Instructions
B2: =CONCATENATE(dms_Sector," ",dms_Segment," ", "Network Service Provider") -> Electricity Distribution Network Service Provider
B3: =IF(dms_Model="Reset","Regulatory Proposal RIN Template","Annual Reporting RIN") -> Regulatory Proposal RIN Template
B4: =CONCATENATE("This template is to be used by ",INDEX(dms_TradingNameFull_List,MATCH(dms_TradingName,dms_TradingName_List))," to fulfil its reporting obligations to the AER.") -> This template is to be used by Endeavour Energy to fulfil its reporting obligations to the AER.
B5: INSTRUCTIONS
B6: GENERAL | C6: Complete the Business & other details worksheet before entering data or values in any other worksheets. The Business & other details worksheet is linked to other worksheets within the workbook and automatically generates certain column headings and conditional formatting.
B8: CONFIDENTIAL INFORMATION | C8: Please use the macro at the top of each worksheet to identify confidential information in the confidential workbook.
C9: -Do this by selecting the cell or cells that contain confidential information and then run the Mark selection as CONFIDENTIAL macro. This will format the cells a specific colour that is identified by the AER's database which in turn marks that information as confidential. -To reverse this, select the cell or cells and run the Return selection to NON-CONFIDENTIAL macro.
B11: RESPONSES | C11: Please return two (2) files to the AER: 1. A confidential version which must contain a complete set of all responses with confidential information marked using the Mark selection CONFIDENTIAL macro and which has been completed using the locked template file provided by the AER. 2. A public version with confidential information either removed completely or aggregated in some form together with writtten consent to disclose the public version of the response. Use the drop down box on the Business and other details worksheet to identify the file as either confidential ('consolidated') or public.
B13: AMENDMENTS | C13: If an NSP wishes to correct data previously submitted to the AER it should resubmit that data using the original completed submission as the starting point. Please make any necessary changes to the data. Data that is not being amended should be left unchanged. NSPs must identify the reason for the amendments in the Amendment Reason box on the Business and other details worksheet. NSPs may provide further details regarding any amendments in the Amendments worksheet. .
C14: NSP may use Amended Data macro to highlight cells that contain amended data. NB: if data is also CONFIDENTIAL, re-apply the Confidentiality macro after applying the Amended macro
C15: Please resubmit two (2) files - a confidential version and a public version of the amended submission to the AER
B17: UNITS OF MEASURE | C17: All amounts are to be unrounded and reported on a one for one basis: that is 1000 is to be entered as '1000'. Applicable units of measure may be identified in the table column headings or row descriptors.
B19: INPUT / NON-INPUT CELLS
D20: Yellow = Input cell (mandatory)
D21: Darker yellow = input cell (mandatory)
D22: Orange = input cell (if data available)
D23: Grey = Not applicable/No inputs required
D24: PLEASE DO NOT ENTER TEXT into cells that are to contain numbers (including 'numbers stored as text')
B27: NAVIGATION | C27: Many tables in the worksheets have been "grouped" to allow for easy navigation. To ungroup or group data use the outline symbols in the left margin (for Row groupings) or above the columns (for column groupings).

Sheet CONTENTS
C1: =IF(dms_MultiYear_ResponseFlag="Yes","REGULATORY REPORTING STATEMENT - HISTORICAL INFORMATION",INDEX(dms_Worksheet_List,MATCH(dms_Model,dms_Model_List))) -> REGULATORY REPORTING STATEMENT
C2: =INDEX(dms_TradingNameFull_List,MATCH(dms_TradingName,dms_TradingName_List)) -> Endeavour Energy
C3: =CONCATENATE("REGULATORY PERIOD FROM ", FRCP_y1," TO ",dms_MultiYear_FinalYear_Result) -> REGULATORY PERIOD FROM 2024-25 TO 2028-29
D7: CONTENTS
D9: TEMPLATE | E9: FINAL RIN OCTOBER 2022
D11: SUBMISSION | E11: Business & other details
D13: EXPENDITURE | E13: 2.1 Expenditure summary
E14: 2.2 Repex
E15: 2.3 Augex (b)
E16: 2.5 Connections
E17: 2.6 Non-network
E18: 2.10 Overheads
E19: 2.11 Labour
E20: 2.14 Forecast price changes
E21: 2.16 Opex Summary
E22: 2.17 Step Changes
D24: ECONOMIC BENCHMARKING | E24: 3.1 Revenue
E25: 3.2 Operating expenditure
E26: 3.3 Assets (RAB)
E27: 3.4 Operational data
E28: 3.5 Physical assets
E29: 3.6 Quality of service
E30: 3.7 Operating Environment
D32: ALTERNATIVE CONTROL | E32: 4.1 Public lighting
D34: NETWORK | E34: 5.4 MD & utilisation-Spatial
D36: SERVICE | E36: 6.2 Reliability & Cust serv
D38: OTHER | E38: 7.1 Policies and Procedures
E39: 7.2 Contingent projects
E40: 7.3 Obligations
E41: 7.4 Shared Assets
E42: 7.7 TSS-LRMC
E43: 7.8 Export Services

Sheet Business & other details
V1: =INDEX(dms_Worksheet_List,MATCH(dms_Model,dms_Model_List)) -> REGULATORY REPORTING STATEMENT
V2: =INDEX(dms_TradingNameFull_List,MATCH(dms_TradingName,dms_TradingName_List)) -> Endeavour Energy
V3: =CONCATENATE("REGULATORY PERIOD FROM ", FRCP_y1," TO ",dms_MultiYear_FinalYear_Result) -> REGULATORY PERIOD FROM 2024-25 TO 2028-29
V4: BUSINESS & OTHER DETAILS
V6: INSTRUCTIONS
V7: Complete the following business details regulatory template before entering data or values in any other regulatory template. This regulatory template is linked to other cells within the spreadsheet and automatically generates column headings and conditional formatting to distinguish business specific input and non-input cells.
Q9: SUBMISSION PARTICULARS INPUT SHEET
V12: ENTITY DETAILS
V14: Business Name
V16: Short name | AL16: Endeavour Energy
V17: ACN/ABN | AL17: =INDEX(dms_ABN_List,MATCH(dms_TradingName,dms_TradingName_List)) -> 11247365823
V21: Business Address | BQ21: Postal Address
V23: Address 1 | AL23: =INDEX(dms_Addr1_List,MATCH(dms_TradingName,dms_TradingName_List)) -> 51 Huntingwood Drive | BI23: Address 1 | BQ23: =INDEX(dms_PAddr1_List,MATCH(dms_TradingName,dms_TradingName_List)) -> PO Box 811
V24: Address 2 | AL24: =IF(ISBLANK(INDEX(dms_Addr2_List,MATCH(dms_TradingName,dms_TradingName_List))),"",(INDEX(dms_Addr2_List,MATCH(dms_TradingName,dms_TradingName_List)))) ->  | BI24: Address 2 | BQ24: =IF(ISBLANK(INDEX(dms_PAddr2_List,MATCH(dms_TradingName,dms_TradingName_List))),"",(INDEX(dms_PAddr2_List,MATCH(dms_TradingName,dms_TradingName_List)))) -> 
V25: Suburb | AL25: =INDEX(dms_Suburb_List,MATCH(dms_TradingName,dms_TradingName_List)) -> HUNTINGWOOD | BI25: Suburb | BQ25: =INDEX(dms_PSuburb_List,MATCH(dms_TradingName,dms_TradingName_List)) -> SEVEN HILLS
V26: State | AL26: =INDEX(dms_State_List,MATCH(dms_TradingName,dms_TradingName_List)) -> NSW | AV26: Post code | BI26: State | BQ26: =INDEX(dms_PState_List,MATCH(dms_TradingName,dms_TradingName_List)) -> NSW | CA26: Post code
BA28: `
V30: Contact Names
V32: Name | BI32: Name
V33: Phone | BI33: Phone
V34: Email | BI34: Email
Q39: REGULATORY CONTROL PERIODS
Z42: Forthcoming period | AL42: 2024-25 | AU42: =FRCP_y2 -> 2025-26 | BD42: =FRCP_y3 -> 2026-27 | BM42: =FRCP_y4 -> 2027-28 | BV42: =FRCP_y5 -> 2028-29
AL43: =FRCP_y6 -> 2029-30 | AU43: =FRCP_y7 -> 2030-31 | BD43: =FRCP_y8 -> 2031-32 | BM43: =FRCP_y9 -> 2032-33 | BV43: =FRCP_y10 -> 2033-34
AL44: =FRCP_y11 -> 2034-35 | AU44: =FRCP_y12 -> 2035-36 | BD44: =FRCP_y13 -> 2036-37 | BM44: =FRCP_y14 -> 2037-38 | BV44: =FRCP_y15 -> 2038-39
X46: RESETS | Z46: Current period | AL46: =CRCP_y1 -> 2019-20 | AU46: =CRCP_y2 -> 2020-21 | BD46: =CRCP_y3 -> 2021-22 | BM46: =CRCP_y4 -> 2022-23 | BV46: =CRCP_y5 -> 2023-24
AL47: =CRCP_y6 -> 2024-25 | AU47: =CRCP_y7 -> 2025-26 | BD47: =CRCP_y8 -> 2026-27 | BM47: =CRCP_y9 -> 2027-28 | BV47: =CRCP_y10 -> 2028-29
AL48: =CRCP_y11 -> 2029-30 | AU48: =CRCP_y12 -> 2030-31 | BD48: =CRCP_y13 -> 2031-32 | BM48: =CRCP_y14 -> 2032-33 | BV48: =CRCP_y15 -> 2033-34
Z50: Previous period | AL50: =PRCP_y1 -> 2014-15 | AU50: =PRCP_y2 -> 2015-16 | BD50: =PRCP_y3 -> 2016-17 | BM50: =PRCP_y4 -> 2017-18 | BV50: =PRCP_y5 -> 2018-19
AL51: =PRCP_y6 -> 2019-20 | AU51: =PRCP_y7 -> 2020-21 | BD51: =PRCP_y8 -> 2021-22 | BM51: =PRCP_y9 -> 2022-23 | BV51: =PRCP_y10 -> 2023-24
AL52: =PRCP_y11 -> 2024-25 | AU52: =PRCP_y12 -> 2025-26 | BD52: =PRCP_y13 -> 2026-27 | BM52: =PRCP_y14 -> 2027-28 | BV52: =PRCP_y15 -> 2028-29
Z54: Commencing year | AL54: 2022-23
X55: ANNUAL RINS
Z56: Final year | AL56: 2028-29
Q60: SUBMISSION DETAILS
Z62: RIN type | AL62: =INDIRECT(dms_Model) -> Regulatory Reporting (Reset)
Z64: Source | AL64: Regulatory proposal
X66: THIS FILE | Z66: Data Quality | AL66: Consolidated
Z68: Confidentiality Status | AL68: Public
Z70: Amended RIN Amendment Reason | AL70: .
Z74: Submission Date | AL74: 2023-01-31 | BD74: Please enter date this file submitted to AER

Sheet 2.1 Expenditure summary
B1: =INDEX(dms_Worksheet_List,MATCH(dms_Model,dms_Model_List)) -> REGULATORY REPORTING STATEMENT
B2: =INDEX(dms_TradingNameFull_List,MATCH(dms_TradingName,dms_TradingName_List)) -> Endeavour Energy
B3: =CONCATENATE("REGULATORY PERIOD FROM ", FRCP_y1," TO ",dms_MultiYear_FinalYear_Result) -> REGULATORY PERIOD FROM 2024-25 TO 2028-29
B4: 2.1 EXPENDITURE SUMMARY & RECONCILIATION
B7: 2.1.1 - STANDARD CONTROL SERVICES CAPEX (including dual function assets)
C8: =CONCATENATE("EXPENDITURE ($0's, real ", dms_DollarReal, ")") -> EXPENDITURE ($0's, real June 2024)
C9: =CRCP_y4 -> 2022-23 | D9: =CRCP_y5 -> 2023-24 | E9: =FRCP_y1 -> 2024-25 | F9: =FRCP_y2 -> 2025-26 | G9: =FRCP_y3 -> 2026-27 | H9: =FRCP_y4 -> 2027-28 | I9: =FRCP_y5 -> 2028-29
B10: Replacement expenditure | C10: =SUM('2.2 Repex'!D12:D182) -> 96405429.46 | D10: =SUM('2.2 Repex'!E12:E182) -> 97662525.42 | E10: =SUM('2.2 Repex'!F12:F182) -> 142724813 | F10: =SUM('2.2 Repex'!G12:G182) -> 113841121.6 | G10: =SUM('2.2 Repex'!H12:H182) -> 122990521.6 | H10: =SUM('2.2 Repex'!I12:I182) -> 124667557.7 | I10: =SUM('2.2 Repex'!J12:J182) -> 118285985.2
B11: Connections | C11: =SUM('2.5 Connections'!E123:E136) -> 19364344.34 | D11: =SUM('2.5 Connections'!F123:F136) -> 20578036.91 | E11: =SUM('2.5 Connections'!G123:G136) -> 25990019.14 | F11: =SUM('2.5 Connections'!H123:H136) -> 24504811.67 | G11: =SUM('2.5 Connections'!I123:I136) -> 22958358.34 | H11: =SUM('2.5 Connections'!J123:J136) -> 22462817.58 | I11: =SUM('2.5 Connections'!K123:K136) -> 23083994.5
B12: Augmentation Expenditure | C12: =SUM('2.3 Augex (b)'!D47:D55) -> 121884926.8 | D12: =SUM('2.3 Augex (b)'!E47:E55) -> 109476585.8 | E12: =SUM('2.3 Augex (b)'!F47:F55) -> 103543052.6 | F12: =SUM('2.3 Augex (b)'!G47:G55) -> 118784991.3 | G12: =SUM('2.3 Augex (b)'!H47:H55) -> 78932203.58 | H12: =SUM('2.3 Augex (b)'!I47:I55) -> 63837600.84 | I12: =SUM('2.3 Augex (b)'!J47:J55) -> 47522267.66
B13: Non-network | C13: =SUM('2.6 Non-network'!E32:E50) -> 116469697.8 | D13: =SUM('2.6 Non-network'!F32:F50) -> 47404428.79 | E13: =SUM('2.6 Non-network'!G32:G50) -> 63080178.4 | F13: =SUM('2.6 Non-network'!H32:H50) -> 48864720.91 | G13: =SUM('2.6 Non-network'!I32:I50) -> 41509744.34 | H13: =SUM('2.6 Non-network'!J32:J50) -> 44720990.53 | I13: =SUM('2.6 Non-network'!K32:K50) -> 32504361.53
B14: Export services | C14: =SUM('7.8 Export Services'!C23:C25) -> 1072482.964 | D14: =SUM('7.8 Export Services'!D23:D25) -> 1566453.713 | E14: =SUM('7.8 Export Services'!E23:E25) -> 9000000 | F14: =SUM('7.8 Export Services'!F23:F25) -> 9000000 | G14: =SUM('7.8 Export Services'!G23:G25) -> 9000000 | H14: =SUM('7.8 Export Services'!H23:H25) -> 9000000 | I14: =SUM('7.8 Export Services'!I23:I25) -> 9000000
B15: Public lighting
B16: Metering | C16: 0 | D16: 0 | E16: 0 | F16: 0 | G16: 0 | H16: 0 | I16: 0
B17: Capitalised network overheads | C17: ='2.10 Overheads'!D15 -> 59407998.01 | D17: ='2.10 Overheads'!E15 -> 58626187.02 | E17: ='2.10 Overheads'!F15 -> 60719461.05 | F17: ='2.10 Overheads'!G15 -> 60252624.94 | G17: ='2.10 Overheads'!H15 -> 59402075.08 | H17: ='2.10 Overheads'!I15 -> 58744729.22 | I17: ='2.10 Overheads'!J15 -> 57823316.77
B18: Capitalised corporate overheads | C18: ='2.10 Overheads'!D30 -> 31103842.48 | D18: ='2.10 Overheads'!E30 -> 30694515 | E18: ='2.10 Overheads'!F30 -> 31790476.29 | F18: ='2.10 Overheads'!G30 -> 31546058.07 | G18: ='2.10 Overheads'!H30 -> 31100741.45 | H18: ='2.10 Overheads'!I30 -> 30756579.34 | I18: ='2.10 Overheads'!J30 -> 30274161.68
B19: capcons (included in the above)
B20: Total | C20: =SUM(C10:C18) -> 445708721.9 | D20: 366008732.6 | E20: 436848000.5 | F20: 406794328.5 | G20: 365893644.4 | H20: 354190275.2 | I20: 318494087.4
B23: 2.1.2 - STANDARD CONTROL SERVICES OPEX BY CATEGORY
C24: =CONCATENATE("EXPENDITURE ($0's, real ", dms_DollarReal, ")") -> EXPENDITURE ($0's, real June 2024)
C25: =CRCP_y4 -> 2022-23 | D25: =CRCP_y5 -> 2023-24
B26: Vegetation management | C26: 37778829.93 | D26: 38831357.98
B27: Maintenance | C27: 46328411.07 | D27: 47619132.67
B28: Emergency response | C28: 23456174.65 | D28: 24109669.79
B29: Non-network | C29: =SUM('2.6 Non-network'!E12:E30) -> 76859885.73 | D29: =SUM('2.6 Non-network'!F12:F30) -> 78650820.22
B30: Export services | C30: =SUM('7.8 Export Services'!C13:C14) -> 2543331 | D30: =SUM('7.8 Export Services'!D13:D14) -> 2674397
B31: Metering | C31: 0 | D31: 0
B32: Network overheads | C32: ='2.10 Overheads'!D12 -> 46255010.63 | D32: ='2.10 Overheads'!E12 -> 47543687.27
B33: Corporate overheads | C33: ='2.10 Overheads'!D27 -> 33304052.52 | D33: ='2.10 Overheads'!E27 -> 34231912.1
B34: Total | C34: =SUM(C26:C33) -> 266525695.5 | D34: =SUM(D26:D33) -> 273660977
B37: 2.1.3 - ALTERNATIVE CONTROL SERVICES CAPEX
C38: =CONCATENATE("EXPENDITURE ($0's, real ", dms_DollarReal, ")") -> EXPENDITURE ($0's, real June 2024)
C39: =CRCP_y4 -> 2022-23 | D39: =CRCP_y5 -> 2023-24 | E39: =FRCP_y1 -> 2024-25 | F39: =FRCP_y2 -> 2025-26 | G39: =FRCP_y3 -> 2026-27 | H39: =FRCP_y4 -> 2027-28 | I39: =FRCP_y5 -> 2028-29
B40: Connections | C40: 0 | D40: 0 | E40: 0 | F40: 0 | G40: 0 | H40: 0 | I40: 0
B41: Metering | C41: 0 | D41: 0 | E41: 0 | F41: 0 | G41: 0 | H41: 0 | I41: 0
B42: Public lighting | C42: ='4.1 Public lighting'!D14+'4.1 Public lighting'!D18 -> 11140933.06 | D42: ='4.1 Public lighting'!E14+'4.1 Public lighting'!E18 -> 19598000 | E42: ='4.1 Public lighting'!F14+'4.1 Public lighting'!F18 -> 3061961.75 | F42: ='4.1 Public lighting'!G14+'4.1 Public lighting'!G18 -> 2987279.756 | G42: ='4.1 Public lighting'!H14+'4.1 Public lighting'!H18 -> 2914419.274 | H42: ='4.1 Public lighting'!I14+'4.1 Public lighting'!I18 -> 2843335.877 | I42: ='4.1 Public lighting'!J14+'4.1 Public lighting'!J18 -> 2773986.221
B43: Fee and quoted | C43: 0 | D43: 0 | E43: 0 | F43: 0 | G43: 0 | H43: 0 | I43: 0
B44: Network overheads | C44: ='2.10 Overheads'!D16 -> 1510455.831 | D44: ='2.10 Overheads'!E16 -> 1518337.822 | E44: ='2.10 Overheads'!F16 -> 1566794.196 | F44: ='2.10 Overheads'!G16 -> 1573674.592 | G44: ='2.10 Overheads'!H16 -> 1576183.24 | H44: ='2.10 Overheads'!I16 -> 1580247.383 | I44: ='2.10 Overheads'!J16 -> 1580147.065
B45: Corporate overheads | C45: ='2.10 Overheads'!D31 -> 0 | D45: ='2.10 Overheads'!E31 -> 0 | E45: ='2.10 Overheads'!F31 -> 0 | F45: ='2.10 Overheads'!G31 -> 0 | G45: ='2.10 Overheads'!H31 -> 0 | H45: ='2.10 Overheads'!I31 -> 0 | I45: ='2.10 Overheads'!J31 -> 0
B46: Total | C46: =SUM(C40:C45) -> 12651388.89 | D46: 21116337.82 | E46: 4628755.945 | F46: 4560954.347 | G46: 4490602.514 | H46: 4423583.26 | I46: 4354133.287
B49: 2.1.4 - ALTERNATIVE CONTROL SERVICES OPEX
C50: =CONCATENATE("EXPENDITURE ($0's, real ", dms_DollarReal, ")") -> EXPENDITURE ($0's, real June 2024)
C51: =CRCP_y4 -> 2022-23 | D51: =CRCP_y5 -> 2023-24 | E51: =FRCP_y1 -> 2024-25 | F51: =FRCP_y2 -> 2025-26 | G51: =FRCP_y3 -> 2026-27 | H51: =FRCP_y4 -> 2027-28 | I51: =FRCP_y5 -> 2028-29
B52: Connections | C52: 0 | D52: 0 | E52: 0 | F52: 0 | G52: 0 | H52: 0 | I52: 0
B53: Metering | C53: ='3.2 Operating expenditure'!K71 -> 0 | D53: ='3.2 Operating expenditure'!L71 -> 0 | E53: ='3.2 Operating expenditure'!M71 -> 0 | F53: ='3.2 Operating expenditure'!N71 -> 0 | G53: ='3.2 Operating expenditure'!O71 -> 0 | H53: ='3.2 Operating expenditure'!P71 -> 0 | I53: ='3.2 Operating expenditure'!Q71 -> 0
B54: Public lighting | C54: ='3.2 Operating expenditure'!K73 -> 0 | D54: ='3.2 Operating expenditure'!L73 -> 0 | E54: ='3.2 Operating expenditure'!M73 -> 0 | F54: ='3.2 Operating expenditure'!N73 -> 0 | G54: ='3.2 Operating expenditure'!O73 -> 0 | H54: ='3.2 Operating expenditure'!P73 -> 0 | I54: ='3.2 Operating expenditure'!Q73 -> 0
B55: Fee and quoted | C55: 16063744.05 | D55: 16235365.85 | E55: 15521663.18 | F55: 15031341.05 | G55: 15031341.05 | H55: 15031341.05 | I55: 15031341.05
B56: Network overheads | C56: ='2.10 Overheads'!D13 -> 8144557.766 | D56: ='2.10 Overheads'!E13 -> 8231572.575 | E56: ='2.10 Overheads'!F13 -> 8374141.018 | F56: ='2.10 Overheads'!G13 -> 8073814.516 | G56: ='2.10 Overheads'!H13 -> 8000445.11 | H56: ='2.10 Overheads'!I13 -> 7919668.65 | I56: ='2.10 Overheads'!J13 -> 7837820.305
B57: Corporate overheads | C57: ='2.10 Overheads'!D28 -> 28923472.09 | D57: ='2.10 Overheads'!E28 -> 29232484.62 | E57: ='2.10 Overheads'!F28 -> 27256040.29 | F57: ='2.10 Overheads'!G28 -> 26148891.03 | G57: ='2.10 Overheads'!H28 -> 25644315.27 | H57: ='2.10 Overheads'!I28 -> 25088799.76 | I57: ='2.10 Overheads'!J28 -> 24525912.68
B58: Total | C58: =SUM(C52:C57) -> 53131773.91 | D58: 53699423.04 | E58: 51151844.49 | F58: 49254046.6 | G58: 48676101.44 | H58: 48039809.46 | I58: 47395074.04
B61: 2.1.5 - DUAL FUNCTION ASSETS CAPEX
C62: =CONCATENATE("EXPENDITURE ($0's, real ", dms_DollarReal, ")") -> EXPENDITURE ($0's, real June 2024)
C63: =CRCP_y4 -> 2022-23 | D63: =CRCP_y5 -> 2023-24 | E63: =FRCP_y1 -> 2024-25 | F63: =FRCP_y2 -> 2025-26 | G63: =FRCP_y3 -> 2026-27 | H63: =FRCP_y4 -> 2027-28 | I63: =FRCP_y5 -> 2028-29
B64: Replacement expenditure | C64: 0 | D64: 0 | E64: 0 | F64: 0 | G64: 0 | H64: 0 | I64: 0
B65: Connections | C65: 0 | D65: 0 | E65: 0 | F65: 0 | G65: 0 | H65: 0 | I65: 0
B66: Augmentation expenditure | C66: 0 | D66: 0 | E66: 0 | F66: 0 | G66: 0 | H66: 0 | I66: 0
B67: Non-network | C67: 0 | D67: 0 | E67: 0 | F67: 0 | G67: 0 | H67: 0 | I67: 0
B68: Export services | C68: 0 | D68: 0 | E68: 0 | F68: 0 | G68: 0 | H68: 0 | I68: 0
B69: Capitalised network overheads | C69: 0 | D69: 0 | E69: 0 | F69: 0 | G69: 0 | H69: 0 | I69: 0
B70: Capitalised corporate overheads | C70: 0 | D70: 0 | E70: 0 | F70: 0 | G70: 0 | H70: 0 | I70: 0
B71: capcons (included in the above) | C71: 0 | D71: 0 | E71: 0 | F71: 0 | G71: 0 | H71: 0 | I71: 0
B72: Total | C72: =SUM(C64:C70) -> 0 | D72: 0 | E72: 0 | F72: 0 | G72: 0 | H72: 0 | I72: 0
B75: 2.1.6 - DUAL FUNCTION ASSETS OPEX BY CATEGORY
C76: =CONCATENATE("EXPENDITURE ($0's, real ", dms_DollarReal, ")") -> EXPENDITURE ($0's, real June 2024)
C77: =CRCP_y4 -> 2022-23 | D77: =CRCP_y5 -> 2023-24
B78: Vegetation management | C78: 0 | D78: 0
B79: Maintenance | C79: 0 | D79: 0
B80: Emergency response | C80: 0 | D80: 0
B81: Non-network | C81: 0 | D81: 0
B82: Export services | C82: 0 | D82: 0
B83: Metering | C83: 0 | D83: 0
B84: Network overheads | C84: 0 | D84: 0
B85: Corporate overheads | C85: 0 | D85: 0
B86: Total | C86: =SUM(C78:C85) -> 0 | D86: =SUM(D78:D85) -> 0
B89: 2.1.7 - STANDARD CONTROL SERVICES CAPCONS
C90: =CONCATENATE("EXPENDITURE ($0's, real ", dms_DollarReal, ")") -> EXPENDITURE ($0's, real June 2024)
C91: =CRCP_y4 -> 2022-23 | D91: =CRCP_y5 -> 2023-24 | E91: =FRCP_y1 -> 2024-25 | F91: =FRCP_y2 -> 2025-26 | G91: =FRCP_y3 -> 2026-27 | H91: =FRCP_y4 -> 2027-28 | I91: =FRCP_y5 -> 2028-29
B92: Replacement expenditure | C92: 0 | D92: 0 | E92: 0 | F92: 0 | G92: 0 | H92: 0 | I92: 0
B93: Connections | C93: 164090665 | D93: 161235229.7 | E93: 165726478.1 | F93: 157785919.9 | G93: 156800362.9 | H93: 162451609.2 | I93: 166483816.4
B94: Augmentation Expenditure | C94: 0 | D94: 0 | E94: 0 | F94: 0 | G94: 0 | H94: 0 | I94: 0
B95: Non-network | C95: 0 | D95: 0 | E95: 0 | F95: 0 | G95: 0 | H95: 0 | I95: 0
B96: Export services | C96: 0 | D96: 0 | E96: 0 | F96: 0 | G96: 0 | H96: 0 | I96: 0
B97: Capitalised network overheads | C97: 0 | D97: 0 | E97: 0 | F97: 0 | G97: 0 | H97: 0 | I97: 0
B98: Capitalised corporate overheads | C98: 0 | D98: 0 | E98: 0 | F98: 0 | G98: 0 | H98: 0 | I98: 0
B99: Total | C99: =SUM(C92:C98) -> 164090665 | D99: 161235229.7 | E99: 165726478.1 | F99: 157785919.9 | G99: 156800362.9 | H99: 162451609.2 | I99: 166483816.4
B102: 2.1.8 - STANDARD CONTROL SERVICES CAPITALISED OVERHEADS
C103: =CONCATENATE("EXPENDITURE ($0's, real ", dms_DollarReal, ")") -> EXPENDITURE ($0's, real June 2024)
C104: =CRCP_y4 -> 2022-23 | D104: =CRCP_y5 -> 2023-24 | E104: =FRCP_y1 -> 2024-25 | F104: =FRCP_y2 -> 2025-26 | G104: =FRCP_y3 -> 2026-27 | H104: =FRCP_y4 -> 2027-28 | I104: =FRCP_y5 -> 2028-29
B105: Replacement expenditure | C105: 46249.59382 | D105: 45640.94781 | E105: 47270.57811 | F105: 46907.14253 | G105: 46244.98277 | H105: 45733.23385 | I105: 45015.90701
B106: Connections | C106: 9134.623043 | D106: 9014.411137 | E106: 9336.274688 | F106: 9264.493581 | G106: 9133.712329 | H106: 9032.638284 | I106: 8890.961142
B107: Augmentation Expenditure | C107: 31673.35446 | D107: 31256.53219 | E107: 32372.56055 | F107: 32123.66703 | G107: 31670.19665 | H107: 31319.73293 | I107: 30828.48218
B108: Non-network | C108: 0 | D108: 0 | E108: 0 | F108: 0 | G108: 0 | H108: 0 | I108: 0
B109: Export services | C109: 3454.269169 | D109: 3408.810886 | E109: 3530.523991 | F109: 3503.379876 | G109: 3453.924781 | H109: 3415.703504 | I109: 3362.128115
B110: capcons (included in the above) | C110: 0 | D110: 0 | E110: 0 | F110: 0 | G110: 0 | H110: 0 | I110: 0
B111: Total | C111: =SUM(C105:C109) -> 90511.84049 | D111: 89320.70202 | E111: 92509.93734 | F111: 91798.68302 | G111: 90502.81654 | H111: 89501.30856 | I111: 88097.47845

Sheet 2.2 Repex
B1: =INDEX(dms_Worksheet_List,MATCH(dms_Model,dms_Model_List)) -> REGULATORY REPORTING STATEMENT
B2: =INDEX(dms_TradingNameFull_List,MATCH(dms_TradingName,dms_TradingName_List)) -> Endeavour Energy
B3: =CONCATENATE("REGULATORY PERIOD FROM ", FRCP_y1," TO ",dms_MultiYear_FinalYear_Result) -> REGULATORY PERIOD FROM 2024-25 TO 2028-29
B4: 2.2 REPEX
B6: There are THREE sub-tables on this worksheet. The table has been sub-grouped for easy navigation. See the Instructions sheet on how to group or ungroup tables.
B8: 2.2.1 - REPLACEMENT EXPENDITURE, VOLUMES AND ASSET FAILURES BY ASSET CATEGORY
B9: EXPENDITURE
D10: =CONCATENATE("EXPENDITURE ($0's, real ", dms_DollarReal, ")") -> EXPENDITURE ($0's, real June 2024)
B11: ASSET GROUP | C11: ASSET CATEGORY | D11: =CRCP_y4 -> 2022-23 | E11: =CRCP_y5 -> 2023-24 | F11: =FRCP_y1 -> 2024-25 | G11: =FRCP_y2 -> 2025-26 | H11: =FRCP_y3 -> 2026-27 | I11: =FRCP_y4 -> 2027-28 | J11: =FRCP_y5 -> 2028-29
B12: POLES BY: HIGHEST OPERATING VOLTAGE ; MATERIAL TYPE | C12: ˂ = 1 kV; Wood | D12: 6498240.258 | E12: 5496618.188 | F12: 8655490.999 | G12: 8643259.932 | H12: 8631029.224 | I12: 8617983.159 | J12: 8605752.299
C13: > 1 kV & < = 11 kV; Wood | D13: 5275693.903 | E13: 4485639.819 | F13: 7000342.534 | G13: 6996476.913 | H13: 6992611.577 | I13: 6988488.57 | J13: 6984623.114
C14: ˃ 11 kV & < = 22 kV; Wood | D14: 121878.6918 | E14: 103747.4557 | F14: 161581.9962 | G14: 161524.2984 | H14: 161466.6072 | I14: 161405.0704 | J14: 161347.3764
C15: > 22 kV & < = 66 kV; Wood | D15: 740971.4965 | E15: 630758.6704 | F15: 982330.7395 | G15: 981984.5525 | H15: 981638.4055 | I15: 981269.1846 | J15: 980923.0207
C16: > 66 kV & < = 132 kV; Wood | D16: 126454.0885 | E16: 107870.4784 | F16: 167383.8644 | G16: 167383.8587 | H16: 167383.8599 | I16: 167383.8616 | J16: 167383.8599
C17: > 132 kV; Wood | D17: 0 | E17: 0 | F17: 0 | G17: 0 | H17: 0 | I17: 0 | J17: 0
C18: ˂ = 1 kV; Concrete | D18: 120697.9346 | E18: 102960.2451 | F18: 159764.5988 | G18: 159764.5935 | H18: 159764.5946 | I18: 159764.5962 | J18: 159764.5946
C19: > 1 kV & < = 11 kV; Concrete | D19: 519232.2716 | E19: 442926.2366 | F19: 687293.7455 | G19: 687293.7225 | H19: 687293.7272 | I19: 687293.7341 | J19: 687293.7271
C20: ˃ 11 kV & < = 22 kV; Concrete | D20: 58694.63964 | E20: 50068.91379 | F20: 77692.51051 | G20: 77692.50791 | H20: 77692.50845 | I20: 77692.50922 | J20: 77692.50843
C21: > 22 kV & < = 66 kV; Concrete | D21: 153512.544 | E21: 130952.4409 | F21: 203200.4117 | G21: 203200.4049 | H21: 203200.4063 | I21: 203200.4083 | J21: 203200.4062
C22: > 66 kV & < = 132 kV; Concrete | D22: 251412.8217 | E22: 214465.3579 | F22: 332788.3673 | G22: 332788.3561 | H22: 332788.3584 | I22: 332788.3617 | J22: 332788.3584
C23: > 132 kV; Concrete | D23: 0 | E23: 0 | F23: 0 | G23: 0 | H23: 0 | I23: 0 | J23: 0
C24: ˂ = 1 kV; Steel | D24: 751971.2481 | E24: 641462.0453 | F24: 995364.0478 | G24: 995364.0145 | H24: 995364.0213 | I24: 995364.0313 | J24: 995364.0212
C25: > 1 kV & < = 11 kV; Steel | D25: 22208.78257 | E25: 18944.99441 | F25: 29397.16614 | G25: 29397.16516 | H25: 29397.16536 | I25: 29397.16565 | J25: 29397.16535
C26: ˃ 11 kV & < = 22 kV; Steel | D26: 14141.10237 | E26: 12062.93521 | F26: 18718.19558 | G26: 18718.19496 | H26: 18718.19509 | I26: 18718.19527 | J26: 18718.19508
C27: > 22 kV & < = 66 kV; Steel | D27: 19715.96003 | E27: 16818.51544 | F27: 26097.48423 | G27: 26097.48335 | H27: 26097.48353 | I27: 26097.48379 | J27: 26097.48353
C28: > 66 kV & < = 132 kV; Steel | D28: 7206.523323 | E28: 6147.457369 | F28: 9539.080441 | G28: 9539.080122 | H28: 9539.080188 | I28: 9539.080283 | J28: 9539.080186
C29: > 132 kV; Steel | D29: 0 | E29: 0 | F29: 0 | G29: 0 | H29: 0 | I29: 0 | J29: 0
C30: Other | D30: 0 | E30: 0 | F30: 0 | G30: 0 | H30: 0 | I30: 0 | J30: 0
B31: POLE TOP STRUCTURES BY: HIGHEST OPERATING VOLTAGE | C31: ˂ = 1 kV | D31: 1892261.999 | E31: 1949490.986 | F31: 4058548.11 | G31: 4058548.111 | H31: 4058548.204 | I31: 4058548.187 | J31: 4058548.146
C32: > 1 kV & < = 11 kV | D32: 1715466.497 | E32: 1471858.655 | F32: 6072940.272 | G32: 6072940.347 | H32: 6072940.317 | I32: 6072940.264 | J32: 6072940.321
C33: ˃ 11 kV & < = 22 kV | D33: 0 | E33: 0 | F33: 31449.813 | G33: 31449.813 | H33: 31449.813 | I33: 31449.813 | J33: 31449.813
C34: > 22 kV & < = 66 kV | D34: 789364.3015 | E34: 770713.4157 | F34: 1096707.959 | G34: 1096707.967 | H34: 1096708.032 | I34: 1096708.028 | J34: 1096708.044
C35: > 66 kV & < = 132 kV | D35: 0 | E35: 0 | F35: 0 | G35: 0 | H35: 0 | I35: 0 | J35: 0
C36: > 132 kV | D36: 0 | E36: 0 | F36: 0 | G36: 0 | H36: 0 | I36: 0 | J36: 0
C37: Other | D37: 0 | E37: 0 | F37: 0 | G37: 0 | H37: 0 | I37: 0 | J37: 0
B38: STAKING WOODEN POLES BY: HIGHEST OPERATING VOLTAGE | C38: ˂ = 1 Kv | D38: 239723.0769 | E38: 251138.4615 | F38: 263369.2308 | G38: 275600 | H38: 287830.7692 | I38: 300876.9231 | J38: 313107.6923
C39: > 1 kV & < = 11 kV | D39: 75761.53846 | E39: 79369.23077 | F39: 83234.61538 | G39: 87100 | H39: 90965.38462 | I39: 95088.46154 | J39: 98953.84615
C40: ˃ 11 kV & < = 22 kV | D40: 1130.769231 | E40: 1184.615385 | F40: 1242.307692 | G40: 1300 | H40: 1357.692308 | I40: 1419.230769 | J40: 1476.923077
C41: > 22 kV & < = 66 kV | D41: 6784.615385 | E41: 7107.692308 | F41: 7453.846154 | G41: 7800 | H41: 8146.153846 | I41: 8515.384615 | J41: 8861.538462
C42: > 66 kV & < = 132 kV
C43: > 132 kV
B44: OVERHEAD CONDUCTORS BY: Highest operating voltage; Number of phases (at HV) | C44: ˂ = 1 kV | D44: 5440371.985 | E44: 7041453.741 | F44: 10088735.78 | G44: 5263321.966 | H44: 5085106.318 | I44: 5146053.905 | J44: 5637460.426
C45: > 1 kV & < = 11 kV | D45: 9097120.996 | E45: 5550515.06 | F45: 18171304.96 | G45: 12792971.24 | H45: 12792971.26 | I45: 12792971.21 | J45: 12792971.24
C46: ˃ 11 kV & < = 22 kV ; SWER | D46: 0 | E46: 0 | F46: 0 | G46: 0 | H46: 0 | I46: 0 | J46: 0
C47: ˃ 11 kV & < = 22 kV ; Single-Phase | D47: 0 | E47: 0 | F47: 0 | G47: 0 | H47: 0 | I47: 0 | J47: 0
C48: ˃ 11 kV & < = 22 kV ; Multiple-Phase | D48: 0 | E48: 0 | F48: 0 | G48: 0 | H48: 0 | I48: 0 | J48: 0
C49: > 22 kV & < = 66 kV | D49: 768304.4061 | E49: 861899.8227 | F49: 969077.547 | G49: 969076.5463 | H49: 969076.5709 | I49: 969076.6023 | J49: 969076.6081
C50: > 66 kV & < = 132 kV | D50: 0 | E50: 0 | F50: 0 | G50: 0 | H50: 0 | I50: 0 | J50: 0
C51: > 132 kV | D51: 0 | E51: 0 | F51: 0 | G51: 0 | H51: 0 | I51: 0 | J51: 0
C52: Other | D52: 0 | E52: 0 | F52: 0 | G52: 0 | H52: 0 | I52: 0 | J52: 0
B53: UNDERGROUND CABLES BY: Highest operating voltage | C53: ˂ = 1 kV | D53: 832176.992 | E53: 331263.6475 | F53: 4273092.027 | G53: 4273092.09 | H53: 4298292.781 | I53: 4273092.064 | J53: 4273092.074
C54: > 1 kV & < = 11 kV | D54: 131560.7169 | E54: 0 | F54: 0 | G54: 58198.25121 | H54: 599457.9853 | I54: 714530.4607 | J54: 0
C55: > 11 kV & < = 22 kV | D55: 0 | E55: 0 | F55: 0 | G55: 0 | H55: 0 | I55: 33019.63497 | J55: 175854.5791
C56: > 22 kV & < = 33 kV | D56: 0 | E56: 0 | F56: 0 | G56: 0 | H56: 0 | I56: 0 | J56: 0
C57: > 33 kV & < = 66 kV | D57: 0 | E57: 0 | F57: 0 | G57: 0 | H57: 0 | I57: 0 | J57: 0
C58: > 66 kV & < = 132 kV | D58: 841712.837 | E58: 3483351.668 | F58: 3241278.938 | G58: 2489808.617 | H58: 9959234.426 | I58: 9959234.426 | J58: 9959234.426
C59: > 132 kV | D59: 0 | E59: 0 | F59: 0 | G59: 0 | H59: 0 | I59: 0 | J59: 0
C60: Other | D60: 0 | E60: 0 | F60: 0 | G60: 0 | H60: 0 | I60: 0 | J60: 0
B61: SERVICE LINES BY: Connection voltage; Customer type; Connection complexity | C61: ˂ = 11 kV ; Residential ; Simple Type | D61: 299810.0341 | E61: 398061.9679 | F61: 1194798 | G61: 1194798 | H61: 1194798 | I61: 1194798 | J61: 1194798
C62: ˂ = 11 kV ; Commercial & Industrial ; Simple Type | D62: 0 | E62: 0 | F62: 0 | G62: 0 | H62: 0 | I62: 0 | J62: 0
C63: ˂ = 11 kV ; Residential ; Complex Type | D63: 199873.356 | E63: 265374.6453 | F63: 796532 | G63: 796532 | H63: 796532 | I63: 796532 | J63: 796532
C64: ˂ = 11 kV ; Commercial & Industrial ; Complex Type | D64: 0 | E64: 0 | F64: 0 | G64: 0 | H64: 0 | I64: 0 | J64: 0
C65: ˂ = 11 kV ; Subdivision ; Complex Type | D65: 0 | E65: 0 | F65: 0 | G65: 0 | H65: 0 | I65: 0 | J65: 0
C66: > 11 kV & < = 22 kV ; Commercial & Industrial | D66: 0 | E66: 0 | F66: 0 | G66: 0 | H66: 0 | I66: 0 | J66: 0
C67: > 11 kV & < = 22 kV ; Subdivision | D67: 0 | E67: 0 | F67: 0 | G67: 0 | H67: 0 | I67: 0 | J67: 0
C68: > 22 kV & < = 33 kV ; Commercial & Industrial | D68: 0 | E68: 0 | F68: 0 | G68: 0 | H68: 0 | I68: 0 | J68: 0
C69: > 22 kV & < = 33 kV ; Subdivision | D69: 0 | E69: 0 | F69: 0 | G69: 0 | H69: 0 | I69: 0 | J69: 0
C70: > 33 kV & < = 66 kV ; Commercial & Industrial | D70: 0 | E70: 0 | F70: 0 | G70: 0 | H70: 0 | I70: 0 | J70: 0
C71: > 33 kV & < = 66 kV ; Subdivision | D71: 0 | E71: 0 | F71: 0 | G71: 0 | H71: 0 | I71: 0 | J71: 0
C72: > 66 kV & < = 132 kV ; Commercial & Industrial | D72: 0 | E72: 0 | F72: 0 | G72: 0 | H72: 0 | I72: 0 | J72: 0
C73: > 66 kV & < = 132 kV ; Subdivision | D73: 0 | E73: 0 | F73: 0 | G73: 0 | H73: 0 | I73: 0 | J73: 0
C74: > 132 kV ; Commercial & Industrial | D74: 0 | E74: 0 | F74: 0 | G74: 0 | H74: 0 | I74: 0 | J74: 0
C75: > 132 kV ; Subdivision | D75: 0 | E75: 0 | F75: 0 | G75: 0 | H75: 0 | I75: 0 | J75: 0
C76: Other | D76: 0 | E76: 0 | F76: 0 | G76: 0 | H76: 0 | I76: 0 | J76: 0
B77: TRANSFORMERS BY: Mounting type; Highest operating voltage; Ampere rating; Number of phases (at LV) | C77: Pole Mounted ; < = 22kV ; < = 60 kVA ; Single Phase | D77: 0 | E77: 0 | F77: 0 | G77: 0 | H77: 0 | I77: 0 | J77: 0
C78: Pole Mounted ; < = 22kV ; > 60 kVA and < = 600 kVA ; Single Phase | D78: 33420.54834 | E78: 18714.22584 | F78: 41548.91556 | G78: 22094.15169 | H78: 22036.35558 | I78: 21979.92708 | J78: 21924.83033
C79: Pole Mounted ; < = 22kV ; > 600 kVA ; Single Phase | D79: 0 | E79: 0 | F79: 0 | G79: 0 | H79: 0 | I79: 0 | J79: 0
C80: Pole Mounted ; < = 22kV ; < = 60 kVA ; Multiple Phase | D80: 33420.54834 | E80: 18714.22584 | F80: 41548.91556 | G80: 22094.15169 | H80: 22036.35558 | I80: 21979.92708 | J80: 21924.83033
C81: Pole Mounted ; < = 22kV ; > 60 kVA and < = 600 kVA ; Multiple Phase | D81: 2661111.161 | E81: 1490120.233 | F81: 3308332.401 | G81: 1759246.829 | H81: 1754644.813 | I81: 1750151.694 | J81: 1745764.615
C82: Pole Mounted ; < = 22kV ; > 600 kVA ; Multiple Phase | D82: 0 | E82: 0 | F82: 0 | G82: 0 | H82: 0 | I82: 0 | J82: 0
C83: Kiosk Mounted ; < = 22kV ; < = 60 kVA ; Single Phase | D83: 0 | E83: 0 | F83: 0 | G83: 0 | H83: 0 | I83: 0 | J83: 0
C84: Kiosk Mounted ; < = 22kV ; > 60 kVA and < = 600 kVA ; Single Phase | D84: 150392.4675 | E84: 84214.01628 | F84: 186970.12 | G84: 99423.68262 | H84: 99163.60011 | I84: 98909.67188 | J84: 98661.73647
C85: Kiosk Mounted ; < = 22kV ; > 600 kVA ; Single Phase | D85: 0 | E85: 0 | F85: 0 | G85: 0 | H85: 0 | I85: 0 | J85: 0
C86: Kiosk Mounted ; < = 22kV ; < = 60 kVA ; Multiple Phase | D86: 0 | E86: 0 | F86: 0 | G86: 0 | H86: 0 | I86: 0 | J86: 0
C87: Kiosk Mounted ; < = 22kV ; > 60 kVA and < = 600 kVA ; Multiple Phase | D87: 292429.798 | E87: 163749.4761 | F87: 363553.0111 | G87: 193323.8273 | H87: 192818.1113 | I87: 192324.362 | J87: 191842.2654
C88: Kiosk Mounted ; < = 22kV ; > 600 kVA ; Multiple Phase | D88: 0 | E88: 0 | F88: 0 | G88: 0 | H88: 0 | I88: 0 | J88: 0
C89: Ground Outdoor / Indoor Chamber Mounted; ˂ 22 kV ; < = 60 kVA ; Single Phase | D89: 0 | E89: 0 | F89: 0 | G89: 0 | H89: 0 | I89: 0 | J89: 0
C90: Ground Outdoor / Indoor Chamber Mounted; ˂ 22 kV ; > 60 kVA and < = 600 kVA ; Single Phase | D90: 0 | E90: 0 | F90: 0 | G90: 0 | H90: 0 | I90: 0 | J90: 0
C91: Ground Outdoor / Indoor Chamber Mounted; ˂ 22 kV ; > 600 kVA ; Single Phase | D91: 0 | E91: 0 | F91: 0 | G91: 0 | H91: 0 | I91: 0 | J91: 0
C92: Ground Outdoor / Indoor Chamber Mounted; ˂ 22 kV ; < = 60 kVA ; Multiple Phase | D92: 0 | E92: 0 | F92: 0 | G92: 0 | H92: 0 | I92: 0 | J92: 0
C93: Ground Outdoor / Indoor Chamber Mounted; ˂ 22 kV ; > 60 kVA and < = 600 kVA ; Multiple Phase | D93: 175457.8788 | E93: 98249.68566 | F93: 218131.8067 | G93: 115994.2964 | H93: 115690.8668 | I93: 115394.6172 | J93: 115105.3592
C94: Ground Outdoor / Indoor Chamber Mounted; ˂ 22 kV ; > 600 kVA ; Multiple Phase | D94: 0 | E94: 0 | F94: 0 | G94: 0 | H94: 0 | I94: 0 | J94: 0
C95: Ground Outdoor / Indoor Chamber Mounted; > = 22 kV & < = 33 kV ; < = 15 MVA | D95: 0 | E95: 0 | F95: 858840 | G95: 858840 | H95: 858840 | I95: 858840 | J95: 858840
C96: Ground Outdoor / Indoor Chamber Mounted; > = 22 kV & < = 33 kV ; > 15 MVA and < = 40 MVA | D96: 0 | E96: 0
C97: Ground Outdoor / Indoor Chamber Mounted; > = 22 kV & < = 33 kV ; > 40 MVA | D97: 0 | E97: 0 | F97: 858840 | G97: 858840 | H97: 858840 | I97: 858840 | J97: 858840
C98: Ground Outdoor / Indoor Chamber Mounted; > 33 kV & < = 66 kV ; < = 15 MVA | D98: 144978.8576 | E98: 4004561.38 | F98: 3816375.553 | G98: 1883987.819 | H98: 1883987.819 | I98: 1883987.819 | J98: 1883987.819
C99: Ground Outdoor / Indoor Chamber Mounted; > 33 kV & < = 66 kV ; > 15 MVA and < = 40 MVA | D99: 0 | E99: 0 | F99: 0 | G99: 0 | H99: 0 | I99: 0 | J99: 0
C100: Ground Outdoor / Indoor Chamber Mounted; > 33 kV & < = 66 kV ; > 40 MVA | D100: 0 | E100: 0 | F100: 0 | G100: 0 | H100: 0 | I100: 0 | J100: 0
C101: Ground Outdoor / Indoor Chamber Mounted; > 66 kV & < = 132 kV ; < = 100 MVA | D101: 0 | E101: 0 | F101: 0 | G101: 0 | H101: 0 | I101: 0 | J101: 0
C102: Ground Outdoor / Indoor Chamber Mounted; > 66 kV & < = 132 kV ; > 100 MVA | D102: 0 | E102: 0 | F102: 0 | G102: 0 | H102: 0 | I102: 0 | J102: 0
C103: Ground Outdoor / Indoor Chamber Mounted; > 132 kV ; < = 100 MVA | D103: 0 | E103: 0 | F103: 0 | G103: 0 | H103: 0 | I103: 0 | J103: 0
C104: Ground Outdoor / Indoor Chamber Mounted; > 132 kV ; > 100 MVA | D104: 0 | E104: 0 | F104: 0 | G104: 0 | H104: 0 | I104: 0 | J104: 0
C105: Other | D105: 0 | E105: 0 | F105: 0 | G105: 0 | H105: 0 | I105: 0 | J105: 0
B106: SWITCHGEAR BY: Highest operating voltage; Switch function | C106: ˂ = 11 kV ; FUSE | D106: 0 | E106: 0 | F106: 680355.247 | G106: 886689.9756 | H106: 1050606.66 | I106: 893743.3277 | J106: 667275.886
C107: ˂ = 11 kV ; Switch | D107: 5779432.1 | E107: 1485565.96 | F107: 8631337.889 | G107: 15044761.7 | H107: 13574446.75 | I107: 16118579.92 | J107: 9231499.874
C108: ˂ = 11 kV ; Circuit Breaker | D108: 10162972.76 | E108: 13425339.19 | F108: 4436476.794 | G108: 5411131.306 | H108: 6541515.97 | I108: 817495.5082 | J108: 1948757.571
C109: > 11 kV & < = 22 kV ; Switch | D109: 0 | E109: 0 | F109: 0 | G109: 119006.4156 | H109: 63631.06587 | I109: 104190.4801 | J109: 18524.76399
C110: > 11 kV & < = 22 kV ; Circuit Breaker | D110: 0 | E110: 0 | F110: 0 | G110: 0 | H110: 0 | I110: 0 | J110: 0
C111: > 22 kV & < = 33 kV ; Switch | D111: 0 | E111: 0 | F111: 18239.32864 | G111: 0 | H111: 0 | I111: 0 | J111: 0
C112: > 22 kV & < = 33 kV ; Circuit Breaker | D112: 10840274.62 | E112: 17908597.15 | F112: 15239937.79 | G112: 269418.1749 | H112: 924103.0823 | I112: 6445525.19 | J112: 6894276.872
C113: > 33 kV & < = 66 kV ; Switch | D113: 0 | E113: 0
C114: > 33 kV & < = 66 kV ; Circuit Breaker | D114: 0 | E114: 0 | F114: 44204.40401 | G114: 44204.35593 | H114: 44204.36581 | I114: 44204.40684 | J114: 44204.38605
C115: > 66 kV & < = 132 kV ; Switch | D115: 0 | E115: 0 | F115: 0 | G115: 0 | H115: 0 | I115: 0 | J115: 0
C116: > 66 kV & < = 132 kV ; Circuit Breaker | D116: 0 | E116: 0 | F116: 0 | G116: 0 | H116: 0 | I116: 0 | J116: 0
C117: > 132 kV ; Switch | D117: 0 | E117: 0 | F117: 0 | G117: 0 | H117: 0 | I117: 0 | J117: 0
C118: > 132 kV ; Circuit Breaker | D118: 0 | E118: 0 | F118: 0 | G118: 0 | H118: 0 | I118: 0 | J118: 0
C119: Other | D119: 0 | E119: 0 | F119: 0 | G119: 0 | H119: 0 | I119: 0 | J119: 0
B120: PUBLIC LIGHTING BY: Asset type ; Lighting obligation | C120: Luminaires ; Major Road
C121: Luminaires ; Minor Road
C122: Brackets ; Major Road
C123: Brackets ; Minor Road
C124: Lamps ; Major Road
C125: Lamps ; Minor Road
C126: Poles / Columns ; Major Road
C127: Poles / Columns ; Minor Road
C128: Other
B129: SCADA, NETWORK CONTROL AND PROTECTION SYSTEMS BY: Function | C129: Field Devices | D129: 2196361.971 | E129: 3500384.338 | F129: 6130045.177 | G129: 6125268.417 | H129: 6120491.692 | I129: 6120491.796 | J129: 5991516.535
C130: Local Network Wiring Assets | D130: 0 | E130: 0 | F130: 0 | G130: 0 | H130: 0 | I130: 0 | J130: 0
C131: Communications Network Assets | D131: 2759997.907 | E131: 4398661.775 | F131: 7703152.797 | G131: 7697150.213 | H131: 7691147.672 | I131: 7691147.804 | J131: 7529074.587
C132: Master Station Assets | D132: 0 | E132: 0 | F132: 0 | G132: 0 | H132: 0 | I132: 0 | J132: 0
C133: Communications Site Infrastructure | D133: 0 | E133: 0 | F133: 0 | G133: 0 | H133: 0 | I133: 0 | J133: 0
C134: Communications Linear Assets | D134: 0 | E134: 0 | F134: 0 | G134: 0 | H134: 0 | I134: 0 | J134: 0
C135: AFLC | D135: 0 | E135: 0 | F135: 0 | G135: 0 | H135: 0 | I135: 0 | J135: 0
C136: Other | D136: 0 | E136: 0 | F136: 0 | G136: 0 | H136: 0 | I136: 0 | J136: 0
B137: OTHER: | C137: Network Technology | D137: 10473469.61 | E137: 27248.1725 | F137: 0 | G137: 0 | H137: 0 | I137: 0 | J137: 0
C138: Power Quality Monitoring | D138: 382085.4015 | E138: 228389.4046 | F138: 269489.0146 | G138: 269489.0146 | H138: 269489.0146 | I138: 269489.0146 | J138: 269489.0146
C139: Quality of Supply | D139: 125456.1733 | E139: 552022.4532 | F139: 538977.9029 | G139: 538977.9029 | H139: 538977.9029 | I139: 538977.9029 | J139: 538977.9029
C140: Reliability | D140: 2096311.66 | E140: 3082852.389 | F140: 3233867.633 | G140: 3233867.691 | H140: 3233867.647 | I140: 3233867.658 | J140: 3233867.624
C141: Substation Batteries | D141: 240052.9673 | E141: 359665.9647 | F141: 550835.4716 | G141: 550835.5029 | H141: 550835.4958 | I141: 550835.4712 | J141: 550835.4948
C142: Substation Refurbishment | D142: 2498378.19 | E142: 2041711.434 | F142: 5854206.596 | G142: 0 | H142: 0 | I142: 0 | J142: 0
C143: Network Technology | E143: 0 | F143: 0 | G143: 0 | H143: 0 | I143: 0 | J143: 0
C144: Towers | D144: 3007183.293 | E144: 4071210.586 | F144: 67359.00583 | G144: 1311372.264 | H144: 1311372.317 | I144: 1311372.304 | J144: 1311372.325
C145: Substation Civil Assets | D145: 5338785.151 | E145: 5778326.003 | F145: 5775436.114 | G145: 3565373.876 | H145: 4450373.091 | I145: 3723988.854 | J145: 3338470.057
C146: Innovation | D146: 0 | E146: 0 | F146: 4000000 | G146: 4000000 | H146: 4000000 | I146: 4000000 | J146: 4000000
B181: ASSET REPLACEMENTS
D182: VOLUMES (0's)
B183: ASSET GROUP | C183: ASSET CATEGORY | D183: =CRCP_y4 -> 2022-23 | E183: =CRCP_y5 -> 2023-24 | F183: =FRCP_y1 -> 2024-25 | G183: =FRCP_y2 -> 2025-26 | H183: =FRCP_y3 -> 2026-27 | I183: =FRCP_y4 -> 2027-28 | J183: =FRCP_y5 -> 2028-29
B184: POLES BY: HIGHEST OPERATING VOLTAGE ; MATERIAL TYPE | C184: Staking of a wooden pole | D184: 0 | E184: 0 | F184: 0 | G184: 0 | H184: 0 | I184: 0 | J184: 0
C185: ˂ = 1 kV; Wood | D185: 862.3165255 | E185: 728.7847205 | F185: 1149.911612 | G185: 1148.28102 | H185: 1146.650476 | I185: 1143.911233 | J185: 1142.280669
C186: > 1 kV & < = 11 kV; Wood | D186: 698.1152387 | E186: 592.9709634 | F186: 927.6399434 | G186: 926.1254874 | H186: 925.6110696 | I186: 925.0623597 | J186: 924.5479257
C187: ˃ 11 kV & < = 22 kV; Wood | D187: 16.25049224 | E187: 13.83299409 | F187: 21.54426616 | G187: 21.53657312 | H187: 21.52888097 | I187: 21.52067606 | J187: 21.51298353
C188: > 22 kV & < = 66 kV; Wood | D188: 57.42241555 | E188: 48.73260825 | F188: 76.45255378 | G188: 76.42525842 | H188: 76.39796622 | I188: 76.36885474 | J188: 76.3415612
C189: > 66 kV & < = 132 kV; Wood | D189: 9.498541914 | E189: 8.102642406 | F189: 12.5729636 | G189: 11.57296317 | H189: 12.57296326 | I189: 12.57296339 | J189: 12.57296326
C190: > 132 kV; Wood | D190: 0 | E190: 0 | F190: 0 | G190: 0 | H190: 0 | I190: 0 | J190: 0
C191: ˂ = 1 kV; Concrete | D191: 16.0801938 | E191: 13.71705903 | F191: 21.28491858 | G191: 21.28491786 | H191: 21.28491801 | I191: 21.28491822 | J191: 21.28491801
C192: > 1 kV & < = 11 kV; Concrete | D192: 69.10197919 | E192: 58.94679752 | F192: 91.46842501 | G192: 90.46842195 | H192: 91.46842258 | I192: 91.46842349 | J192: 91.46842256
C193: ˃ 11 kV & < = 22 kV; Concrete | D193: 7.825951952 | E193: 6.675855172 | F193: 10.3590014 | G193: 10.35900106 | H193: 10.35900113 | I193: 10.35900123 | J193: 10.35900112
C194: > 22 kV & < = 66 kV; Concrete | D194: 11.08233786 | E194: 9.453684733 | F194: 14.66939154 | G194: 14.66939105 | H194: 14.66939115 | I194: 14.6693913 | J194: 14.66939115
C195: > 66 kV & < = 132 kV; Concrete | D195: 17.38437434 | E195: 14.82957806 | F195: 23.01122717 | G195: 23.0112264 | H195: 23.01122655 | I195: 23.01122678 | J195: 23.01122655
C196: > 132 kV; Concrete | D196: 0 | E196: 0 | F196: 0 | G196: 0 | H196: 0 | I196: 0 | J196: 0
C197: ˂ = 1 kV; Steel | D197: 100.2628331 | E197: 85.52827271 | F197: 132.7152064 | G197: 132.7152019 | H197: 132.7152028 | I197: 132.7152042 | J197: 132.7152028
C198: > 1 kV & < = 11 kV; Steel | D198: 2.943900128 | E198: 2.511266491 | F198: 3.896761153 | G198: 3.896761023 | H198: 3.89676105 | I198: 3.896761089 | J198: 3.896761049
C199: ˃ 11 kV & < = 22 kV; Steel | D199: 1.885480316 | E199: 1.608391362 | F199: 2.495759411 | G199: 2.495759328 | H199: 2.495759345 | I199: 2.49575937 | J199: 2.495759344
C200: > 22 kV & < = 66 kV; Steel | D200: 1.406273897 | E200: 1.199608805 | F200: 1.861446806 | G200: 1.861446744 | H200: 1.861446757 | I200: 1.861446776 | J200: 1.861446757
C201: > 66 kV & < = 132 kV; Steel | D201: 0.5015676032 | E201: 0.4278575563 | F201: 0.6639115007 | G201: 0.6639114784 | H201: 0.663911483 | I201: 0.6639114896 | J201: 0.6639114829
C202: > 132 kV; Steel | D202: 0 | E202: 0 | F202: 0 | G202: 0 | H202: 0 | I202: 0 | J202: 0
C203: Other | D203: 0 | E203: 0 | F203: 0 | G203: 0 | H203: 0 | I203: 0 | J203: 0
B204: POLE TOP STRUCTURES BY: HIGHEST OPERATING VOLTAGE | C204: ˂ = 1 kV | D204: 1883.371627 | E204: 1939.543442 | F204: 4046.493616 | G204: 4045.493617 | H204: 4045.49371 | I204: 4044.493694 | J204: 4044.493653
C205: > 1 kV & < = 11 kV | D205: 1501.685699 | E205: 1279.613898 | F205: 5414.277223 | G205: 5410.27729 | H205: 5406.277264 | I205: 5402.277216 | J205: 5398.277267
C206: ˃ 11 kV & < = 22 kV | D206: 0 | E206: 0 | F206: 25.18220657 | G206: 25.18220657 | H206: 25.18220657 | I206: 25.18220657 | J206: 25.18220657
C207: > 22 kV & < = 66 kV | D207: 474.8567182 | E207: 463.5187937 | F207: 660.6917681 | G207: 660.6917733 | H207: 660.691813 | I207: 659.6918102 | J207: 659.6918199
C208: > 66 kV & < = 132 kV | D208: 0 | E208: 0 | F208: 0 | G208: 0 | H208: 0 | I208: 0 | J208: 0
C209: > 132 kV | D209: 0 | E209: 0 | F209: 0 | G209: 0 | H209: 0 | I209: 0 | J209: 0
C210: Other | D210: 0 | E210: 0 | F210: 0 | G210: 0 | H210: 0 | I210: 0 | J210: 0
B211: STAKING WOODEN POLES BY: HIGHEST OPERATING VOLTAGE | C211: ˂ = 1 Kv | D211: 239.7230769 | E211: 251.1384615 | F211: 263.3692308 | G211: 275.6 | H211: 287.8307692 | I211: 300.8769231 | J211: 313.1076923
C212: > 1 kV & < = 11 kV | D212: 75.76153846 | E212: 79.36923077 | F212: 83.23461538 | G212: 87.1 | H212: 90.96538462 | I212: 95.08846154 | J212: 98.95384615
C213: ˃ 11 kV & < = 22 kV | D213: 1.130769231 | E213: 1.184615385 | F213: 1.242307692 | G213: 1.3 | H213: 1.357692308 | I213: 1.419230769 | J213: 1.476923077
C214: > 22 kV & < = 66 kV | D214: 6.784615385 | E214: 7.107692308 | F214: 7.453846154 | G214: 7.8 | H214: 8.146153846 | I214: 8.515384615 | J214: 8.861538462
C215: > 66 kV & < = 132 kV | D215: 0 | E215: 0 | F215: 0 | G215: 0 | H215: 0 | I215: 0 | J215: 0
C216: > 132 kV | D216: 36.20914657 | E216: 46.88302494 | F216: 67.19823853 | G216: 35.01881311 | H216: 33.83070879 | I216: 34.22702603 | J216: 37.50306951
B217: OVERHEAD CONDUCTORS BY: Highest operating voltage; Number of phases (at HV) | C217: ˂ = 1 kV | D217: 36.26914657 | E217: 46.94302494 | F217: 67.25823853 | G217: 35.08881311 | H217: 33.90070879 | I217: 34.30702603 | J217: 37.58306951
C218: > 1 kV & < = 11 kV | D218: 80.36042009 | E218: 49.03108601 | F218: 160.5182233 | G218: 113.0081202 | H218: 113.0081204 | I218: 113.00812 | J218: 113.0081202
C219: ˃ 11 kV & < = 22 kV ; SWER | D219: 0 | E219: 0 | F219: 0 | G219: 0 | H219: 0 | I219: 0 | J219: 0
C220: ˃ 11 kV & < = 22 kV ; Single-Phase | D220: 0 | E220: 0 | F220: 0 | G220: 0 | H220: 0 | I220: 0 | J220: 0
C221: ˃ 11 kV & < = 22 kV ; Multiple-Phase | D221: 0 | E221: 0 | F221: 0 | G221: 0 | H221: 0 | I221: 0 | J221: 0
C222: > 22 kV & < = 66 kV | D222: 1.037560762 | E222: 1.163957189 | F222: 1.308695915 | G222: 1.308694564 | H222: 1.308694597 | I222: 1.30869464 | J222: 1.308694647
C223: > 66 kV & < = 132 kV | D223: 0 | E223: 0 | F223: 0 | G223: 0 | H223: 0 | I223: 0 | J223: 0
C224: > 132 kV | D224: 0 | E224: 0 | F224: 0 | G224: 0 | H224: 0 | I224: 0 | J224: 0
C225: Other | D225: 0 | E225: 0 | F225: 0 | G225: 0 | H225: 0 | I225: 0 | J225: 0
B226: UNDERGROUND CABLES BY: Highest operating voltage | C226: ˂ = 1 kV | D226: 1.123817834 | E226: 0.4473567505 | F226: 5.7706198 | G226: 5.770619886 | H226: 5.804652292 | I226: 5.770619851 | J226: 5.770619865
C227: > 1 kV & < = 11 kV | D227: 0.1941142177 | E227: 0 | F227: 0 | G227: 0.08586991823 | H227: 0.8844837621 | I227: 1.054270033 | J227: 0
C228: > 11 kV & < = 22 kV | D228: 0 | E228: 0 | F228: 0 | G228: 0 | H228: 0 | I228: 0.04828667418 | J228: 0.2571631325
C229: > 22 kV & < = 33 kV | D229: 0 | E229: 0 | F229: 0 | G229: 0 | H229: 0 | I229: 0 | J229: 0
C230: > 33 kV & < = 66 kV | D230: 0 | E230: 0 | F230: 0 | G230: 0 | H230: 0 | I230: 0 | J230: 0
C231: > 66 kV & < = 132 kV | D231: 0.4600768169 | E231: 1.903985869 | F231: 1.771669899 | G231: 1.360919274 | H231: 5.443677075 | I231: 5.443677075 | J231: 5.443677075
C232: > 132 kV | D232: 0 | E232: 0 | F232: 0 | G232: 0 | H232: 0 | I232: 0 | J232: 0
C233: Other | D233: 0 | E233: 0 | F233: 0 | G233: 0 | H233: 0 | I233: 0 | J233: 0
B234: SERVICE LINES BY: Connection voltage; Customer type; Connection complexity | C234: ˂ = 11 kV ; Residential ; Simple Type | D234: 588.7273612 | E234: 831.9271894 | F234: 2888.371429 | G234: 2875.371429 | H234: 2861.371429 | I234: 2846.371429 | J234: 2831.371429
C235: ˂ = 11 kV ; Commercial & Industrial ; Simple Type | D235: 0 | E235: 0 | F235: 0 | G235: 0 | H235: 0 | I235: 0 | J235: 0
C236: ˂ = 11 kV ; Residential ; Complex Type | D236: 0 | E236: 13.3540931 | F236: 270.2673367 | G236: 258.2673367 | H236: 246.2673367 | I236: 233.2673367 | J236: 219.2673367
... 226 more rows

Sheet 2.3 Augex (b)
B1: =INDEX(dms_Worksheet_List,MATCH(dms_Model,dms_Model_List)) -> REGULATORY REPORTING STATEMENT
B2: =INDEX(dms_TradingNameFull_List,MATCH(dms_TradingName,dms_TradingName_List)) -> Endeavour Energy
B3: =CONCATENATE("REGULATORY PERIOD FROM ", FRCP_y1," TO ",dms_MultiYear_FinalYear_Result) -> REGULATORY PERIOD FROM 2024-25 TO 2028-29
B4: 2.3 AUGEX PROJECT DATA
B6: There are FOUR tables on this worksheet. These tables have been 'grouped' (and sub-grouped) for easy navigation. See the Instructions sheet on how to group or ungroup tables.
B8: NOTE: DNSP must provide expenditure information on an 'as incurred' basis.
B9: 2.3.3 - AUGEX DATA - HV/LV FEEDERS AND DISTRIBUTION SUBSTATIONS
D10: VOLUMES (0's)
B11: PROJECT TYPE | C11: UNITS | D11: =CRCP_y4 -> 2022-23 | E11: =CRCP_y5 -> 2023-24 | F11: =FRCP_y1 -> 2024-25 | G11: =FRCP_y2 -> 2025-26 | H11: =FRCP_y3 -> 2026-27 | I11: =FRCP_y4 -> 2027-28 | J11: =FRCP_y5 -> 2028-29
B12: DESCRIPTOR METRICS - UNITS ADDED
B13: HV Feeder Augmentations - Overhead Lines | C13: Circuit Line Length in KM | D13: 9.464205897 | E13: 10.93932172 | F13: 9.243896721 | G13: 9.243896696 | H13: 11.88371462 | I13: 11.88371387 | J13: 11.88371469
B14: HV Feeder Augmentations - Underground Cables | C14: Circuit Line Length in KM | D14: 11.08731543 | E14: 12.81541334 | F14: 10.82922328 | G14: 10.82922325 | H14: 13.92176945 | I14: 13.92176857 | J14: 13.92176953
B15: LV Feeder Augmentations - Overhead Lines | C15: Circuit Line Length in KM | D15: 0 | E15: 0 | F15: 0 | G15: 0 | H15: 0 | I15: 0 | J15: 0
B16: LV Feeder Augmentations - Underground Cables | C16: Circuit Line Length in KM | D16: 1.345782145 | E16: 1.555539261 | F16: 1.31445483 | G16: 1.314454827 | H16: 1.689829144 | I16: 1.689829038 | J16: 1.689829154
B17: Distribution Substation Augmentations - Pole Mounted | C17: Number | D17: 0.6386881738 | E17: 0.738235779 | F17: 0.6238206967 | G17: 0.623820695 | H17: 0.8019677585 | I17: 0.8019677079 | J17: 0.8019677631
B18: Distribution Substation Augmentations - Ground Mounted | C18: Number | D18: 0.08781146394 | E18: 0.1014979878 | F18: 0.08576737578 | G18: 0.08576737555 | H18: 0.1102603208 | I18: 0.1102603138 | J18: 0.1102603214
B19: Distribution Substation Augmentations - Indoor | C19: Number | D19: 0 | E19: 0 | F19: 0 | G19: 0 | H19: 0 | I19: 0 | J19: 0
B20: DESCRIPTOR METRICS - UNITS UPGRADED
B21: HV Feeder Augmentations - Overhead Lines | C21: Circuit Line Length in KM | D21: 21.81577575 | E21: 25.21603948 | F21: 21.30794492 | G21: 21.30794486 | H21: 27.39294306 | I21: 27.39294133 | J21: 27.39294322
B22: HV Feeder Augmentations - Underground Cables | C22: Circuit Line Length in KM | D22: 0.03908457962 | E22: 0.04517640418 | F22: 0.03817476304 | G22: 0.03817476293 | H22: 0.04907648834 | I22: 0.04907648524 | J22: 0.04907648862
B23: LV Feeder Augmentations - Overhead Lines | C23: Circuit Line Length in KM | D23: 0 | E23: 0 | F23: 0 | G23: 0 | H23: 0 | I23: 0 | J23: 0
B24: LV Feeder Augmentations - Underground Cables | C24: Circuit Line Length in KM | D24: 0.1223438314 | E24: 0.1414126601 | F24: 0.1194958937 | G24: 0.1194958934 | H24: 0.1536208313 | I24: 0.1536208216 | J24: 0.1536208322
B25: Distribution Substation Augmentations - Pole Mounted | C25: Number | D25: 7.331204081 | E25: 8.473864676 | F25: 7.160547235 | G25: 7.160547216 | H25: 9.205414386 | I25: 9.205413805 | J25: 9.205414439
B26: Distribution Substation Augmentations - Ground Mounted | C26: Number | D26: 0.8931193964 | E26: 1.032323316 | F26: 0.8723292319 | G26: 0.8723292295 | H26: 1.121443906 | I26: 1.121443835 | J26: 1.121443913
B27: Distribution Substation Augmentations - Indoor | C27: Number | D27: 0 | E27: 0 | F27: 0 | G27: 0 | H27: 0 | I27: 0 | J27: 0
B29: COST METRICS
D30: =CONCATENATE("TOTAL DIRECT EXPENDITURE ($0's, real ", dms_DollarReal,")") -> TOTAL DIRECT EXPENDITURE ($0's, real June 2024)
B31: PROJECT TYPE | D31: =CRCP_y4 -> 2022-23 | E31: =CRCP_y5 -> 2023-24 | F31: =FRCP_y1 -> 2024-25 | G31: =FRCP_y2 -> 2025-26 | H31: =FRCP_y3 -> 2026-27 | I31: =FRCP_y4 -> 2027-28 | J31: =FRCP_y5 -> 2028-29
B32: HV Feeder Augmentations - Overhead Lines | D32: 2390430.626 | E32: 2763009.381 | F32: 2334785.831 | G32: 2334785.825 | H32: 3001540.298 | I32: 3001540.108 | J32: 3001540.315
B33: HV Feeder Augmentations - Underground Cables | D33: 4876340.77 | E33: 5636379.965 | F33: 4762828.593 | G33: 4762828.58 | H33: 6122969.295 | I33: 6122968.908 | J33: 6122969.33
B34: HV Feeder Non-Material Projects | D34: 0 | E34: 0 | F34: 0 | G34: 0 | H34: 0 | I34: 0 | J34: 0
B35: LV Feeder Augmentations - Overhead Lines | D35: 52820.23638 | E35: 61052.93623 | F35: 51590.67915 | G35: 51590.67901 | H35: 66323.64322 | I35: 66323.63903 | J35: 66323.6436
B36: LV Feeder Augmentations - Underground Cables | D36: 211281.8437 | E36: 244212.7831 | F36: 206363.5939 | G36: 206363.5933 | H36: 265295.7007 | I36: 265295.6839 | J36: 265295.7022
B37: LV Feeder Non-Material Projects | D37: 52937.89574 | E37: 61188.93429 | F37: 51705.59962 | G37: 51705.59948 | H37: 66471.38201 | I37: 66471.37781 | J37: 66471.38239
B38: Distribution Substation Augmentations - Pole Mounted | D38: 119443.8915 | E38: 138060.7281 | F38: 116663.4591 | G38: 116663.4588 | H38: 149979.5266 | I38: 149979.5171 | J38: 149979.5275
B39: Distribution Substation Augmentations - Ground Mounted | D39: 184126.513 | E39: 212824.9517 | F39: 179840.389 | G39: 179840.3885 | H39: 231198.1542 | I39: 231198.1396 | J39: 231198.1555
B40: Distribution Substation Augmentations - Indoor | D40: 0 | E40: 0 | F40: 0 | G40: 0 | H40: 0 | I40: 0 | J40: 0
B44: 2.3.4 - AUGEX - TOTAL EXPENDITURE
D45: =CONCATENATE("TOTAL DIRECT EXPENDITURE ($0's, real ", dms_DollarReal,")") -> TOTAL DIRECT EXPENDITURE ($0's, real June 2024)
D46: =CRCP_y4 -> 2022-23 | E46: =CRCP_y5 -> 2023-24 | F46: =FRCP_y1 -> 2024-25 | G46: =FRCP_y2 -> 2025-26 | H46: =FRCP_y3 -> 2026-27 | I46: =FRCP_y4 -> 2027-28 | J46: =FRCP_y5 -> 2028-29
B47: Subtransmission Substations, Switching Stations, Zone Substations | D47: 60899753.35 | E47: 60655380.29 | F47: 74797329.24 | G47: 106278150.2 | H47: 66078425.63 | I47: 45510573.45 | J47: 26622489.52
B48: Subtransmission Lines | D48: 51596702.19 | E48: 37402394.8 | F48: 18504739.07 | G48: 2048628.828 | H48: 2257795.743 | I48: 7731045.233 | J48: 12803795.64
B49: HV Feeders | D49: 9001713.25 | E49: 11032776.15 | F49: 9861185.18 | G49: 10078413.11 | H49: 10216183.1 | I49: 10216183.05 | J49: 7716183.377
B50: HV Feeders - Land Purchases and Easements | D50: 0 | E50: 0 | F50: 0 | G50: 0 | H50: 0 | I50: 0 | J50: 0
B51: Distribution Substations | D51: 244161.4559 | E51: 244398.1421 | F51: 239899.5692 | G51: 239899.567 | H51: 239899.5464 | I51: 239899.5439 | J51: 239899.561
B52: Distribution Substations - Land Purchases and Easements | D52: 0 | E52: 0 | F52: 0 | G52: 0 | H52: 0 | I52: 0 | J52: 0
B53: LV Feeders | D53: 142596.5824 | E53: 141636.4027 | F53: 139899.5641 | G53: 139899.5641 | H53: 139899.5641 | I53: 139899.5641 | J53: 139899.5641
B54: LV Feeders - Land Purchases and Easements | D54: 0 | E54: 0 | F54: 0 | G54: 0 | H54: 0 | I54: 0 | J54: 0
B55: Other Assets | D55: 0 | E55: 0 | F55: 0 | G55: 0 | H55: 0 | I55: 0 | J55: 0
B59: 2.3.5 - AUGEX - BY DRIVER
D60: =CONCATENATE("TOTAL DIRECT EXPENDITURE ($0's, real ", dms_DollarReal,")") -> TOTAL DIRECT EXPENDITURE ($0's, real June 2024)
D61: =CRCP_y4 -> 2022-23 | E61: =CRCP_y5 -> 2023-24 | F61: =FRCP_y1 -> 2024-25 | G61: =FRCP_y2 -> 2025-26 | H61: =FRCP_y3 -> 2026-27 | I61: =FRCP_y4 -> 2027-28 | J61: =FRCP_y5 -> 2028-29
B62: "Greenfield" driven augex (network expansion capex) | D62: 111264191.4 | E62: 95450545.72 | F62: 81002080.71 | G62: 99968125.66 | H62: 73228425.41 | I62: 58133822.99 | J62: 41818489.21
B63: Reinforcement driven augex (augmentation of the existing network) | D63: 10620735.39 | E63: 14026040.08 | F63: 22540971.92 | G63: 18816865.65 | H63: 5703778.166 | I63: 5703777.849 | J63: 5703778.456
B67: 2.3.6 - AUGEX - GREENFIELDS DRIVEN
D68: =CONCATENATE("TOTAL DIRECT EXPENDITURE ($0's, real ", dms_DollarReal,")") -> TOTAL DIRECT EXPENDITURE ($0's, real June 2024)
D69: =CRCP_y4 -> 2022-23 | E69: =CRCP_y5 -> 2023-24 | F69: =FRCP_y1 -> 2024-25 | G69: =FRCP_y2 -> 2025-26 | H69: =FRCP_y3 -> 2026-27 | I69: =FRCP_y4 -> 2027-28 | J69: =FRCP_y5 -> 2028-29
B70: Subtransmission Substations, Switching Stations, Zone Substations | D70: 58253375.85 | E70: 57525895.53 | F70: 72636818.8 | G70: 93365062.66 | H70: 66078425.63 | I70: 45510573.45 | J70: 26622489.52
B71: Subtransmission Lines | D71: 49326207.6 | E71: 32869415.4 | F71: 4551835.156 | G71: 1940833.325 | H71: 2150000.139 | I71: 7623249.947 | J71: 12695999.74
B72: HV Feeders | D72: 3583043.119 | E72: 4952473.049 | F72: 3713426.741 | G72: 4562229.672 | H72: 4899999.665 | I72: 4899999.616 | J72: 2399999.943
B73: HV Feeders - Land Purchases and Easements | D73: 0 | E73: 0 | F73: 0 | G73: 0 | H73: 0 | I73: 0 | J73: 0
B74: Distribution Substations | D74: 101564.8735 | E74: 102761.7394 | F74: 100000.0051 | G74: 100000.0029 | H74: 99999.98236 | I74: 99999.9798 | J74: 99999.99698
B75: Distribution Substations - Land Purchases and Easements | D75: 0 | E75: 0 | F75: 0 | G75: 0 | H75: 0 | I75: 0 | J75: 0
B76: LV Feeders | D76: 0 | E76: 0 | F76: 0 | G76: 0 | H76: 0 | I76: 0 | J76: 0
B77: LV Feeders - Land Purchases and Easements | D77: 0 | E77: 0 | F77: 0 | G77: 0 | H77: 0 | I77: 0 | J77: 0
B78: Other Assets | D78: 0 | E78: 0 | F78: 0 | G78: 0 | H78: 0 | I78: 0 | J78: 0

Sheet 2.5 Connections
B1: =INDEX(dms_Worksheet_List,MATCH(dms_Model,dms_Model_List)) -> REGULATORY REPORTING STATEMENT
B2: =INDEX(dms_TradingNameFull_List,MATCH(dms_TradingName,dms_TradingName_List)) -> Endeavour Energy
B3: =CONCATENATE("REGULATORY PERIOD FROM ", FRCP_y1," TO ",dms_MultiYear_FinalYear_Result) -> REGULATORY PERIOD FROM 2024-25 TO 2028-29
B4: 2.5 CONNECTIONS
B6: There are THREE tables on this worksheet - each has been 'grouped' (and sub-grouped) for easy navigation. See the Instructions sheet on how to group or ungroup tables.
B8: 2.5.1 - DESCRIPTOR METRICS
B9: VOLUMES AND EXPENDITURE - ALL
B10: CONNECTION SUBCATEGORY | C10: DESCRIPTOR METRIC | D10: Unit of Measure | E10: =CONCATENATE("VOLUMES and EXPENDITURE (0's, real ", dms_DollarReal, ")") -> VOLUMES and EXPENDITURE (0's, real June 2024)
E11: =CRCP_y4 -> 2022-23 | F11: =CRCP_y5 -> 2023-24 | G11: =FRCP_y1 -> 2024-25 | H11: =FRCP_y2 -> 2025-26 | I11: =FRCP_y3 -> 2026-27 | J11: =FRCP_y4 -> 2027-28 | K11: =FRCP_y5 -> 2028-29
B12: RESIDENTIAL | C12: Underground connections | D12: 0's | E12: 3454.997681 | F12: 3420.589486 | G12: 4847.440532 | H12: 3947.213303 | I12: 3963.58144 | J12: 4288.565043 | K12: 4410.195955
C13: Overhead connections | D13: 0's | E13: 1616.850276 | F13: 1243.080521 | G13: 1205.347291 | H13: 1080.284666 | I13: 1145.037817 | J13: 1389.378705 | K13: 1316.432675
C14: Distribution substations installed | D14: MVA added | E14: 27.33333333 | F14: 27.33333333 | G14: 27.33333333 | H14: 25.8 | I14: 25.16 | J14: 26.592 | K14: 26.44373333
C15: Distribution substations installed | D15: 0's | E15: 51 | F15: 51 | G15: 51 | H15: 47.8 | I15: 46.96 | J15: 49.552 | K15: 49.2624
C16: Distribution substations installed | D16: total spend $0s | E16: 2011599.982 | F16: 2143333.498 | G16: 2685305.604 | H16: 2513449.165 | I16: 2588199.578 | J16: 2365701.185 | K16: 2437689.656
C17: Augmentation HV | D17: net circuit KM added | E17: 6.832777571 | F17: 7.199333085 | G17: 7.039199702 | H17: 6.047039642 | I17: 6.05644757 | J17: 6.634959514 | K17: 6.595395903
C18: Augmentation HV | D18: total spend $0s | E18: 639104.1772 | F18: 721643.6613 | G18: 971369.3985 | H18: 850701.6439 | I18: 740283.4652 | J18: 774826.6692 | K18: 803219.4826
C19: Augmentation LV | D19: net circuit KM added | E19: 2.955419763 | F19: 3.146503716 | G19: 2.975804459 | H19: 2.370965351 | I19: 2.445158421 | J19: 2.778770342 | K19: 2.743440458
C20: Augmentation LV | D20: total spend $0s | E20: 226037.5184 | F20: 245380.6946 | G20: 329068.4288 | H20: 267724.6802 | I20: 243900.257 | J20: 259795.644 | K20: 266450.7185
C21: Mean days to connect residential customer with LV single phase connection | D21: 0's | E21: 0 | F21: 0 | G21: 0 | H21: 0 | I21: 0 | J21: 0 | K21: 0
C22: Volume of GSL breaches for residential customers | D22: 0's | E22: 0 | F22: 0 | G22: 0 | H22: 0 | I22: 0 | J22: 0 | K22: 0
C23: Volume of customer complaints relating to connection services | D23: 0's | E23: 0 | F23: 0 | G23: 0 | H23: 0 | I23: 0 | J23: 0 | K23: 0
C24: GSL payments | D24: $0's | E24: 0 | F24: 0 | G24: 0 | H24: 0 | I24: 0 | J24: 0 | K24: 0
B25: COMMERCIAL/INDUSTRIAL | C25: Underground connections | D25: 0's | E25: 59.18263423 | F25: 862.5947143 | G25: 1810.8095 | H25: 2451.777402 | I25: 1824.492181 | J25: 1950.457192 | K25: 1932.458135
C26: Overhead connections | D26: 0's | E26: 16.00280463 | F26: 158.2127283 | G26: 351.525819 | H26: 435.4550184 | I26: 331.8213839 | J26: 391.0867916 | K26: 362.2308647
C27: Distribution substations installed | D27: MVA added | E27: 96 | F27: 91.66666667 | G27: 95.13333333 | H27: 92.36 | I27: 91.232 | J27: 93.2784 | K27: 92.73408
C28: Distribution substations installed | D28: 0's | E28: 107 | F28: 100.3333333 | G28: 105.6666667 | H28: 101.4 | I28: 101.28 | J28: 103.136 | K28: 102.3632
C29: Distribution substations installed | D29: total spend $0s | E29: 5058858.367 | F29: 5368797.738 | G29: 6887715.145 | H29: 6571993.685 | I29: 6454898.388 | J29: 6004565.184 | K29: 6197816.292
C30: Augmentation HV | D30: net circuit KM added | E30: 19.49615623 | F30: 20.99538747 | G30: 19.59446497 | H30: 17.91335796 | I30: 18.69602955 | J30: 19.33907923 | K30: 19.30766384
C31: Augmentation HV | D31: total spend $0s | E31: 1919092.065 | F31: 2114884.95 | G31: 2768439.932 | H31: 2615391.674 | I31: 2432753.377 | J31: 2341152.267 | K31: 2429798.646
C32: Augmentation LV | D32: net circuit KM added | E32: 5.119642188 | F32: 5.943570626 | G32: 5.532284751 | H32: 5.438741701 | I32: 5.326490042 | J32: 5.472145862 | K32: 5.542646596
C33: Augmentation LV | D33: total spend $0s | E33: 419838.7324 | F33: 515017.8652 | G33: 683218.4943 | H33: 684826.9583 | I33: 564804.2535 | J33: 563680.0617 | K33: 595551.4428
B34: SUBDIVISION | C34: Underground connections | D34: 0's | E34: 12020.58981 | F34: 12630.40903 | G34: 15522.15011 | H34: 14664.44866 | I34: 15141.28108 | J34: 15278.12655 | K34: 15821.44462
C35: Overhead connections | D35: 0's | E35: 362.5622365 | F35: 459.9209607 | G35: 627.0620622 | H35: 619.0533723 | I35: 646.0996657 | J35: 585.9296977 | K35: 632.9267465
C36: Distribution substations installed | D36: MVA added | E36: 40 | F36: 41 | G36: 40.2 | H36: 40.84 | I36: 38.408 | J36: 40.0896 | K36: 40.10752
C37: Distribution substations installed | D37: 0's | E37: 98.33333333 | F37: 100.7777778 | G37: 98.82222222 | H37: 100.3866667 | I37: 94.864 | J37: 98.6368 | K37: 98.69749333
C38: Distribution substations installed | D38: total spend $0s | E38: 4280541.946 | F38: 4357008.165 | G38: 5356998.692 | H38: 5084931.678 | I38: 4855395.072 | J38: 4754324.002 | K38: 4842657.358
C39: Augmentation HV | D39: net circuit KM added | E39: 33.79700801 | F39: 35.35640962 | G39: 30.62769154 | H39: 27.75322985 | I39: 28.10387582 | J39: 31.12764297 | K39: 30.59376996
C40: Augmentation HV | D40: total spend $0s | E40: 4035490.758 | F40: 4289875.541 | G40: 5279603.784 | H40: 4829503.652 | I40: 4251582.525 | J40: 4501130.063 | K40: 4588652.062
C41: Augmentation LV | D41: net circuit KM added | E41: 7.410841432 | F41: 7.693009718 | G41: 6.831611662 | H41: 7.397933994 | I41: 6.477520793 | J41: 7.16218352 | K41: 7.112451937
C42: Augmentation LV | D42: total spend $0s | E42: 773780.792 | F42: 822094.7932 | G42: 1028299.663 | H42: 1086288.536 | I42: 826541.4205 | J42: 897642.5067 | K42: 922158.8425
C43: Cost per lot | D43: $0's | E43: 734.0468295 | F43: 723.3567453 | G43: 722.3201981 | H43: 719.7776952 | I43: 629.2062743 | J43: 640.0063395 | K43: 629.2229603
B44: EMBEDDED GENERATION | C44: Underground connections | D44: 0's | E44: 7250.8 | F44: 8355.56 | G44: 9960.072 | H44: 10852.4864 | I44: 10060.98368 | J44: 9295.980416 | K44: 9705.016499
C45: Overhead connections | D45: 0's | E45: 7211.8 | F45: 8442.16 | G45: 10022.192 | H45: 10235.6304 | I45: 9541.35648 | J45: 9090.627776 | K45: 9466.393331
C46: Distribution substations installed | D46: MVA added | E46: 0 | F46: 0 | G46: 0 | H46: 0 | I46: 0 | J46: 0 | K46: 0
C47: Distribution substations installed | D47: 0's | E47: 0 | F47: 0 | G47: 0 | H47: 0 | I47: 0 | J47: 0 | K47: 0
C48: Distribution substations installed | D48: total spend $0's | E48: 0 | F48: 0 | G48: 0 | H48: 0 | I48: 0 | J48: 0 | K48: 0
C49: Augmentation HV | D49: net circuit KM added | E49: 0 | F49: 0 | G49: 0 | H49: 0 | I49: 0 | J49: 0 | K49: 0
C50: Augmentation HV | D50: total spend $0s | E50: 0 | F50: 0 | G50: 0 | H50: 0 | I50: 0 | J50: 0 | K50: 0
C51: Augmentation LV | D51: net circuit KM added | E51: 0 | F51: 0 | G51: 0 | H51: 0 | I51: 0 | J51: 0 | K51: 0
C52: Augmentation LV | D52: total spend $0s | E52: 0 | F52: 0 | G52: 0 | H52: 0 | I52: 0 | J52: 0 | K52: 0
B54: VOLUMES AND EXPENDITURE - STANDARD CONTROL SERVICES
B55: CONNECTION SUBCATEGORY | C55: DESCRIPTOR METRIC | D55: Unit of Measure | E55: =CONCATENATE("VOLUMES and EXPENDITURE (0's, real ", dms_DollarReal, ")") -> VOLUMES and EXPENDITURE (0's, real June 2024)
E56: =CRCP_y4 -> 2022-23 | F56: =CRCP_y5 -> 2023-24 | G56: =FRCP_y1 -> 2024-25 | H56: =FRCP_y2 -> 2025-26 | I56: =FRCP_y3 -> 2026-27 | J56: =FRCP_y4 -> 2027-28 | K56: =FRCP_y5 -> 2028-29
B57: RESIDENTIAL | C57: Underground connections | D57: 0's | E57: 3454.997681 | F57: 3420.589486 | G57: 4847.440532 | H57: 3947.213303 | I57: 3963.58144 | J57: 4288.565043 | K57: 4410.195955
C58: Overhead connections | D58: 0's | E58: 1616.850276 | F58: 1243.080521 | G58: 1205.347291 | H58: 1080.284666 | I58: 1145.037817 | J58: 1389.378705 | K58: 1316.432675
C59: Distribution substations installed | D59: MVA added | E59: 27.33333333 | F59: 27.33333333 | G59: 27.33333333 | H59: 25.8 | I59: 25.16 | J59: 26.592 | K59: 26.44373333
C60: Distribution substations installed | D60: 0's | E60: 51 | F60: 51 | G60: 51 | H60: 47.8 | I60: 46.96 | J60: 49.552 | K60: 49.2624
C61: Distribution substations installed | D61: total spend $0s | E61: 2011599.982 | F61: 2143333.498 | G61: 2685305.604 | H61: 2513449.165 | I61: 2588199.578 | J61: 2365701.185 | K61: 2437689.656
C62: Augmentation HV | D62: net circuit KM added | E62: 6.832777571 | F62: 7.199333085 | G62: 7.039199702 | H62: 6.047039642 | I62: 6.05644757 | J62: 6.634959514 | K62: 6.595395903
C63: Augmentation HV | D63: total spend $0s | E63: 639104.1772 | F63: 721643.6613 | G63: 971369.3985 | H63: 850701.6439 | I63: 740283.4652 | J63: 774826.6692 | K63: 803219.4826
C64: Augmentation LV | D64: net circuit KM added | E64: 2.955419763 | F64: 3.146503716 | G64: 2.975804459 | H64: 2.370965351 | I64: 2.445158421 | J64: 2.778770342 | K64: 2.743440458
C65: Augmentation LV | D65: total spend $0s | E65: 226037.5184 | F65: 245380.6946 | G65: 329068.4288 | H65: 267724.6802 | I65: 243900.257 | J65: 259795.644 | K65: 266450.7185
C66: Mean days to connect residential customer with LV single phase connection | D66: 0's | E66: 0 | F66: 0 | G66: 0 | H66: 0 | I66: 0 | J66: 0 | K66: 0
C67: Volume of GSL breaches for residential customers | D67: 0's | E67: 0 | F67: 0 | G67: 0 | H67: 0 | I67: 0 | J67: 0 | K67: 0
C68: Volume of customer complaints relating to connection services | D68: 0's | E68: 0 | F68: 0 | G68: 0 | H68: 0 | I68: 0 | J68: 0 | K68: 0
C69: GSL payments | D69: $0's | E69: 0 | F69: 0 | G69: 0 | H69: 0 | I69: 0 | J69: 0 | K69: 0
B70: COMMERCIAL/INDUSTRIAL | C70: Underground connections | D70: 0's | E70: 59.18263423 | F70: 862.5947143 | G70: 1810.8095 | H70: 2451.777402 | I70: 1824.492181 | J70: 1950.457192 | K70: 1932.458135
C71: Overhead connections | D71: 0's | E71: 16.00280463 | F71: 158.2127283 | G71: 351.525819 | H71: 435.4550184 | I71: 331.8213839 | J71: 391.0867916 | K71: 362.2308647
C72: Distribution substations installed | D72: MVA added | E72: 96 | F72: 91.66666667 | G72: 95.13333333 | H72: 92.36 | I72: 91.232 | J72: 93.2784 | K72: 92.73408
C73: Distribution substations installed | D73: 0's | E73: 107 | F73: 100.3333333 | G73: 105.6666667 | H73: 101.4 | I73: 101.28 | J73: 103.136 | K73: 102.3632
C74: Distribution substations installed | D74: total spend $0s | E74: 5058858.367 | F74: 5368797.738 | G74: 6887715.145 | H74: 6571993.685 | I74: 6454898.388 | J74: 6004565.184 | K74: 6197816.292
C75: Augmentation HV | D75: net circuit KM added | E75: 19.49615623 | F75: 20.99538747 | G75: 19.59446497 | H75: 17.91335796 | I75: 18.69602955 | J75: 19.33907923 | K75: 19.30766384
C76: Augmentation HV | D76: total spend $0s | E76: 1919092.065 | F76: 2114884.95 | G76: 2768439.932 | H76: 2615391.674 | I76: 2432753.377 | J76: 2341152.267 | K76: 2429798.646
C77: Augmentation LV | D77: net circuit KM added | E77: 5.119642188 | F77: 5.943570626 | G77: 5.532284751 | H77: 5.438741701 | I77: 5.326490042 | J77: 5.472145862 | K77: 5.542646596
C78: Augmentation LV | D78: total spend $0s | E78: 419838.7324 | F78: 515017.8652 | G78: 683218.4943 | H78: 684826.9583 | I78: 564804.2535 | J78: 563680.0617 | K78: 595551.4428
B79: SUBDIVISION | C79: Underground connections | D79: 0's | E79: 12020.58981 | F79: 12630.40903 | G79: 15522.15011 | H79: 14664.44866 | I79: 15141.28108 | J79: 15278.12655 | K79: 15821.44462
C80: Overhead connections | D80: 0's | E80: 362.5622365 | F80: 459.9209607 | G80: 627.0620622 | H80: 619.0533723 | I80: 646.0996657 | J80: 585.9296977 | K80: 632.9267465
C81: Distribution substations installed | D81: MVA added | E81: 40 | F81: 41 | G81: 40.2 | H81: 40.84 | I81: 38.408 | J81: 40.0896 | K81: 40.10752
C82: Distribution substations installed | D82: 0's | E82: 98.33333333 | F82: 100.7777778 | G82: 98.82222222 | H82: 100.3866667 | I82: 94.864 | J82: 98.6368 | K82: 98.69749333
C83: Distribution substations installed | D83: total spend $0s | E83: 4280541.946 | F83: 4357008.165 | G83: 5356998.692 | H83: 5084931.678 | I83: 4855395.072 | J83: 4754324.002 | K83: 4842657.358
C84: Augmentation HV | D84: net circuit KM added | E84: 33.79700801 | F84: 35.35640962 | G84: 30.62769154 | H84: 27.75322985 | I84: 28.10387582 | J84: 31.12764297 | K84: 30.59376996
C85: Augmentation HV | D85: total spend $0s | E85: 4035490.758 | F85: 4289875.541 | G85: 5279603.784 | H85: 4829503.652 | I85: 4251582.525 | J85: 4501130.063 | K85: 4588652.062
C86: Augmentation LV | D86: net circuit KM added | E86: 7.410841432 | F86: 7.693009718 | G86: 6.831611662 | H86: 7.397933994 | I86: 6.477520793 | J86: 7.16218352 | K86: 7.112451937
C87: Augmentation LV | D87: total spend $0s | E87: 773780.792 | F87: 822094.7932 | G87: 1028299.663 | H87: 1086288.536 | I87: 826541.4205 | J87: 897642.5067 | K87: 922158.8425
C88: Cost per lot | D88: $0's | E88: 734.0468295 | F88: 723.3567453 | G88: 722.3201981 | H88: 719.7776952 | I88: 629.2062743 | J88: 640.0063395 | K88: 629.2229603
B89: EMBEDDED GENERATION | C89: Underground connections | D89: 0's | E89: 7250.8 | F89: 8355.56 | G89: 9960.072 | H89: 10852.4864 | I89: 10060.98368 | J89: 9295.980416 | K89: 9705.016499
C90: Overhead connections | D90: 0's | E90: 7211.8 | F90: 8442.16 | G90: 10022.192 | H90: 10235.6304 | I90: 9541.35648 | J90: 9090.627776 | K90: 9466.393331
C91: Distribution substations installed | D91: MVA added | E91: 0 | F91: 0 | G91: 0 | H91: 0 | I91: 0 | J91: 0 | K91: 0
C92: Distribution substations installed | D92: 0's | E92: 0 | F92: 0 | G92: 0 | H92: 0 | I92: 0 | J92: 0 | K92: 0
C93: Distribution substations installed | D93: total spend $0s | E93: 0 | F93: 0 | G93: 0 | H93: 0 | I93: 0 | J93: 0 | K93: 0
C94: Augmentation HV | D94: net circuit KM added | E94: 0 | F94: 0 | G94: 0 | H94: 0 | I94: 0 | J94: 0 | K94: 0
C95: Augmentation HV | D95: total spend $0s | E95: 0 | F95: 0 | G95: 0 | H95: 0 | I95: 0 | J95: 0 | K95: 0
C96: Augmentation LV | D96: net circuit KM added | E96: 0 | F96: 0 | G96: 0 | H96: 0 | I96: 0 | J96: 0 | K96: 0
C97: Augmentation LV | D97: total spend $0s | E97: 0 | F97: 0 | G97: 0 | H97: 0 | I97: 0 | J97: 0 | K97: 0
B101: 2.5.2 - COST METRICS BY CONNECTION CLASSIFICATION
B102: EXPENDITURE - ALL
B103: CONNECTION SUBCATEGORY | C103: CONNECTION CLASSICIATION | E103: =CONCATENATE("EXPENDITURE ($0's, real ", dms_DollarReal, ")") -> EXPENDITURE ($0's, real June 2024)
E104: =CRCP_y4 -> 2022-23 | F104: =CRCP_y5 -> 2023-24 | G104: =FRCP_y1 -> 2024-25 | H104: =FRCP_y2 -> 2025-26 | I104: =FRCP_y3 -> 2026-27 | J104: =FRCP_y4 -> 2027-28 | K104: =FRCP_y5 -> 2028-29
B105: RESIDENTIAL | C105: Simple connection LV | E105: 12377808.58 | F105: 12521735.51 | G105: 13532456.75 | H105: 12231957.76 | I105: 12455996.2 | J105: 12661278.96 | K105: 12968418.82
C106: Complex connection LV | E106: 0 | F106: 0 | G106: 0 | H106: 0 | I106: 0 | J106: 0 | K106: 0
C107: Complex connection HV | E107: 0 | F107: 0 | G107: 0 | H107: 0 | I107: 0 | J107: 0 | K107: 0
B108: COMMERCIAL/INDUSTRIAL | C108: Simple connection LV | E108: 0 | F108: 0 | G108: 0 | H108: 0 | I108: 0 | J108: 0 | K108: 0
C109: Complex connection HV (customer connected at LV, minor HV works) | E109: 41375078.17 | F109: 40449017.89 | G109: 46248343.2 | H109: 43299478.82 | I109: 43609242.3 | J109: 43202267.94 | K109: 44475426.71
C110: Complex connection HV (customer connected at LV, upstream asset works) | E110: 0 | F110: 0 | G110: 0 | H110: 0 | I110: 0 | J110: 0 | K110: 0
C111: Complex connection HV (customer connected at HV) | E111: 0 | F111: 0 | G111: 0 | H111: 0 | I111: 0 | J111: 0 | K111: 0
C112: Complex connection sub-transmission | E112: 37488365.15 | F112: 43216917.72 | G112: 42355561.59 | H112: 41983609.06 | I112: 39832728.74 | J112: 41308085.81 | K112: 43219087.86
B113: SUBDIVISION | C113: Complex connection LV | E113: 0 | F113: 0 | G113: 0 | H113: 0 | I113: 0 | J113: 0 | K113: 0
C114: Complex connection HV (no upstream asset works) | E114: 0 | F114: 0 | G114: 0 | H114: 0 | I114: 0 | J114: 0 | K114: 0
C115: Complex connection HV (with upstream asset works) | E115: 92213757.42 | F115: 85625595.48 | G115: 89580135.61 | H115: 84775686.03 | I115: 83860754.1 | J115: 87742793.88 | K115: 88904877.12
B116: EMBEDDED GENERATION | C116: Simple connection LV | E116: 0 | F116: 0 | G116: 0 | H116: 0 | I116: 0 | J116: 0 | K116: 0
C117: Complex connection HV (small capacity) | E117: 0 | F117: 0 | G117: 0 | H117: 0 | I117: 0 | J117: 0 | K117: 0
C118: Complex connection HV (large capacity) | E118: 0 | F118: 0 | G118: 0 | H118: 0 | I118: 0 | J118: 0 | K118: 0
B120: EXPENDITURE - STANDARD CONTROL SERVICES
E121: =CONCATENATE("EXPENDITURE ($0's, real ", dms_DollarReal, ")") -> EXPENDITURE ($0's, real June 2024)
E122: =CRCP_y4 -> 2022-23 | F122: =CRCP_y5 -> 2023-24 | G122: =FRCP_y1 -> 2024-25 | H122: =FRCP_y2 -> 2025-26 | I122: =FRCP_y3 -> 2026-27 | J122: =FRCP_y4 -> 2027-28 | K122: =FRCP_y5 -> 2028-29
B123: RESIDENTIAL | C123: Simple connection LV | E123: 2876741.677 | F123: 3110357.854 | G123: 3985743.432 | H123: 3631875.489 | I123: 3572383.3 | J123: 3400323.498 | K123: 3507359.857
C124: Complex connection LV | E124: 0 | F124: 0 | G124: 0 | H124: 0 | I124: 0 | J124: 0 | K124: 0
C125: Complex connection HV | E125: 0 | F125: 0 | G125: 0 | H125: 0 | I125: 0 | J125: 0 | K125: 0
B126: COMMERCIAL/INDUSTRIAL | C126: Simple connection LV | E126: 0 | F126: 0 | G126: 0 | H126: 0 | I126: 0 | J126: 0 | K126: 0
C127: Complex connection HV (customer connected at LV, minor HV works) | E127: 7397789.164 | F127: 7998700.553 | G127: 10339373.57 | H127: 9872212.317 | I127: 9452456.018 | J127: 8909397.512 | K127: 9223166.381
C128: Complex connection HV (customer connected at LV, upstream asset works) | E128: 0 | F128: 0 | G128: 0 | H128: 0 | I128: 0 | J128: 0 | K128: 0
C129: Complex connection HV (customer connected at HV) | E129: 0 | F129: 0 | G129: 0 | H129: 0 | I129: 0 | J129: 0 | K129: 0
C130: Complex connection sub-transmission | E130: 0 | F130: 0 | G130: 0 | H130: 0 | I130: 0 | J130: 0 | K130: 0
B131: SUBDIVISION | C131: Complex connection LV | E131: 0 | F131: 0 | G131: 0 | H131: 0 | I131: 0 | J131: 0 | K131: 0
C132: Complex connection HV (no upstream asset works) | E132: 0 | F132: 0 | G132: 0 | H132: 0 | I132: 0 | J132: 0 | K132: 0
C133: Complex connection HV (with upstream asset works) | E133: 9089813.496 | F133: 9468978.499 | G133: 11664902.14 | H133: 11000723.87 | I133: 9933519.017 | J133: 10153096.57 | K133: 10353468.26
B134: EMBEDDED GENERATION | C134: Simple connection LV | E134: 0 | F134: 0 | G134: 0 | H134: 0 | I134: 0 | J134: 0 | K134: 0
C135: Complex connection HV (small capacity) | E135: 0 | F135: 0 | G135: 0 | H135: 0 | I135: 0 | J135: 0 | K135: 0
C136: Complex connection HV (large capacity) | E136: 0 | F136: 0 | G136: 0 | H136: 0 | I136: 0 | J136: 0 | K136: 0
B138: EXPENDITURE - STANDARD CONTROL SERVICES - CAPITAL CONTRIBUTIONS
E139: =CONCATENATE("EXPENDITURE ($0's, real ", dms_DollarReal, ")") -> EXPENDITURE ($0's, real June 2024)
E140: =CRCP_y4 -> 2022-23 | F140: =CRCP_y5 -> 2023-24 | G140: =FRCP_y1 -> 2024-25 | H140: =FRCP_y2 -> 2025-26 | I140: =FRCP_y3 -> 2026-27 | J140: =FRCP_y4 -> 2027-28 | K140: =FRCP_y5 -> 2028-29
B141: RESIDENTIAL | C141: Simple connection LV | E141: 9501066.903 | F141: 9411377.656 | G141: 9546713.317 | H141: 8600082.268 | I141: 8883612.899 | J141: 9260955.461 | K141: 9461058.96
C142: Complex connection LV | E142: 0 | F142: 0 | G142: 0 | H142: 0 | I142: 0 | J142: 0 | K142: 0
C143: Complex connection HV | E143: 0 | F143: 0 | G143: 0 | H143: 0 | I143: 0 | J143: 0 | K143: 0
B144: COMMERCIAL/INDUSTRIAL | C144: Simple connection LV | E144: 0 | F144: 0 | G144: 0 | H144: 0 | I144: 0 | J144: 0 | K144: 0
C145: Complex connection HV (customer connected at LV, minor HV works) | E145: 33977289.01 | F145: 32450317.34 | G145: 35908969.63 | H145: 33427266.51 | I145: 34156786.28 | J145: 34292870.43 | K145: 35252260.33
C146: Complex connection HV (customer connected at LV, upstream asset works) | E146: 0 | F146: 0 | G146: 0 | H146: 0 | I146: 0 | J146: 0 | K146: 0
C147: Complex connection HV (customer connected at HV) | E147: 0 | F147: 0 | G147: 0 | H147: 0 | I147: 0 | J147: 0 | K147: 0
C148: Complex connection sub-transmission | E148: 37488365.15 | F148: 43216917.72 | G148: 42355561.59 | H148: 41983609.06 | I148: 39832728.74 | J148: 41308085.81 | K148: 43219087.86
B149: SUBDIVISION | C149: Complex connection LV | E149: 0 | F149: 0 | G149: 0 | H149: 0 | I149: 0 | J149: 0 | K149: 0
C150: Complex connection HV (no upstream asset works) | E150: 0 | F150: 0 | G150: 0 | H150: 0 | I150: 0 | J150: 0 | K150: 0
C151: Complex connection HV (with upstream asset works) | E151: 83123943.93 | F151: 76156616.98 | G151: 77915233.47 | H151: 73774962.17 | I151: 73927235.08 | J151: 77589697.3 | K151: 78551408.85
B152: EMBEDDED GENERATION | C152: Simple connection LV | E152: 0 | F152: 0 | G152: 0 | H152: 0 | I152: 0 | J152: 0 | K152: 0
C153: Complex connection HV (small capacity) | E153: 0 | F153: 0 | G153: 0 | H153: 0 | I153: 0 | J153: 0 | K153: 0
C154: Complex connection HV (large capacity) | E154: 0 | F154: 0 | G154: 0 | H154: 0 | I154: 0 | J154: 0 | K154: 0
B158: 2.5.3 - VOLUMES BY CONNECTION CLASSIFICATION
B159: NEW CONNECTIONS - ALL
E160: VOLUMES (0's)
E161: =CRCP_y4 -> 2022-23 | F161: =CRCP_y5 -> 2023-24 | G161: =FRCP_y1 -> 2024-25 | H161: =FRCP_y2 -> 2025-26 | I161: =FRCP_y3 -> 2026-27 | J161: =FRCP_y4 -> 2027-28 | K161: =FRCP_y5 -> 2028-29
B162: RESIDENTIAL | C162: Simple connection LV | E162: 5071.847957 | F162: 4663.670006 | G162: 6052.787824 | H162: 5027.497969 | I162: 5108.619258 | J162: 5677.943748 | K162: 5726.62863
C163: Complex connection LV | E163: 0 | F163: 0 | G163: 0 | H163: 0 | I163: 0 | J163: 0 | K163: 0
C164: Complex connection HV | E164: 0 | F164: 0 | G164: 0 | H164: 0 | I164: 0 | J164: 0 | K164: 0
B165: COMMERCIAL/INDUSTRIAL | C165: Simple connection LV | E165: 0 | F165: 0 | G165: 0 | H165: 0 | I165: 0 | J165: 0 | K165: 0
C166: Complex connection HV (customer connected at LV, minor HV works) | E166: 75.18543886 | F166: 1020.807443 | G166: 2162.335319 | H166: 2887.23242 | I166: 2156.313565 | J166: 2341.543984 | K166: 2294.689
C167: Complex connection HV (customer connected at LV, upstream asset works) | E167: 0 | F167: 0 | G167: 0 | H167: 0 | I167: 0 | J167: 0 | K167: 0
C168: Complex connection HV (customer connected at HV) | E168: 0 | F168: 0 | G168: 0 | H168: 0 | I168: 0 | J168: 0 | K168: 0
C169: Complex connection sub-transmission | E169: 0 | F169: 0 | G169: 0 | H169: 0 | I169: 0 | J169: 0 | K169: 0
B170: SUBDIVISION | C170: Complex connection LV | E170: 0 | F170: 0 | G170: 0 | H170: 0 | I170: 0 | J170: 0 | K170: 0
C171: Complex connection HV (no upstream asset works) | E171: 0 | F171: 0 | G171: 0 | H171: 0 | I171: 0 | J171: 0 | K171: 0
C172: Complex connection HV (with upstream asset works) | E172: 12383.15204 | F172: 13090.32999 | G172: 16149.21218 | H172: 15283.50203 | I172: 15787.38074 | J172: 15864.05625 | K172: 16454.37137
B173: EMBEDDED GENERATION | C173: Simple connection LV | E173: 14462.6 | F173: 16797.72 | G173: 19982.264 | H173: 21088.1168 | I173: 19602.34016 | J173: 18386.60819 | K173: 19171.40983
C174: Complex connection HV (small capacity) | E174: 0 | F174: 0 | G174: 0 | H174: 0 | I174: 0 | J174: 0 | K174: 0
C175: Complex connection HV (large capacity) | E175: 0 | F175: 0 | G175: 0 | H175: 0 | I175: 0 | J175: 0 | K175: 0
B177: NEW CONNECTIONS - STANDARD CONTROL SERVICES
E178: VOLUMES (0's)
E179: =CRCP_y4 -> 2022-23 | F179: =CRCP_y5 -> 2023-24 | G179: =FRCP_y1 -> 2024-25 | H179: =FRCP_y2 -> 2025-26 | I179: =FRCP_y3 -> 2026-27 | J179: =FRCP_y4 -> 2027-28 | K179: =FRCP_y5 -> 2028-29
B180: RESIDENTIAL | C180: Simple connection LV | E180: 5071.847957 | F180: 4663.670006 | G180: 6052.787824 | H180: 5027.497969 | I180: 5108.619258 | J180: 5677.943748 | K180: 5726.62863
C181: Complex connection LV | E181: 0 | F181: 0 | G181: 0 | H181: 0 | I181: 0 | J181: 0 | K181: 0
C182: Complex connection HV | E182: 0 | F182: 0 | G182: 0 | H182: 0 | I182: 0 | J182: 0 | K182: 0
B183: COMMERCIAL/INDUSTRIAL | C183: Simple connection LV | E183: 0 | F183: 0 | G183: 0 | H183: 0 | I183: 0 | J183: 0 | K183: 0
C184: Complex connection HV (customer connected at LV, minor HV works) | E184: 75.18543886 | F184: 1020.807443 | G184: 2162.335319 | H184: 2887.23242 | I184: 2156.313565 | J184: 2341.543984 | K184: 2294.689
C185: Complex connection HV (customer connected at LV, upstream asset works) | E185: 0 | F185: 0 | G185: 0 | H185: 0 | I185: 0 | J185: 0 | K185: 0
C186: Complex connection HV (customer connected at HV) | E186: 0 | F186: 0 | G186: 0 | H186: 0 | I186: 0 | J186: 0 | K186: 0
C187: Complex connection sub-transmission | E187: 0 | F187: 0 | G187: 0 | H187: 0 | I187: 0 | J187: 0 | K187: 0
B188: SUBDIVISION | C188: Complex connection LV | E188: 0 | F188: 0 | G188: 0 | H188: 0 | I188: 0 | J188: 0 | K188: 0
C189: Complex connection HV (no upstream asset works) | E189: 0 | F189: 0 | G189: 0 | H189: 0 | I189: 0 | J189: 0 | K189: 0
C190: Complex connection HV (with upstream asset works) | E190: 12383.15204 | F190: 13090.32999 | G190: 16149.21218 | H190: 15283.50203 | I190: 15787.38074 | J190: 15864.05625 | K190: 16454.37137
B191: EMBEDDED GENERATION | C191: Simple connection LV | E191: 14462.6 | F191: 16797.72 | G191: 19982.264 | H191: 21088.1168 | I191: 19602.34016 | J191: 18386.60819 | K191: 19171.40983
C192: Complex connection HV (small capacity) | E192: 0 | F192: 0 | G192: 0 | H192: 0 | I192: 0 | J192: 0 | K192: 0
C193: Complex connection HV (large capacity) | E193: 0 | F193: 0 | G193: 0 | H193: 0 | I193: 0 | J193: 0 | K193: 0
B195: EXISTING CONNECTIONS
E196: VOLUMES (0's)
E197: =CRCP_y4 -> 2022-23 | F197: =CRCP_y5 -> 2023-24 | G197: =FRCP_y1 -> 2024-25 | H197: =FRCP_y2 -> 2025-26 | I197: =FRCP_y3 -> 2026-27 | J197: =FRCP_y4 -> 2027-28 | K197: =FRCP_y5 -> 2028-29
B198: RESIDENTIAL | C198: Simple connection LV | E198: 289996.9631 | F198: 266831.0625 | G198: 282981.5982 | H198: 261957.8671 | I198: 263841.262 | J198: 290128.9033 | K198: 289913.3821
C199: Complex connection LV | E199: 0 | F199: 0 | G199: 0 | H199: 0 | I199: 0 | J199: 0 | K199: 0
C200: Complex connection HV | E200: 0 | F200: 0 | G200: 0 | H200: 0 | I200: 0 | J200: 0 | K200: 0
B201: COMMERCIAL/INDUSTRIAL | C201: Simple connection LV | E201: 0 | F201: 0 | G201: 0 | H201: 0 | I201: 0 | J201: 0 | K201: 0
C202: Complex connection HV (customer connected at LV, minor HV works) | E202: 94711.68544 | F202: 95732.49288 | G202: 97894.8282 | H202: 100782.0606 | I202: 102938.3742 | J202: 105279.9182 | K202: 107574.6072
C203: Complex connection HV (customer connected at LV, upstream asset works) | E203: 0 | F203: 0 | G203: 0 | H203: 0 | I203: 0 | J203: 0 | K203: 0
C204: Complex connection HV (customer connected at HV) | E204: 0 | F204: 0 | G204: 0 | H204: 0 | I204: 0 | J204: 0 | K204: 0
C205: Complex connection sub-transmission | E205: 0 | F205: 0 | G205: 0 | H205: 0 | I205: 0 | J205: 0 | K205: 0
B206: SUBDIVISION | C206: Complex connection LV | E206: 0 | F206: 0 | G206: 0 | H206: 0 | I206: 0 | J206: 0 | K206: 0
C207: Complex connection HV (no upstream asset works) | E207: 0 | F207: 0 | G207: 0 | H207: 0 | I207: 0 | J207: 0 | K207: 0
C208: Complex connection HV (with upstream asset works) | E208: 708041.0369 | F208: 748960.9375 | G208: 755012.4018 | H208: 796347.1329 | I208: 815359.738 | J208: 810614.0967 | K208: 833010.6179
B209: EMBEDDED GENERATION | C209: Simple connection LV | E209: 274758.7849 | F209: 323679.6039 | G209: 383059.2356 | H209: 451813.2273 | I209: 527393.8134 | J209: 619272.1274 | K209: 728571.5895
C210: Complex connection HV (small capacity) | E210: 0 | F210: 0 | G210: 0 | H210: 0 | I210: 0 | J210: 0 | K210: 0
C211: Complex connection HV (large capacity) | E211: 0 | F211: 0 | G211: 0 | H211: 0 | I211: 0 | J211: 0 | K211: 0

Sheet 2.6 Non-network
B1: =INDEX(dms_Worksheet_List,MATCH(dms_Model,dms_Model_List)) -> REGULATORY REPORTING STATEMENT
B2: =INDEX(dms_TradingNameFull_List,MATCH(dms_TradingName,dms_TradingName_List)) -> Endeavour Energy
B3: =CONCATENATE("REGULATORY PERIOD FROM ", FRCP_y1," TO ",dms_MultiYear_FinalYear_Result) -> REGULATORY PERIOD FROM 2024-25 TO 2028-29
B4: 2.6 NON-NETWORK EXPENDITURE
B6: There are THREE tables on this worksheet - each has been 'grouped' (and sub-grouped) for easy navigation. See the Instructions sheet on how to group or ungroup tables.
B8: 2.6.1 - NON-NETWORK EXPENDITURE
E9: =CONCATENATE("EXPENDITURE ($0's, real ", dms_DollarReal, ")") -> EXPENDITURE ($0's, real June 2024)
B10: SERVICE SUBCATEGORY | C10: ASSET CATEGORY | E10: =CRCP_y4 -> 2022-23 | F10: =CRCP_y5 -> 2023-24 | G10: =FRCP_y1 -> 2024-25 | H10: =FRCP_y2 -> 2025-26 | I10: =FRCP_y3 -> 2026-27 | J10: =FRCP_y4 -> 2027-28 | K10: =FRCP_y5 -> 2028-29
B11: OPEX
B12: IT & COMMUNICATIONS | C12: Total IT and communications | E12: 43906920.66 | F12: 45130178.91 | G12: 46517847.49 | H12: 47260370.87 | I12: 47870362.71 | J12: 48529153.69 | K12: 49232416.52
B13: MOTOR VEHICLES | C13: Car | E13: 0 | F13: 0 | G13: 0 | H13: 0 | I13: 0 | J13: 0 | K13: 0
C14: Light commercial vehicle | E14: 0 | F14: 0 | G14: 0 | H14: 0 | I14: 0 | J14: 0 | K14: 0
C15: Elevated work platform (LCV) | E15: 0 | F15: 0 | G15: 0 | H15: 0 | I15: 0 | J15: 0 | K15: 0
C16: Elevated work platform (HCV) | E16: 0 | F16: 0 | G16: 0 | H16: 0 | I16: 0 | J16: 0 | K16: 0
C17: Heavy commercial vehicle | E17: 10606149.88 | F17: 10901639.98 | G17: 11236845.02 | H17: 11416208.87 | I17: 11563558.41 | J17: 11722695.87 | K17: 11892575.95
B18: BUILDINGS AND PROPERTY | C18: Total buildings and property expenditure | E18: 16312930.94 | F18: 16767413.44 | G18: 17282980.04 | H18: 17558853.01 | I18: 17785485.95 | J18: 18030249.46 | K18: 18291535.78
B19: OTHER | C19: Other expenditure | E19: 0 | F19: 0 | G19: 0 | H19: 0 | I19: 0 | J19: 0 | K19: 0
B20: OTHER - DNSP nominated | C20: Expensed leases | E20: 6033884.251 | F20: 5851587.884 | G20: 0 | H20: 0 | I20: 0 | J20: 0 | K20: 0
B31: CAPEX
B32: IT & COMMUNICATIONS | C32: Total IT and communications | E32: 49600000 | F32: 33276000 | G32: 40100000 | H32: 27700000 | I32: 19000000 | J32: 22800000 | K32: 19400000
B33: MOTOR VEHICLES | C33: Car | E33: 0 | F33: 0 | G33: 0 | H33: 0 | I33: 0 | J33: 0 | K33: 0
C34: Light commercial vehicle | E34: 0 | F34: 0 | G34: 0 | H34: 0 | I34: 0 | J34: 0 | K34: 0
C35: Elevated work platform (LCV) | E35: 0 | F35: 0 | G35: 0 | H35: 0 | I35: 0 | J35: 0 | K35: 0
C36: Elevated work platform (HCV) | E36: 0 | F36: 0 | G36: 0 | H36: 0 | I36: 0 | J36: 0 | K36: 0
C37: Heavy commercial vehicle | E37: 13164476.25 | F37: 3773740.127 | G37: 3067058 | H37: 7067058 | I37: 11116658 | J37: 5766657 | K37: 2105657
B38: BUILDINGS AND PROPERTY | C38: Total buildings and property expenditure | E38: 50056221.57 | F38: 6705688.662 | G38: 13691120.43 | H38: 4522515.388 | I38: 4783859.929 | J38: 5050296.505 | K38: 5164689.015
B39: OTHER | C39: Other expenditure | E39: 3649000 | F39: 3649000 | G39: 4167440.263 | H39: 4145654.949 | I39: 4200120.55 | J39: 4265479.148 | K39: 4499676.684
B40: OTHER - DNSP nominated | C40: Capitalised leases | E40: 0 | F40: 0 | G40: 2054559.711 | H40: 5429492.568 | I40: 2409105.858 | J40: 6838557.876 | K40: 1334338.828
B54: 2.6.2 - ANNUAL DESCRIPTOR METRICS
B55: IT & COMMUNICATIONS
E56: VOLUMES (0's)
E57: =CRCP_y4 -> 2022-23 | F57: =CRCP_y5 -> 2023-24 | G57: =FRCP_y1 -> 2024-25 | H57: =FRCP_y2 -> 2025-26 | I57: =FRCP_y3 -> 2026-27 | J57: =FRCP_y4 -> 2027-28 | K57: =FRCP_y5 -> 2028-29
B58: Employee numbers | E58: 1609.3 | F58: 1598.5 | G58: 1598.5 | H58: 1598.5 | I58: 1598.5 | J58: 1598.5 | K58: 1598.5
B59: User numbers | E59: 2503.944719 | F59: 2487.140765 | G59: 2487.140765 | H59: 2487.140765 | I59: 2487.140765 | J59: 2487.140765 | K59: 2487.140765
B60: Number of devices | E60: 3966.052047 | F60: 3939.435902 | G60: 3939.435902 | H60: 3939.435902 | I60: 3939.435902 | J60: 3939.435902 | K60: 3939.435902
B62: MOTOR VEHICLES
E63: VOLUMES (0's or %)
B64: ASSET CATEGORY | C64: DESCRIPTOR METRIC | D64: UNITS | E64: =CRCP_y4 -> 2022-23 | F64: =CRCP_y5 -> 2023-24 | G64: =FRCP_y1 -> 2024-25 | H64: =FRCP_y2 -> 2025-26 | I64: =FRCP_y3 -> 2026-27 | J64: =FRCP_y4 -> 2027-28 | K64: =FRCP_y5 -> 2028-29
B65: CAR | C65: Average kilometres travelled | D65: 0's | E65: 17188.13523 | F65: 17188.13523 | G65: 17188.13523 | H65: 17188.13523 | I65: 17188.13523 | J65: 17188.13523 | K65: 17188.13523
C66: Number purchased | D66: 0's | E66: 0 | F66: 0 | G66: 0 | H66: 0 | I66: 0 | J66: 0 | K66: 0
C67: Number leased | D67: 0's | E67: 25 | F67: 25 | G67: 25 | H67: 25 | I67: 25 | J67: 25 | K67: 25
C68: Number in fleet | D68: 0's | E68: 29 | F68: 29 | G68: 29 | H68: 29 | I68: 29 | J68: 29 | K68: 29
C69: Proportion of total fleet expenditure allocated as regulatory expenditure | D69: % | E69: 0.9145511111 | F69: 0.9145511111 | G69: 0.9145511111 | H69: 0.9145511111 | I69: 0.9145511111 | J69: 0.9145511111 | K69: 0.9145511111
B70: LIGHT COMMERCIAL VEHICLE | C70: Average kilometres travelled | D70: 0's | E70: 18116.35682 | F70: 18116.35682 | G70: 18116.35682 | H70: 18116.35682 | I70: 18116.35682 | J70: 18116.35682 | K70: 18116.35682
C71: Number purchased | D71: 0's | E71: 0 | F71: 0 | G71: 0 | H71: 0 | I71: 0 | J71: 0 | K71: 0
C72: Number leased | D72: 0's | E72: 361 | F72: 361 | G72: 361 | H72: 361 | I72: 361 | J72: 337 | K72: 313
C73: Number in fleet | D73: 0's | E73: 376 | F73: 376 | G73: 376 | H73: 376 | I73: 376 | J73: 376 | K73: 376
C74: Proportion of total fleet expenditure allocated as regulatory expenditure | D74: % | E74: 0.9145511111 | F74: 0.9145511111 | G74: 0.9145511111 | H74: 0.9145511111 | I74: 0.9145511111 | J74: 0.9145511111 | K74: 0.9145511111
B75: ELEVATED WORK PLATFORM (LCV) | C75: Average kilometres travelled | D75: 0's | E75: 0 | F75: 0 | G75: 0 | H75: 0 | I75: 0 | J75: 0 | K75: 0
C76: Number purchased | D76: 0's | E76: 0 | F76: 0 | G76: 0 | H76: 0 | I76: 0 | J76: 0 | K76: 0
C77: Number leased | D77: 0's | E77: 0 | F77: 0 | G77: 0 | H77: 0 | I77: 0 | J77: 0 | K77: 0
C78: Number in fleet | D78: 0's | E78: 0 | F78: 0 | G78: 0 | H78: 0 | I78: 0 | J78: 0 | K78: 0
C79: Proportion of total fleet expenditure allocated as regulatory expenditure | D79: % | E79: 0 | F79: 0 | G79: 0 | H79: 0 | I79: 0 | J79: 0 | K79: 0
B80: ELEVATED WORK PLATFORM (HCV) | C80: Average kilometres travelled | D80: 0's | E80: 13153.48738 | F80: 13153.48738 | G80: 13153.48738 | H80: 13153.48738 | I80: 13153.48738 | J80: 13153.48738 | K80: 13153.48738
C81: Number purchased | D81: 0's | E81: 6 | F81: 11 | G81: 3 | H81: 12 | I81: 18 | J81: 9 | K81: 1
C82: Number leased | D82: 0's | E82: 0 | F82: 0 | G82: 0 | H82: 0 | I82: 0 | J82: 0 | K82: 0
C83: Number in fleet | D83: 0's | E83: 80 | F83: 80 | G83: 80 | H83: 80 | I83: 80 | J83: 80 | K83: 80
C84: Proportion of total fleet expenditure allocated as regulatory expenditure | D84: % | E84: 0.9145511111 | F84: 0.9145511111 | G84: 0.9145511111 | H84: 0.9145511111 | I84: 0.9145511111 | J84: 0.9145511111 | K84: 0.9145511111
B85: HEAVY COMMERCIAL VEHICLE | C85: Average kilometres travelled | D85: 0's | E85: 16594.24381 | F85: 16594.24381 | G85: 16594.24381 | H85: 16594.24381 | I85: 16594.24381 | J85: 16594.24381 | K85: 16594.24381
C86: Number purchased | D86: 0's | E86: 7 | F86: 4 | G86: 4 | H86: 2 | I86: 4 | J86: 3 | K86: 1
C87: Number leased | D87: 0's | E87: 0 | F87: 0 | G87: 0 | H87: 0 | I87: 0 | J87: 0 | K87: 0
C88: Number in fleet | D88: 0's | E88: 217 | F88: 217 | G88: 217 | H88: 217 | I88: 217 | J88: 217 | K88: 217
C89: Proportion of total fleet expenditure allocated as regulatory expenditure | D89: % | E89: 0.9145511111 | F89: 0.9145511111 | G89: 0.9145511111 | H89: 0.9145511111 | I89: 0.9145511111 | J89: 0.9145511111 | K89: 0.9145511111
B92: Table 2.6.4 intentionally omitted
B94: 2.6.5 - INFORMATION & COMMUNICATIONS TECHNOLOGY - CAPEX
E95: =CONCATENATE("EXPENDITURE ($0's, real ", dms_DollarReal, ")") -> EXPENDITURE ($0's, real June 2024)
E96: =CRCP_y4 -> 2022-23 | F96: =CRCP_y5 -> 2023-24 | G96: =FRCP_y1 -> 2024-25 | H96: =FRCP_y2 -> 2025-26 | I96: =FRCP_y3 -> 2026-27 | J96: =FRCP_y4 -> 2027-28 | K96: =FRCP_y5 -> 2028-29
B97: RECURRENT
B98: Client Devices | E98: 1415138.772 | F98: 949398.3424 | G98: 7640395.307 | H98: 3157772.233 | I98: 3345917.102 | J98: 1663898.889 | K98: 1387827.042
B99: Software | E99: 2665666.887 | F99: 1788361.519 | G99: 14392050.57 | H99: 5948228.572 | I99: 6302633.07 | J99: 3134251.043 | K99: 2614220.36
B100: Hardware | E100: 752671.7523 | F100: 504957.7667 | G100: 4063707.275 | H100: 1679528.543 | I100: 1779597.406 | J100: 884980.1287 | K100: 738145.4258
B108: NON-RECURRENT
B109: Maintenance | E109: 1350946.353 | F109: 906332.4765 | G109: 421475.3497 | H109: 511184.2676 | I109: 230743.8782 | J109: 516200.7793 | K109: 441228.1244
B110: Compliance | E110: 241394.8001 | F110: 161948.6566 | G110: 75311.61959 | H110: 91341.32074 | I110: 41230.63233 | J110: 92237.69966 | K110: 78841.15805
B111: Capability growth/ expanded functions and services | E111: 43174181.36 | F111: 28965001.19 | G111: 13469708.21 | H111: 16336668.17 | I111: 7374221.8 | J111: 16496988.21 | K111: 14100976.72

Sheet 2.10 Overheads
B1: =INDEX(dms_Worksheet_List,MATCH(dms_Model,dms_Model_List)) -> REGULATORY REPORTING STATEMENT
B2: =INDEX(dms_TradingNameFull_List,MATCH(dms_TradingName,dms_TradingName_List)) -> Endeavour Energy
B3: =CONCATENATE("REGULATORY PERIOD FROM ", FRCP_y1," TO ",dms_MultiYear_FinalYear_Result) -> REGULATORY PERIOD FROM 2024-25 TO 2028-29
B4: 2.10 OVERHEADS
B6: There are TWO tables on this worksheet. Each table has been 'grouped' (and sub-grouped) for easy navigation. See the Instructions sheet on how to group or ungroup data.
B8: 2.10.1 - NETWORK OVERHEADS EXPENDITURE
D9: =CONCATENATE("EXPENDITURE ($0's, real ", dms_DollarReal, ")") -> EXPENDITURE ($0's, real June 2024)
D10: =CRCP_y4 -> 2022-23 | E10: =CRCP_y5 -> 2023-24 | F10: =FRCP_y1 -> 2024-25 | G10: =FRCP_y2 -> 2025-26 | H10: =FRCP_y3 -> 2026-27 | I10: =FRCP_y4 -> 2027-28 | J10: =FRCP_y5 -> 2028-29
B11: OPEX
B12: Standard Control Services | C12: Total | D12: 46255010.63 | E12: 47543687.27 | F12: 49005566.72 | G12: 50262788.47 | H12: 51202164.3 | I12: 52176641.35 | J12: 53008858.58
B13: Alternative Control Services | C13: Total | D13: 8144557.766 | E13: 8231572.575 | F13: 8374141.018 | G13: 8073814.516 | H13: 8000445.11 | I13: 7919668.65 | J13: 7837820.305
B14: CAPEX
B15: Standard Control Services | C15: Total | D15: 59407998.01 | E15: 58626187.02 | F15: 60719461.05 | G15: 60252624.94 | H15: 59402075.08 | I15: 58744729.22 | J15: 57823316.77
B16: Alternative Control Services | C16: Total | D16: 1510455.831 | E16: 1518337.822 | F16: 1566794.196 | G16: 1573674.592 | H16: 1576183.24 | I16: 1580247.383 | J16: 1580147.065
B17: OTHER DISTRIBUTION SERVICES
B18: Negotiated Services | C18: Total | D18: 0 | E18: 0 | F18: 0 | G18: 0 | H18: 0 | I18: 0 | J18: 0
B19: Unregulated Distribution Services | C19: Total | D19: 1259798.644 | E19: 1266372.634 | F19: 1306787.768 | G19: 1312526.376 | H19: 1314618.719 | I19: 1318008.425 | J19: 1317924.755
B23: 2.10.2 - CORPORATE OVERHEADS EXPENDITURE
D24: =CONCATENATE("EXPENDITURE ($0's, real ", dms_DollarReal, ")") -> EXPENDITURE ($0's, real June 2024)
D25: =CRCP_y4 -> 2022-23 | E25: =CRCP_y5 -> 2023-24 | F25: =FRCP_y1 -> 2024-25 | G25: =FRCP_y2 -> 2025-26 | H25: =FRCP_y3 -> 2026-27 | I25: =FRCP_y4 -> 2027-28 | J25: =FRCP_y5 -> 2028-29
B26: OPEX
B27: Standard Control Services | C27: Total | D27: 33304052.52 | E27: 34231912.1 | F27: 38849563.47 | G27: 41049866.41 | H27: 43367519.03 | I27: 45993178.09 | J27: 48939870.66
B28: Alternative Control Services | C28: Total | D28: 28923472.09 | E28: 29232484.62 | F28: 27256040.29 | G28: 26148891.03 | H28: 25644315.27 | I28: 25088799.76 | J28: 24525912.68
B29: CAPEX
B30: Standard Control Services | C30: Total | D30: 31103842.48 | E30: 30694515 | F30: 31790476.29 | G30: 31546058.07 | H30: 31100741.45 | I30: 30756579.34 | J30: 30274161.68
B31: Alternative Control Services | C31: Total | D31: 0 | E31: 0 | F31: 0 | G31: 0 | H31: 0 | I31: 0 | J31: 0
B32: OTHER DISTRIBUTION SERVICES
B33: Negotiated Services | C33: Total | D33: 0 | E33: 0 | F33: 0 | G33: 0 | H33: 0 | I33: 0 | J33: 0
B34: Unregulated Distribution Services | C34: Total | D34: 13903.05938 | E34: 14026.33414 | F34: 14576.94166 | G34: 14705.62202 | H34: 14929.21074 | I34: 15194.43462 | J34: 15498.4365

Sheet 2.11 Labour
B1: =INDEX(dms_Worksheet_List,MATCH(dms_Model,dms_Model_List)) -> REGULATORY REPORTING STATEMENT
B2: =INDEX(dms_TradingNameFull_List,MATCH(dms_TradingName,dms_TradingName_List)) -> Endeavour Energy
B3: =CONCATENATE("REGULATORY PERIOD FROM ", FRCP_y1," TO ",dms_MultiYear_FinalYear_Result) -> REGULATORY PERIOD FROM 2024-25 TO 2028-29
B4: 2.11 LABOUR
B6: Table numbering on this worksheet starts at 2.11.3.
B8: 2.11.3 - LABOUR / NON-LABOUR EXPENDITURE SPLIT - STANDARD CONTROL SERVICES
C9: =CONCATENATE("EXPENDITURE ($0's, real ", dms_DollarReal, ")") -> EXPENDITURE ($0's, real June 2024)
C10: =CRCP_y4 -> 2022-23 | D10: =CRCP_y5 -> 2023-24 | E10: =FRCP_y1 -> 2024-25 | F10: =FRCP_y2 -> 2025-26 | G10: =FRCP_y3 -> 2026-27 | H10: =FRCP_y4 -> 2027-28 | I10: =FRCP_y5 -> 2028-29
B11: OPEX
B12: In-house labour expenditure | C12: 120493665.1 | D12: 123719456.2 | E12: 128263704.6 | F12: 131386826.2 | G12: 132999948.4 | H12: 136071181.8 | I12: 139283643.3
B13: Labour expenditure outsourced to related parties | C13: 0 | D13: 0 | E13: 0 | F13: 0 | G13: 0 | H13: 0 | I13: 0
B14: Labour expenditure outsourced to unrelated parties | C14: 84196151.71 | D14: 86450205.46 | E14: 89625544.43 | F14: 91807856.8 | G14: 92935042.06 | H14: 95081097.04 | I14: 97325836.61
B15: Controllable non-labour expenditure | C15: 53076553.03 | D15: 54497489.75 | E15: 56499197 | F15: 57874908.54 | G15: 58585476.75 | H15: 59938331.94 | I15: 61353397.08
B16: Uncontrollable non-labour expenditure | C16: 8759325.688 | D16: 8993825.609 | E16: 9324171.208 | F16: 9551207.532 | G16: 9668473.97 | H16: 9891738.266 | I16: 10125269.19
B17: Total | C17: =SUM(C12:C16) -> 266525695.5 | D17: 273660977 | E17: 283712617.3 | F17: 290620799.1 | G17: 294188941.2 | H17: 300982349 | I17: 308088146.2
B18: CAPEX
B19: In-house labour expenditure | C19: 97023486.22 | D19: 79674104.38 | E19: 94223917.88 | F19: 87681725.95 | G19: 78778316.94 | H19: 76230685.37 | I19: 68460210.16
B20: Labour expenditure outsourced to related parties | C20: 0 | D20: 0 | E20: 0 | F20: 0 | G20: 0 | H20: 0 | I20: 0
B21: Labour expenditure outsourced to unrelated parties | C21: 116106469.6 | D21: 95344739.04 | E21: 112756270.5 | F21: 104927333 | G21: 94272764.39 | H21: 91224054.03 | I21: 81925249.4
B22: Controllable non-labour expenditure | C22: 232578766.1 | D22: 190989889.2 | E22: 225867812.1 | F22: 210185269.8 | G22: 188842562.4 | H22: 182735535.8 | I22: 164108628
B23: Uncontrollable non-labour expenditure | C23: 0 | D23: 0 | E23: 0 | F23: 0 | G23: 0 | H23: 0 | I23: 0
B24: Total | C24: =SUM(C19:C23) -> 445708721.9 | D24: 366008732.7 | E24: 432848000.5 | F24: 402794328.8 | G24: 361893643.7 | H24: 350190275.2 | I24: 314494087.6

Sheet 2.14 Forecast price changes
B1: =INDEX(dms_Worksheet_List,MATCH(dms_Model,dms_Model_List)) -> REGULATORY REPORTING STATEMENT
B2: =INDEX(dms_TradingNameFull_List,MATCH(dms_TradingName,dms_TradingName_List)) -> Endeavour Energy
B3: =CONCATENATE("REGULATORY PERIOD FROM ", FRCP_y1," TO ",dms_MultiYear_FinalYear_Result) -> REGULATORY PERIOD FROM 2024-25 TO 2028-29
B4: 2.14 FORECAST PRICE CHANGES
B6: There is ONE table on this worksheet.
B8: Instructions
B9: =CONCATENATE(dms_TradingName, " must provide all forecast price changes used to forecast opex and capex, including forecast changes in CPI. Forecast price changes must be expressed in real terms, except for CPI. "&"If the same escalators are not used for capex and opex, report capex and opex escalators separately. Add additional rows as required. If price changes for a given year were not used to forecast either opex or capex enter '0' for that year.") -> Endeavour Energy must provide all forecast price changes used to forecast opex and capex, including forecast changes in CPI. Forecast price changes must be expressed in real terms, except for CPI. If the same escalators are not used for capex and opex, report capex and opex escalators separately. Add additional rows as required. If price changes for a given year were not used to forecast either opex or capex enter '0' for that year.
B11: 2.14.2 - FORECAST CAPEX AND OPEX PRICE CHANGES
C12: Price changes (% YoY real) Current regulatory period | E12: Price changes (%YoY real) Forthcoming regulatory period
C13: Forecast
B14: DESCRIPTION | C14: =CRCP_y4 -> 2022-23 | D14: =CRCP_y5 -> 2023-24 | E14: =FRCP_y1 -> 2024-25 | F14: =FRCP_y2 -> 2025-26 | G14: =FRCP_y3 -> 2026-27 | H14: =FRCP_y4 -> 2027-28 | I14: =FRCP_y5 -> 2028-29
B15: OPEX
B16: Labour price growth | C16: 0 | D16: 0 | E16: 0.01652827985 | F16: 0.01495766389 | G16: 0.006634271053 | H16: 0.005015929052 | I16: 0.007061266653
B19: CAPEX

Sheet 2.16 Opex Summary
B1: =INDEX(dms_Worksheet_List,MATCH(dms_Model,dms_Model_List)) -> REGULATORY REPORTING STATEMENT
B2: =INDEX(dms_TradingNameFull_List,MATCH(dms_TradingName,dms_TradingName_List)) -> Endeavour Energy
B3: =CONCATENATE("REGULATORY PERIOD FROM ", FRCP_y1," TO ",dms_MultiYear_FinalYear_Result) -> REGULATORY PERIOD FROM 2024-25 TO 2028-29
B4: 2.16 OPEX SUMMARY
B6: There are FOUR tables on this worksheet. Each table has been 'grouped' (and 'sub-grouped') for easy navigation. See the Instructions sheet on how to group or ungroup data.
B8: Instructions | J8: IMPORTANT!
B9: =CONCATENATE("Complete the tables below in accordance with the regulatory information notice. ",dms_TradingName,"'s total forecast opex must reconcile to Table 2.16.1 (and if ",dms_TradingName," owns any dual function assets Table 2.16.3). If ",dms_TradingName," did not forecast its total opex using a Base Year approach, total forecast opex must reconcile to Table 2.16.2 (and if ",dms_TradingName," owns any dual function assets Table 2.16.4).") -> Complete the tables below in accordance with the regulatory information notice. Endeavour Energy's total forecast opex must reconcile to Table 2.16.1 (and if Endeavour Energy owns any dual function assets Table 2.16.3). If Endeavour Energy did not forecast its total opex using a Base Year approach, total forecast opex must reconcile to Table 2.16.2 (and if Endeavour Energy owns any dual function assets Table 2.16.4). | J9: =CONCATENATE("Has ",dms_TradingName," used a base-step-trend model to derive its opex forecast? ") -> Has Endeavour Energy used a base-step-trend model to derive its opex forecast? | L9: Yes
B10: =CONCATENATE("If ",dms_TradingName," does not own any dual function assets,Table 2.16.3 and 2.16.4 may be left blank.") -> If Endeavour Energy does not own any dual function assets,Table 2.16.3 and 2.16.4 may be left blank. | J10: Yes / No
B11: The total step changes in Table 2.16.1 and Table 2.16.3 must "&"reconcile (in each year) to the total step changes for each year in Table 2.17.1 and Table 2.17.3 of worksheet '2.17 Step Changes', respectively.") | J11: Please nominate the base year. | L11: 2022-23
B14: 2.16.1 - STANDARD CONTROL SERVICES - OPEX BY DRIVER
C15: =CONCATENATE("EXPENDITURE ($0's, real ", dms_DollarReal, ")") -> EXPENDITURE ($0's, real June 2024)
C16: =CRCP_y1 -> 2019-20 | D16: =CRCP_y2 -> 2020-21 | E16: =CRCP_y3 -> 2021-22 | F16: =CRCP_y4 -> 2022-23 | G16: =CRCP_y5 -> 2023-24 | H16: =FRCP_y1 -> 2024-25 | I16: =FRCP_y2 -> 2025-26 | J16: =FRCP_y3 -> 2026-27 | K16: =FRCP_y4 -> 2027-28 | L16: =FRCP_y5 -> 2028-29
B17: Base year total opex, excluding category specific | F17: 266525695.5 | G17: 266525695.5 | H17: 266525695.5 | I17: 266525695.5 | J17: 266525695.5 | K17: 266525695.5 | L17: 266525695.5
B18: Increment from base year to final year | G18: 2159533.626 | H18: 2159533.626 | I18: 2159533.626 | J18: 2159533.626 | K18: 2159533.626 | L18: 2159533.626
B19: Price growth | H19: 3621583.602 | I19: 5186867.75 | J19: 9330982.771 | K19: 12674729.97 | L19: 14507730.15
B20: Output growth | H20: 1856162.446 | I20: 3670611.997 | J20: 2425636.011 | K20: 2310092.14 | L20: 3908465.144
B21: Productivity growth | H21: 948498.442 | I21: 2072635.856 | J21: 3088024.362 | K21: 3889790.534 | L21: 4674895.732
B22: Step changes | H22: 8601143.629 | I22: 11005454.29 | J22: 10659068.87 | K22: 13422507.21 | L22: 16311825.99
B23: Category specific | F23: 0 | G23: 0 | H23: 4057580.791 | I23: 4027233.969 | J23: 4006848.147 | K23: 3976232.94 | L23: 3954802.948
B24: Total opex | C24: =SUM(C17:C23) -> 0 | D24: 0 | E24: 0 | F24: 266525695.5 | G24: 268685229.2 | H24: 287770198.1 | I24: 294648033 | J24: 298195789.3 | K24: 304958582 | L24: 312042949.1
B27: 2.16.2 - STANDARD CONTROL SERVICES - OPEX BY CATEGORY
C28: =CONCATENATE("EXPENDITURE ($0's, real ", dms_DollarReal, ")") -> EXPENDITURE ($0's, real June 2024)
C29: =CRCP_y1 -> 2019-20 | D29: =CRCP_y2 -> 2020-21 | E29: =CRCP_y3 -> 2021-22 | F29: =CRCP_y4 -> 2022-23 | G29: =CRCP_y5 -> 2023-24 | H29: =FRCP_y1 -> 2024-25 | I29: =FRCP_y2 -> 2025-26 | J29: =FRCP_y3 -> 2026-27 | K29: =FRCP_y4 -> 2027-28 | L29: =FRCP_y5 -> 2028-29
B30: Vegetation management
B31: Maintenance
B32: Emergency response
B33: Non-network
B34: Metering
B35: Network overheads
B36: Corporate overheads
B37: Total opex | C37: =SUM(C30:C36) -> 0 | D37: 0 | E37: 0 | F37: 0 | G37: 0 | H37: 0 | I37: 0 | J37: 0 | K37: 0 | L37: 0
B40: 2.16.3 - DUAL FUNCTION ASSETS - OPEX BY DRIVER
C41: =CONCATENATE("EXPENDITURE ($0's, real ", dms_DollarReal, ")") -> EXPENDITURE ($0's, real June 2024)
C42: 2017 | D42: 2018 | E42: 2019 | F42: 2020 | G42: 2021 | H42: =FRCP_y1 -> 2024-25 | I42: =FRCP_y2 -> 2025-26 | J42: =FRCP_y3 -> 2026-27 | K42: =FRCP_y4 -> 2027-28 | L42: =FRCP_y5 -> 2028-29
B43: Base year total opex, excluding category specific | F43: 0 | G43: 0 | H43: 0 | I43: 0 | J43: 0 | K43: 0 | L43: 0
B44: Increment from base year to final year | G44: 0 | H44: 0 | I44: 0 | J44: 0 | K44: 0 | L44: 0
B45: Price growth | H45: 0 | I45: 0 | J45: 0 | K45: 0 | L45: 0
B46: Output growth | H46: 0 | I46: 0 | J46: 0 | K46: 0 | L46: 0
B47: Productivity growth | H47: 0 | I47: 0 | J47: 0 | K47: 0 | L47: 0
B48: Step changes | H48: 0 | I48: 0 | J48: 0 | K48: 0 | L48: 0
B49: Category specific | F49: 0 | G49: 0 | H49: 0 | I49: 0 | J49: 0 | K49: 0 | L49: 0
B50: Total opex | C50: =SUM(C43:C49) -> 0 | D50: 0 | E50: 0 | F50: 0 | G50: 0 | H50: 0 | I50: 0 | J50: 0 | K50: 0 | L50: 0
B53: 2.16.4 - DUAL FUNCTION ASSETS - OPEX BY CATEGORY
C54: =CONCATENATE("EXPENDITURE ($0's, real ", dms_DollarReal, ")") -> EXPENDITURE ($0's, real June 2024)
C55: =CRCP_y1 -> 2019-20 | D55: =CRCP_y2 -> 2020-21 | E55: =CRCP_y3 -> 2021-22 | F55: =CRCP_y4 -> 2022-23 | G55: =CRCP_y5 -> 2023-24 | H55: =FRCP_y1 -> 2024-25 | I55: =FRCP_y2 -> 2025-26 | J55: =FRCP_y3 -> 2026-27 | K55: =FRCP_y4 -> 2027-28 | L55: =FRCP_y5 -> 2028-29
B56: Vegetation management
B57: Maintenance
B58: Emergency response
B59: Non-network
B60: Metering
B61: Network overheads
B62: Corporate overheads
B63: Total opex | C63: =SUM(C56:C62) -> 0 | D63: 0 | E63: 0 | F63: 0 | G63: 0 | H63: 0 | I63: 0 | J63: 0 | K63: 0 | L63: 0

Sheet 2.17 Step Changes
B1: =INDEX(dms_Worksheet_List,MATCH(dms_Model,dms_Model_List)) -> REGULATORY REPORTING STATEMENT
B2: =INDEX(dms_TradingNameFull_List,MATCH(dms_TradingName,dms_TradingName_List)) -> Endeavour Energy
B3: =CONCATENATE("REGULATORY PERIOD FROM ", FRCP_y1," TO ",dms_MultiYear_FinalYear_Result) -> REGULATORY PERIOD FROM 2024-25 TO 2028-29
B4: 2.17 STEP CHANGES
B6: There are FIVE tables on this worksheet. Each table has been 'grouped' (and 'sub-grouped') for easy navigation. See the Instructions sheet on how to group or ungroup data.
B8: 2.17.1 - STEP CHANGES FOR STANDARD CONTROL SERVICES - FORECAST OPEX
E9: =CONCATENATE("EXPENDITURE ($0's, real ", dms_DollarReal, ")") -> EXPENDITURE ($0's, real June 2024)
B10: STEP CHANGE | C10: DESCRIPTION | E10: =CRCP_y4 -> 2022-23 | F10: =CRCP_y5 -> 2023-24 | G10: =FRCP_y1 -> 2024-25 | H10: =FRCP_y2 -> 2025-26 | I10: =FRCP_y3 -> 2026-27 | J10: =FRCP_y4 -> 2027-28 | K10: =FRCP_y5 -> 2028-29
B11: Solar Soak / Off-Peak Conversion | E11: 0 | F11: 0 | G11: 2904385.549 | H11: 2861497.732 | I11: 0 | J11: 0 | K11: 0
B12: Network visibility | E12: 0 | F12: 1550518.356 | G12: 2138981.895 | H12: 2481544.547 | I12: 2835478.364 | J12: 3187491.611 | K12: 3546575.754
B13: Insurance premium | E13: 22582973.2 | F13: 5683784.163 | G13: 3557776.186 | H13: 5188656.922 | I13: 7052361.292 | J13: 9182838.596 | K13: 11619423.97
B14: Demand management | E14: 0 | F14: 0 | G14: 0 | H14: 473755.0907 | I14: 771229.2174 | J14: 1052177.004 | K14: 1145826.266
B21: Total | E21: =SUM(E11:E20) -> 22582973.2 | F21: 7234302.519 | G21: 8601143.629 | H21: 11005454.29 | I21: 10659068.87 | J21: 13422507.21 | K21: 16311825.99
B22: Check | G22: =IF(ROUND(G$21,0)-ROUND('2.16 Opex Summary'!H$22,0)=0,"OK","Error") -> OK | H22: =IF(ROUND(H$21,0)-ROUND('2.16 Opex Summary'!I$22,0)=0,"OK","Error") -> OK | I22: =IF(ROUND(I$21,0)-ROUND('2.16 Opex Summary'!J$22,0)=0,"OK","Error") -> OK | J22: =IF(ROUND(J$21,0)-ROUND('2.16 Opex Summary'!K$22,0)=0,"OK","Error") -> OK | K22: =IF(ROUND(K$21,0)-ROUND('2.16 Opex Summary'!L$22,0)=0,"OK","Error") -> OK
B24: 2.17.2 - STEP CHANGES FOR STANDARD CONTROL SERVICES - FORECAST CAPEX
E25: =CONCATENATE("EXPENDITURE ($0's, real ", dms_DollarReal, ")") -> EXPENDITURE ($0's, real June 2024)
B26: STEP CHANGE | C26: DESCRIPTION | E26: =CRCP_y4 -> 2022-23 | F26: =CRCP_y5 -> 2023-24 | G26: =FRCP_y1 -> 2024-25 | H26: =FRCP_y2 -> 2025-26 | I26: =FRCP_y3 -> 2026-27 | J26: =FRCP_y4 -> 2027-28 | K26: =FRCP_y5 -> 2028-29
E27: 0 | F27: 0 | G27: 0 | H27: 0 | I27: 0 | J27: 0 | K27: 0
E28: 0 | F28: 0 | G28: 0 | H28: 0 | I28: 0 | J28: 0 | K28: 0
E29: 0 | F29: 0 | G29: 0 | H29: 0 | I29: 0 | J29: 0 | K29: 0
E30: 0 | F30: 0 | G30: 0 | H30: 0 | I30: 0 | J30: 0 | K30: 0
E31: 0 | F31: 0 | G31: 0 | H31: 0 | I31: 0 | J31: 0 | K31: 0
E32: 0 | F32: 0 | G32: 0 | H32: 0 | I32: 0 | J32: 0 | K32: 0
E33: 0 | F33: 0 | G33: 0 | H33: 0 | I33: 0 | J33: 0 | K33: 0
E34: 0 | F34: 0 | G34: 0 | H34: 0 | I34: 0 | J34: 0 | K34: 0
E35: 0 | F35: 0 | G35: 0 | H35: 0 | I35: 0 | J35: 0 | K35: 0
E36: 0 | F36: 0 | G36: 0 | H36: 0 | I36: 0 | J36: 0 | K36: 0
B37: Total | E37: =SUM(E27:E36) -> 0 | F37: 0 | G37: 0 | H37: 0 | I37: 0 | J37: 0 | K37: 0
B39: 2.17.3 - STEP CHANGES FOR DUAL FUNCTION ASSETS - FORECAST OPEX
E40: =CONCATENATE("EXPENDITURE ($0's, real ", dms_DollarReal, ")") -> EXPENDITURE ($0's, real June 2024)
B41: STEP CHANGE | C41: DESCRIPTION | E41: =CRCP_y4 -> 2022-23 | F41: =CRCP_y5 -> 2023-24 | G41: =FRCP_y1 -> 2024-25 | H41: =FRCP_y2 -> 2025-26 | I41: =FRCP_y3 -> 2026-27 | J41: =FRCP_y4 -> 2027-28 | K41: =FRCP_y5 -> 2028-29
E42: 0 | F42: 0 | G42: 0 | H42: 0 | I42: 0 | J42: 0 | K42: 0
E43: 0 | F43: 0 | G43: 0 | H43: 0 | I43: 0 | J43: 0 | K43: 0
E44: 0 | F44: 0 | G44: 0 | H44: 0 | I44: 0 | J44: 0 | K44: 0
E45: 0 | F45: 0 | G45: 0 | H45: 0 | I45: 0 | J45: 0 | K45: 0
E46: 0 | F46: 0 | G46: 0 | H46: 0 | I46: 0 | J46: 0 | K46: 0
E47: 0 | F47: 0 | G47: 0 | H47: 0 | I47: 0 | J47: 0 | K47: 0
E48: 0 | F48: 0 | G48: 0 | H48: 0 | I48: 0 | J48: 0 | K48: 0
E49: 0 | F49: 0 | G49: 0 | H49: 0 | I49: 0 | J49: 0 | K49: 0
E50: 0 | F50: 0 | G50: 0 | H50: 0 | I50: 0 | J50: 0 | K50: 0
E51: 0 | F51: 0 | G51: 0 | H51: 0 | I51: 0 | J51: 0 | K51: 0
B52: Total | E52: =SUM(E42:E51) -> 0 | F52: 0 | G52: 0 | H52: 0 | I52: 0 | J52: 0 | K52: 0
B53: Check | G53: =IF(ROUND(G$21,0)-ROUND('2.16 Opex Summary'!H$48,0)=0,"OK","Error") -> Error | H53: =IF(ROUND(H$21,0)-ROUND('2.16 Opex Summary'!I$48,0)=0,"OK","Error") -> Error | I53: =IF(ROUND(I$21,0)-ROUND('2.16 Opex Summary'!J$48,0)=0,"OK","Error") -> Error | J53: =IF(ROUND(J$21,0)-ROUND('2.16 Opex Summary'!K$48,0)=0,"OK","Error") -> Error | K53: =IF(ROUND(K$21,0)-ROUND('2.16 Opex Summary'!L$48,0)=0,"OK","Error") -> Error
B55: 2.17.4 - STEP CHANGES FOR DUAL FUNCTION ASSETS - FORECAST CAPEX
E56: =CONCATENATE("EXPENDITURE ($0's, real ", dms_DollarReal, ")") -> EXPENDITURE ($0's, real June 2024)
B57: STEP CHANGE | C57: DESCRIPTION | E57: =CRCP_y4 -> 2022-23 | F57: =CRCP_y5 -> 2023-24 | G57: =FRCP_y1 -> 2024-25 | H57: =FRCP_y2 -> 2025-26 | I57: =FRCP_y3 -> 2026-27 | J57: =FRCP_y4 -> 2027-28 | K57: =FRCP_y5 -> 2028-29
E58: 0 | F58: 0 | G58: 0 | H58: 0 | I58: 0 | J58: 0 | K58: 0
E59: 0 | F59: 0 | G59: 0 | H59: 0 | I59: 0 | J59: 0 | K59: 0
E60: 0 | F60: 0 | G60: 0 | H60: 0 | I60: 0 | J60: 0 | K60: 0
E61: 0 | F61: 0 | G61: 0 | H61: 0 | I61: 0 | J61: 0 | K61: 0
E62: 0 | F62: 0 | G62: 0 | H62: 0 | I62: 0 | J62: 0 | K62: 0
E63: 0 | F63: 0 | G63: 0 | H63: 0 | I63: 0 | J63: 0 | K63: 0
E64: 0 | F64: 0 | G64: 0 | H64: 0 | I64: 0 | J64: 0 | K64: 0
E65: 0 | F65: 0 | G65: 0 | H65: 0 | I65: 0 | J65: 0 | K65: 0
E66: 0 | F66: 0 | G66: 0 | H66: 0 | I66: 0 | J66: 0 | K66: 0
E67: 0 | F67: 0 | G67: 0 | H67: 0 | I67: 0 | J67: 0 | K67: 0
B68: Total | E68: =SUM(E58:E67) -> 0 | F68: 0 | G68: 0 | H68: 0 | I68: 0 | J68: 0 | K68: 0
B71: 2.17.5 - FORECAST CATEGORY SPECIFIC OPEX
D72: EXPENDITURE ($0's, real June 2024)
B73: CATEGORY | C73: DESCRIPTION | D73: =CRCP_y3 -> 2021-22 | E73: =CRCP_y4 -> 2022-23 | F73: =CRCP_y5 -> 2023-24 | G73: =FRCP_y1 -> 2024-25 | H73: =FRCP_y2 -> 2025-26 | I73: =FRCP_y3 -> 2026-27 | J73: =FRCP_y4 -> 2027-28 | K73: =FRCP_y5 -> 2028-29
B74: Debt raising costs | D74: 0 | E74: 0 | F74: 0 | G74: 4057580.791 | H74: 4027233.969 | I74: 4006848.147 | J74: 3976232.94 | K74: 3954802.948
D75: 0 | E75: 0 | F75: 0 | G75: 0 | H75: 0 | I75: 0 | J75: 0 | K75: 0
D76: 0 | E76: 0 | F76: 0 | G76: 0 | H76: 0 | I76: 0 | J76: 0 | K76: 0
D77: 0 | E77: 0 | F77: 0 | G77: 0 | H77: 0 | I77: 0 | J77: 0 | K77: 0
D78: 0 | E78: 0 | F78: 0 | G78: 0 | H78: 0 | I78: 0 | J78: 0 | K78: 0
D79: 0 | E79: 0 | F79: 0 | G79: 0 | H79: 0 | I79: 0 | J79: 0 | K79: 0
D80: 0 | E80: 0 | F80: 0 | G80: 0 | H80: 0 | I80: 0 | J80: 0 | K80: 0
D81: 0 | E81: 0 | F81: 0 | G81: 0 | H81: 0 | I81: 0 | J81: 0 | K81: 0
D82: 0 | E82: 0 | F82: 0 | G82: 0 | H82: 0 | I82: 0 | J82: 0 | K82: 0
D83: 0 | E83: 0 | F83: 0 | G83: 0 | H83: 0 | I83: 0 | J83: 0 | K83: 0
B84: Total | D84: =SUM(D74:D83) -> 0 | E84: =SUM(E74:E83) -> 0 | F84: =SUM(F74:F83) -> 0 | G84: 4057580.791 | H84: 4027233.969 | I84: 4006848.147 | J84: 3976232.94 | K84: 3954802.948

Sheet 3.1 Revenue
B1: =INDEX(dms_Worksheet_List,MATCH(dms_Model,dms_Model_List)) -> REGULATORY REPORTING STATEMENT
B2: =INDEX(dms_TradingNameFull_List,MATCH(dms_TradingName,dms_TradingName_List)) -> Endeavour Energy
B3: =CONCATENATE("REGULATORY PERIOD FROM ", FRCP_y1," TO ",dms_MultiYear_FinalYear_Result) -> REGULATORY PERIOD FROM 2024-25 TO 2028-29
B4: 3.1 REVENUE
B6: There are THREE tables on this worksheet. Each table has been 'grouped' (and 'sub-grouped') for easy navigation. See the Instructions sheet on how to group or ungroup data.
B8: 3.1.1 - REVENUE GROUPING BY CHARGEABLE QUANTITY
C9: Standard control services | K9: Alternative control services
C10: =CONCATENATE("REVENUE Forecast ($0's, real ", dms_DollarReal,")") -> REVENUE Forecast ($0's, real June 2024) | K10: =CONCATENATE("REVENUE Forecast ($0's, real ", dms_DollarReal,")") -> REVENUE Forecast ($0's, real June 2024)
C11: =CRCP_y4 -> 2022-23 | D11: =CRCP_y5 -> 2023-24 | E11: =FRCP_y1 -> 2024-25 | F11: =FRCP_y2 -> 2025-26 | G11: =FRCP_y3 -> 2026-27 | H11: =FRCP_y4 -> 2027-28 | I11: =FRCP_y5 -> 2028-29 | K11: =CRCP_y4 -> 2022-23 | L11: =CRCP_y5 -> 2023-24 | M11: =FRCP_y1 -> 2024-25 | N11: =FRCP_y2 -> 2025-26 | O11: =FRCP_y3 -> 2026-27 | P11: =FRCP_y4 -> 2027-28 | Q11: =FRCP_y5 -> 2028-29
A12: DREV0101 | B12: Revenue from Fixed Customer Charges | C12: 287778610.7 | D12: 292711048.2 | E12: 352293780.6 | F12: 375772289 | G12: 388186961.5 | H12: 403591542.7 | I12: 418407659 | K12: 0 | L12: 0 | M12: 0 | N12: 0 | O12: 0 | P12: 0 | Q12: 0
A13: DREV0102 | B13: Revenue from Energy Delivery charges where time of use is not a determinant | C13: 445700581.1 | D13: 406744301.2 | E13: 300687576.7 | F13: 256000949.2 | G13: 222091423.8 | H13: 188894200 | I13: 158876697.4 | K13: 0 | L13: 0 | M13: 0 | N13: 0 | O13: 0 | P13: 0 | Q13: 0
A14: DREV0103 | B14: Revenue from On–Peak Energy Delivery charges | C14: 15237434.62 | D14: 14465350.75 | E14: 55229894.14 | F14: 75182414.36 | G14: 83357323.47 | H14: 89679078.66 | I14: 95627831.08 | K14: 0 | L14: 0 | M14: 0 | N14: 0 | O14: 0 | P14: 0 | Q14: 0
A15: DREV0104 | B15: Revenue from Shoulder period Energy Delivery Charges | C15: 0 | D15: 0 | E15: 0 | F15: 0 | G15: 0 | H15: 0 | I15: 0 | K15: 0 | L15: 0 | M15: 0 | N15: 0 | O15: 0 | P15: 0 | Q15: 0
A16: DREV0105 | B16: Revenue from Off–Peak Energy Delivery charges | C16: 27173669.04 | D16: 25739455.2 | E16: 130010654.1 | F16: 127137273.8 | G16: 140138140.7 | H16: 150409960.4 | I16: 159978525.7 | K16: 0 | L16: 0 | M16: 0 | N16: 0 | O16: 0 | P16: 0 | Q16: 0
A17: DREV0106 | B17: Revenue from controlled load customer charges | C17: 15789736.62 | D17: 16222403.93 | E17: 19331035.43 | F17: 20087772.71 | G17: 19726751.25 | H17: 19435655.1 | I17: 19207078.74 | K17: 0 | L17: 0 | M17: 0 | N17: 0 | O17: 0 | P17: 0 | Q17: 0
A18: DREV0107 | B18: Revenue from unmetered supplies | C18: 8995297.709 | D18: 7814393.307 | E18: 8810734.141 | F18: 8689857.268 | G18: 8371836.522 | H18: 8100247.896 | I18: 7856346.62 | K18: 0 | L18: 0 | M18: 0 | N18: 0 | O18: 0 | P18: 0 | Q18: 0
A19: DREV0108 | B19: Revenue from Contracted Maximum Demand charges | C19: 0 | D19: 0 | E19: 0 | F19: 0 | G19: 0 | H19: 0 | I19: 0 | K19: 0 | L19: 0 | M19: 0 | N19: 0 | O19: 0 | P19: 0 | Q19: 0
A20: DREV0109 | B20: Revenue from Measured Maximum Demand charges | C20: 141631908.7 | D20: 137435729 | E20: 162015997.8 | F20: 165515920.8 | G20: 166506400.4 | H20: 168264613.6 | I20: 168430769 | K20: 0 | L20: 0 | M20: 0 | N20: 0 | O20: 0 | P20: 0 | Q20: 0
A21: DREV0110 | B21: Revenue from metering charges | C21: 0 | D21: 0 | E21: 0 | F21: 0 | G21: 0 | H21: 0 | I21: 0 | K21: 21077425.59 | L21: 19574725.89 | M21: 19406216.56 | N21: 18564816.61 | O21: 17081581.17 | P21: 15464415.05 | Q21: 13805374.34
A22: DREV0111 | B22: Revenue from connection charges | C22: 0 | D22: 0 | E22: 0 | F22: 0 | G22: 0 | H22: 0 | I22: 0 | K22: 0 | L22: 0 | M22: 0 | N22: 0 | O22: 0 | P22: 0 | Q22: 0
A23: DREV0112 | B23: Revenue from public lighting charges | C23: 0 | D23: 0 | E23: 0 | F23: 0 | G23: 0 | H23: 0 | I23: 0 | K23: 26964909.08 | L23: 30199647.28 | M23: 24421785.2 | N23: 24421785.2 | O23: 24421785.2 | P23: 24421785.2 | Q23: 24421785.2
A24: DREV0113 | B24: Revenue from other Sources | C24: 1486617.387 | D24: 0 | E24: 0 | F24: 0 | G24: 0 | H24: 0 | I24: 0 | K24: 40028978.01 | L24: 34642920 | M24: 35073280.37 | N24: 35073275.79 | O24: 35073277.91 | P24: 35073281.81 | Q24: 35073279.57
A25: DREV01 | B25: Total revenue by chargeable quantity | C25: =SUM(C12:C24) -> 943793855.9 | D25: 901132681.7 | E25: 1028379673 | F25: 1028386477 | G25: 1028378838 | H25: 1028375298 | I25: 1028384908 | K25: =SUM(K12:K24) -> 88071312.68 | L25: 84417293.17 | M25: 78901282.13 | N25: 78059877.61 | O25: 76576644.29 | P25: 74959482.06 | Q25: 73300439.11
B28: 3.1.2 - REVENUE GROUPING BY CUSTOMER TYPE OR CLASS
C29: Standard control services | K29: Alternative control services
C30: =CONCATENATE("REVENUE Forecast ($0's, real ", dms_DollarReal,")") -> REVENUE Forecast ($0's, real June 2024) | K30: =CONCATENATE("REVENUE Forecast ($0's, real ", dms_DollarReal,")") -> REVENUE Forecast ($0's, real June 2024)
C31: =CRCP_y4 -> 2022-23 | D31: =CRCP_y5 -> 2023-24 | E31: =FRCP_y1 -> 2024-25 | F31: =FRCP_y2 -> 2025-26 | G31: =FRCP_y3 -> 2026-27 | H31: =FRCP_y4 -> 2027-28 | I31: =FRCP_y5 -> 2028-29 | K31: =CRCP_y4 -> 2022-23 | L31: =CRCP_y5 -> 2023-24 | M31: =FRCP_y1 -> 2024-25 | N31: =FRCP_y2 -> 2025-26 | O31: =FRCP_y3 -> 2026-27 | P31: =FRCP_y4 -> 2027-28 | Q31: =FRCP_y5 -> 2028-29
A32: DREV0201 | B32: Revenue from residential Customers | C32: 555201013.1 | D32: 525604825.7 | E32: 595544068.4 | F32: 590289142 | G32: 595009582.4 | H32: 596610634.4 | I32: 600113474.5 | K32: 0 | L32: 0 | M32: 0 | N32: 0 | O32: 0 | P32: 0 | Q32: 0
A33: DREV0202 | B33: Revenue from Non residential customers not on demand tariffs | C33: 116976658.5 | D33: 92358422.44 | E33: 100649003.6 | F33: 96750492.17 | G33: 92595041.35 | H33: 90089463.28 | I33: 87960561.44 | K33: 0 | L33: 0 | M33: 0 | N33: 0 | O33: 0 | P33: 0 | Q33: 0
A34: DREV0203 | B34: Revenue from Non-residential low voltage demand tariff customers | C34: 176690184.7 | D34: 27109876.57 | E34: 32942475.97 | F34: 34882982.34 | G34: 35189187.19 | H34: 34982581.59 | I34: 34373788.8 | K34: 0 | L34: 0 | M34: 0 | N34: 0 | O34: 0 | P34: 0 | Q34: 0
A35: DREV0204 | B35: Revenue from Non-residential high voltage demand tariff customers | C35: 84444084.42 | D35: 248245163.6 | E35: 290433390.7 | F35: 297774003.2 | G35: 297213190 | H35: 298592371.3 | I35: 298080736.3 | K35: 0 | L35: 0 | M35: 0 | N35: 0 | O35: 0 | P35: 0 | Q35: 0
A36: DREV0205 | B36: Revenue from unmetered supplies | C36: 8995297.709 | D36: 7814393.307 | E36: 8810734.141 | F36: 8689857.268 | G36: 8371836.522 | H36: 8100247.896 | I36: 7856346.62 | K36: 0 | L36: 0 | M36: 0 | N36: 0 | O36: 0 | P36: 0 | Q36: 0
A37: DREV0206 | B37: Revenue from Other Customers | C37: 1486617.387 | D37: 0 | E37: 0 | F37: 0 | G37: 0 | H37: 0 | I37: 0 | K37: 88071312.68 | L37: 84417293.17 | M37: 78961758.49 | N37: 78182865.09 | O37: 76836906.76 | P37: 75355759.09 | Q37: 73854443.25
A38: DREV02 | B38: Total revenue by customer class | C38: =SUM(C32:C37) -> 943793855.9 | D38: 901132681.7 | E38: 1028379673 | F38: 1028386477 | G38: 1028378838 | H38: 1028375298 | I38: 1028384908 | K38: =SUM(K32:K37) -> 88071312.68 | L38: 84417293.17 | M38: 78961758.49 | N38: 78182865.09 | O38: 76836906.76 | P38: 75355759.09 | Q38: 73854443.25
B41: 3.1.3 - REVENUE (penalties) ALLOWED (deducted) THROUGH INCENTIVE SCHEMES
C42: Standard control services | K42: Alternative control services
C43: =CONCATENATE("REVENUE Forecast ($0's, real ", dms_DollarReal,")") -> REVENUE Forecast ($0's, real June 2024) | K43: =CONCATENATE("REVENUE Forecast ($0's, real ", dms_DollarReal,")") -> REVENUE Forecast ($0's, real June 2024)
C44: =CRCP_y4 -> 2022-23 | D44: =CRCP_y5 -> 2023-24 | E44: =FRCP_y1 -> 2024-25 | F44: =FRCP_y2 -> 2025-26 | G44: =FRCP_y3 -> 2026-27 | H44: =FRCP_y4 -> 2027-28 | I44: =FRCP_y5 -> 2028-29 | K44: =CRCP_y4 -> 2022-23 | L44: =CRCP_y5 -> 2023-24 | M44: =FRCP_y1 -> 2024-25 | N44: =FRCP_y2 -> 2025-26 | O44: =FRCP_y3 -> 2026-27 | P44: =FRCP_y4 -> 2027-28 | Q44: =FRCP_y5 -> 2028-29
A45: DREV0301 | B45: EBSS | C45: 75267690.82 | D45: 0 | E45: 53313556.61 | F45: 18875747 | G45: 33189909.87 | H45: 27747619.36 | I45: 0 | K45: 0 | L45: 0 | M45: 0 | N45: 0 | O45: 0 | P45: 0 | Q45: 0
A46: DREV0302 | B46: STPIS | C46: 36219425.22 | D46: 0 | E46: 0 | F46: 0 | G46: 0 | H46: 0 | I46: 0 | K46: 0 | L46: 0 | M46: 0 | N46: 0 | O46: 0 | P46: 0 | Q46: 0
A47: DREV0303 | B47: F-Factor | C47: 0 | D47: 0 | E47: 0 | F47: 0 | G47: 0 | H47: 0 | I47: 0 | K47: 0 | L47: 0 | M47: 0 | N47: 0 | O47: 0 | P47: 0 | Q47: 0
A48: DREV0304 | B48: S-Factor True up | C48: 0 | D48: 0 | E48: 0 | F48: 0 | G48: 0 | H48: 0 | I48: 0 | K48: 0 | L48: 0 | M48: 0 | N48: 0 | O48: 0 | P48: 0 | Q48: 0
A49: DREV0305 | B49: Other | C49: 1652184.371 | D49: 1687733.196 | E49: 2763154.095 | F49: 2763154.095 | G49: 2763154.095 | H49: 2763154.095 | I49: 2763154.095 | K49: 0 | L49: 0 | M49: 0 | N49: 0 | O49: 0 | P49: 0 | Q49: 0
A50: DREV03 | B50: Total revenue of incentive schemes | C50: =SUM(C45:C49) -> 113139300.4 | D50: 1687733.196 | E50: 56076710.71 | F50: 21638901.09 | G50: 35953063.97 | H50: 30510773.45 | I50: 2763154.095 | K50: =SUM(K45:K49) -> 0 | L50: 0 | M50: 0 | N50: 0 | O50: 0 | P50: 0 | Q50: 0

Sheet 3.2 Operating expenditure
B1: =INDEX(dms_Worksheet_List,MATCH(dms_Model,dms_Model_List)) -> REGULATORY REPORTING STATEMENT
B2: =INDEX(dms_TradingNameFull_List,MATCH(dms_TradingName,dms_TradingName_List)) -> Endeavour Energy
B3: =CONCATENATE("REGULATORY PERIOD FROM ", FRCP_y1," TO ",dms_MultiYear_FinalYear_Result) -> REGULATORY PERIOD FROM 2024-25 TO 2028-29
B4: 3.2 OPERATING EXPENDITURE
B6: There are TWO tables on this worksheet. Both ROWS and COLUMNS have been grouped for ease of navigation. see the Instructions sheet on how to group or ungroup tables.
B8: 3.2.1 - OPEX CATEGORIES
B9: CURRENT OPEX CATEGORIES AND COST ALLOCATIONS
C10: Standard control services | K10: Alternative control services
C11: =CONCATENATE("EXPENDITURE ($0's, real ", dms_DollarReal, ")") -> EXPENDITURE ($0's, real June 2024) | K11: =CONCATENATE("EXPENDITURE ($0's, real ", dms_DollarReal, ")") -> EXPENDITURE ($0's, real June 2024)
C12: =CRCP_y4 -> 2022-23 | D12: =CRCP_y5 -> 2023-24 | E12: =FRCP_y1 -> 2024-25 | F12: =FRCP_y2 -> 2025-26 | G12: =FRCP_y3 -> 2026-27 | H12: =FRCP_y4 -> 2027-28 | I12: =FRCP_y5 -> 2028-29 | K12: =CRCP_y4 -> 2022-23 | L12: =CRCP_y5 -> 2023-24 | M12: =FRCP_y1 -> 2024-25 | N12: =FRCP_y2 -> 2025-26 | O12: =FRCP_y3 -> 2026-27 | P12: =FRCP_y4 -> 2027-28 | Q12: =FRCP_y5 -> 2028-29
A13: DOPEX0101 | B13: Vegetation management | C13: 37778829.93 | D13: 38831357.98 | E13: 40025349.59 | F13: 40664238.96 | G13: 41189094.21 | H13: 41755937.71 | I13: 42361046.11 | K13: 0 | L13: 0 | M13: 0 | N13: 0 | O13: 0 | P13: 0 | Q13: 0
A14: DOPEX0102 | B14: Maintenance | C14: 46328411.07 | D14: 47619132.67 | E14: 49083331.92 | F14: 49866805.88 | G14: 50510439.09 | H14: 51205562.75 | I14: 51947610.91 | K14: 0 | L14: 0 | M14: 0 | N14: 0 | O14: 0 | P14: 0 | Q14: 0
A15: DOPEX0103 | B15: Emergency response | C15: 23456174.65 | D15: 24109669.79 | E15: 24850997.03 | F15: 25247671.59 | G15: 25573544.47 | H15: 25925487.09 | I15: 26301187.67 | K15: 0 | L15: 0 | M15: 0 | N15: 0 | O15: 0 | P15: 0 | Q15: 0
A16: DOPEX0104 | B16: Non-network | C16: 76859885.73 | D16: 78650820.22 | E16: 75037672.54 | F16: 76235432.75 | G16: 77219407.08 | H16: 78282099.03 | I16: 79416528.25 | K16: 0 | L16: 0 | M16: 0 | N16: 0 | O16: 0 | P16: 0 | Q16: 0
A17: DOPEX0105 | B17: Export services | C17: 2543331 | D17: 2674397 | E17: 6860136 | F17: 7293995 | G17: 5126773 | H17: 5643443 | I17: 6113044 | K17: 0 | L17: 0 | M17: 0 | N17: 0 | O17: 0 | P17: 0 | Q17: 0
A18: DOPEX0106 | B18: Metering | C18: 0 | D18: 0 | E18: 0 | F18: 0 | G18: 0 | H18: 0 | I18: 0 | K18: 10766968.12 | L18: 10882000.24 | M18: 9979123.769 | N18: 9300984.012 | O18: 8557058.561 | P18: 7738029.65 | Q18: 6908132.422
A19: DOPEX0107 | B19: Network overheads | C19: 46255010.63 | D19: 47543687.27 | E19: 49005566.72 | F19: 50262788.47 | G19: 51202164.3 | H19: 52176641.35 | I19: 53008858.58 | K19: 8144557.766 | L19: 8231572.575 | M19: 8374141.018 | N19: 8073814.516 | O19: 8000445.11 | P19: 7919668.65 | Q19: 7837820.305
A20: DOPEX0108 | B20: Corporate overheads | C20: 33304052.52 | D20: 34231912.1 | E20: 38849563.47 | F20: 41049866.41 | G20: 43367519.03 | H20: 45993178.09 | I20: 48939870.66 | K20: 28923472.09 | L20: 29232484.62 | M20: 27256040.29 | N20: 26148891.03 | O20: 25644315.27 | P20: 25088799.76 | Q20: 24525912.68
A21: DOPEX0109 | B21: Public Lighting | C21: 0 | D21: 0 | E21: 0 | F21: 0 | G21: 0 | H21: 0 | I21: 0 | K21: 9084222.829 | L21: 9181276.83 | M21: 8407791.117 | N21: 8142192.9 | O21: 8142192.9 | P21: 8142192.9 | Q21: 8142192.9
A22: DOPEX0110 | B22: Fee and quoted | C22: 0 | D22: 0 | E22: 0 | F22: 0 | G22: 0 | H22: 0 | I22: 0 | K22: 16063744.05 | L22: 16235365.85 | M22: 15521663.18 | N22: 15031341.05 | O22: 15031341.05 | P22: 15031341.05 | Q22: 15031341.05
A23: DOPEX0111
A24: DOPEX0112
A25: DOPEX0113
A26: DOPEX0114
A27: DOPEX0115
A28: DOPEX0116
A29: DOPEX0117
A30: DOPEX0118
A31: DOPEX0119
A32: DOPEX0120
A33: DOPEX0121
A34: DOPEX0122
A35: DOPEX0123
A36: DOPEX0124
A37: DOPEX0125
A38: DOPEX0126
A39: DOPEX0127
A40: DOPEX0128
A41: DOPEX0129
A42: DOPEX0130
A43: DOPEX0131
A44: DOPEX0132
A45: DOPEX0133
A46: DOPEX0134
A47: DOPEX0135
A48: DOPEX0136
A49: DOPEX0137
A50: DOPEX0138
A51: DOPEX0139
A52: DOPEX0140
A53: DOPEX0141
A54: DOPEX0142
A55: DOPEX0143
A56: DOPEX0144
A57: DOPEX0145
A58: DOPEX0146
A59: DOPEX0147
A60: DOPEX0148
A61: DOPEX0149
A62: DOPEX01 | B62: Total opex | C62: =SUM(C13:C61) -> 266525695.5 | D62: 273660977 | E62: 283712617.3 | F62: 290620799.1 | G62: 294188941.2 | H62: 300982349 | I62: 308088146.2 | K62: =SUM(K13:K61) -> 72982964.86 | L62: 73762700.11 | M62: 69538759.38 | N62: 66697223.51 | O62: 65375352.9 | P62: 63920032.01 | Q62: 62445399.36
B65: 3.2.2 - OPEX CONSISTENCY
B66: OPEX CONSISTENCY - CURRENT COST ALLOCATION APPROACH
C67: Standard control services | K67: Alternative control services
C68: =CONCATENATE("EXPENDITURE ($0's, real ", dms_DollarReal, ")") -> EXPENDITURE ($0's, real June 2024) | K68: =CONCATENATE("EXPENDITURE ($0's, real ", dms_DollarReal, ")") -> EXPENDITURE ($0's, real June 2024)
C69: =CRCP_y4 -> 2022-23 | D69: =CRCP_y5 -> 2023-24 | E69: =FRCP_y1 -> 2024-25 | F69: =FRCP_y2 -> 2025-26 | G69: =FRCP_y3 -> 2026-27 | H69: =FRCP_y4 -> 2027-28 | I69: =FRCP_y5 -> 2028-29 | K69: =CRCP_y4 -> 2022-23 | L69: =CRCP_y5 -> 2023-24 | M69: =FRCP_y1 -> 2024-25 | N69: =FRCP_y2 -> 2025-26 | O69: =FRCP_y3 -> 2026-27 | P69: =FRCP_y4 -> 2027-28 | Q69: =FRCP_y5 -> 2028-29
A70: DOPEX0201 | B70: Opex for network services | C70: 0 | D70: 0 | E70: 0 | F70: 0 | G70: 0 | H70: 0 | I70: 0 | K70: 0 | L70: 0 | M70: 0 | N70: 0 | O70: 0 | P70: 0 | Q70: 0
A71: DOPEX0202 | B71: Opex for metering | C71: 0 | D71: 0 | E71: 0 | F71: 0 | G71: 0 | H71: 0 | I71: 0 | K71: 0 | L71: 0 | M71: 0 | N71: 0 | O71: 0 | P71: 0 | Q71: 0
A72: DOPEX0203 | B72: Opex for connection services | C72: 0 | D72: 0 | E72: 0 | F72: 0 | G72: 0 | H72: 0 | I72: 0 | K72: 0 | L72: 0 | M72: 0 | N72: 0 | O72: 0 | P72: 0 | Q72: 0
A73: DOPEX0204 | B73: Opex for public lighting | C73: 0 | D73: 0 | E73: 0 | F73: 0 | G73: 0 | H73: 0 | I73: 0 | K73: 0 | L73: 0 | M73: 0 | N73: 0 | O73: 0 | P73: 0 | Q73: 0
A74: DOPEX0205 | B74: Opex for amounts payable for easement levy or similar direct charges on DNSP | C74: 0 | D74: 0 | E74: 0 | F74: 0 | G74: 0 | H74: 0 | I74: 0 | K74: 0 | L74: 0 | M74: 0 | N74: 0 | O74: 0 | P74: 0 | Q74: 0
A75: DOPEX0207 | B75: Opex for transmission connection point planning | C75: 0 | D75: 0 | E75: 0 | F75: 0 | G75: 0 | H75: 0 | I75: 0 | K75: 0 | L75: 0 | M75: 0 | N75: 0 | O75: 0 | P75: 0 | Q75: 0

Sheet 3.3 Assets (RAB)
B1: =INDEX(dms_Worksheet_List,MATCH(dms_Model,dms_Model_List)) -> REGULATORY REPORTING STATEMENT
B2: =INDEX(dms_TradingNameFull_List,MATCH(dms_TradingName,dms_TradingName_List)) -> Endeavour Energy
B3: =CONCATENATE("REGULATORY PERIOD FROM ", FRCP_y1," TO ",dms_MultiYear_FinalYear_Result) -> REGULATORY PERIOD FROM 2024-25 TO 2028-29
B4: 3.3 ASSETS
B6: There are FOUR tables on this worksheet. Both ROWS and COLUMNS in each have been grouped (and sub-grouped) for ease of navigation. see the Instructions sheet on how to group or ungroup tables.
B8: 3.3.1 - REGULATORY ASSET BASE VALUES
C9: Network services | K9: Standard control services | S9: Alternative control services
C10: =CONCATENATE(" VALUE Forecast ($0's, real ", dms_DollarReal, ")") -> VALUE Forecast ($0's, real June 2024) | K10: =CONCATENATE(" VALUE Forecast ($0's, real ", dms_DollarReal, ")") -> VALUE Forecast ($0's, real June 2024) | S10: =CONCATENATE(" VALUE Forecast ($0's, real ", dms_DollarReal, ")") -> VALUE Forecast ($0's, real June 2024)
C11: =CRCP_y4 -> 2022-23 | D11: =CRCP_y5 -> 2023-24 | E11: =FRCP_y1 -> 2024-25 | F11: =FRCP_y2 -> 2025-26 | G11: =FRCP_y3 -> 2026-27 | H11: =FRCP_y4 -> 2027-28 | I11: =FRCP_y5 -> 2028-29 | K11: =CRCP_y4 -> 2022-23 | L11: =CRCP_y5 -> 2023-24 | M11: =FRCP_y1 -> 2024-25 | N11: =FRCP_y2 -> 2025-26 | O11: =FRCP_y3 -> 2026-27 | P11: =FRCP_y4 -> 2027-28 | Q11: =FRCP_y5 -> 2028-29 | S11: =CRCP_y4 -> 2022-23 | T11: =CRCP_y5 -> 2023-24 | U11: =FRCP_y1 -> 2024-25 | V11: =FRCP_y2 -> 2025-26 | W11: =FRCP_y3 -> 2026-27 | X11: =FRCP_y4 -> 2027-28 | Y11: =FRCP_y5 -> 2028-29
B12: For total asset base:
A13: DRAB0101 | B13: Opening value | C13: 7692409656 | D13: 7802082386 | E13: 8031272890 | F13: 7971206656 | G13: 7930856485 | H13: 7870259030 | I13: 7827842106 | K13: 7692409656 | L13: 7802082386 | M13: 8031272890 | N13: 7971206656 | O13: 7930856485 | P13: 7870259030 | Q13: 7827842106 | S13: 23575080.52 | T13: 21623130.46 | U13: 20137776.08 | V13: 18387355.65 | W13: 16789085.67 | X13: 15329740.88 | Y13: 13997245.59
A14: DRAB0102 | B14: Inflation addition | C14: 615392772.5 | D14: 370598913.3 | E14: 230871655.1 | F14: 229144956 | G14: 227985026.3 | H14: 226243056.4 | I14: 225023714.7 | K14: 615392772.5 | L14: 370598913.3 | M14: 230871655.1 | N14: 229144956 | O14: 227985026.3 | P14: 226243056.4 | Q14: 225023714.7 | S14: 1886006.442 | T14: 1027098.697 | U14: 578892.2437 | V14: 528573.6381 | W14: 482628.838 | X14: 440677.6625 | Y14: 402372.9768
A15: DRAB0103 | B15: Straight line depreciation | C15: -336299135 | D15: -329930396.8 | E15: -498553881.8 | F15: -447889901.7 | G15: -427359710 | H15: -396915677.6 | I15: -390906858.4 | K15: -336299135 | L15: -329930396.8 | M15: -498553881.8 | N15: -447889901.7 | O15: -427359710 | P15: -396915677.6 | Q15: -390906858.4 | S15: -2108106.061 | T15: -1933560.836 | U15: -1800739.038 | V15: -1644214.783 | W15: -1501295.965 | X15: -1370799.97 | Y15: -1251646.977
A16: DRAB0105 | B16: Actual additions (recognised in RAB) | C16: 461219806.8 | D16: 365130621 | E16: 443106977.9 | F16: 412727440.6 | G16: 371370320.6 | H16: 359631922.5 | I16: 323533804.2 | K16: 461219806.8 | L16: 365130621 | M16: 443106977.9 | N16: 412727440.6 | O16: 371370320.6 | P16: 359631922.5 | Q16: 323533804.2 | S16: 0 | T16: 0 | U16: 0 | V16: 0 | W16: 0 | X16: 0 | Y16: 0
A17: DRAB0106 | B17: Disposals | C17: -6474123.609 | D17: -6069688.847 | E17: -6346034.184 | F17: -6347644.925 | G17: -6350040.527 | H17: -6352516.067 | I17: -6355393.716 | K17: -6474123.609 | L17: -6069688.847 | M17: -6346034.184 | N17: -6347644.925 | O17: -6350040.527 | P17: -6352516.067 | Q17: -6355393.716 | S17: 0 | T17: 0 | U17: 0 | V17: 0 | W17: 0 | X17: 0 | Y17: 0
A18: DRAB0107 | B18: Closing value | C18: =SUM(C13+C14+C15+C16+C17) -> 8426248977 | D18: 8201811835 | E18: 8200351607 | F18: 8158841506 | G18: 8096502082 | H18: 8052865816 | I18: 7979137373 | K18: =SUM(K13+K14+K15+K16+K17) -> 8426248977 | L18: 8201811835 | M18: 8200351607 | N18: 8158841506 | O18: 8096502082 | P18: 8052865816 | Q18: 7979137373 | S18: =SUM(S13+S14+S15+S16+S17) -> 23352980.9 | T18: 20716668.32 | U18: 18915929.29 | V18: 17271714.5 | W18: 15770418.54 | X18: 14399618.57 | Y18: 13147971.59
B21: 3.3.2 - ASSET VALUE ROLL FORWARD
C22: Network services | K22: Standard control services | S22: Alternative control services
C23: =CONCATENATE(" VALUE Forecast ($0's, real ", dms_DollarReal, ")") -> VALUE Forecast ($0's, real June 2024) | K23: =CONCATENATE(" VALUE Forecast ($0's, real ", dms_DollarReal, ")") -> VALUE Forecast ($0's, real June 2024) | S23: =CONCATENATE(" VALUE Forecast ($0's, real ", dms_DollarReal, ")") -> VALUE Forecast ($0's, real June 2024)
C24: =CRCP_y4 -> 2022-23 | D24: =CRCP_y5 -> 2023-24 | E24: =FRCP_y1 -> 2024-25 | F24: =FRCP_y2 -> 2025-26 | G24: =FRCP_y3 -> 2026-27 | H24: =FRCP_y4 -> 2027-28 | I24: =FRCP_y5 -> 2028-29 | K24: =CRCP_y4 -> 2022-23 | L24: =CRCP_y5 -> 2023-24 | M24: =FRCP_y1 -> 2024-25 | N24: =FRCP_y2 -> 2025-26 | O24: =FRCP_y3 -> 2026-27 | P24: =FRCP_y4 -> 2027-28 | Q24: =FRCP_y5 -> 2028-29 | S24: =CRCP_y4 -> 2022-23 | T24: =CRCP_y5 -> 2023-24 | U24: =FRCP_y1 -> 2024-25 | V24: =FRCP_y2 -> 2025-26 | W24: =FRCP_y3 -> 2026-27 | X24: =FRCP_y4 -> 2027-28 | Y24: =FRCP_y5 -> 2028-29
B25: For overhead network assets less than 33kV:
A26: DRAB0201 | B26: Opening value | C26: 1365840097 | D26: 1402771457 | E26: 1468292842 | F26: 1516058124 | G26: 1568447069 | H26: 1621848127 | I26: 1679635200 | K26: 1365840097 | L26: 1402771457 | M26: 1468292842 | N26: 1516058124 | O26: 1568447069 | P26: 1621848127 | Q26: 1679635200 | S26: 0 | T26: 0 | U26: 0 | V26: 0 | W26: 0 | X26: 0 | Y26: 0
A27: DRAB0202 | B27: Inflation addition | C27: 109267207.8 | D27: 66631644.21 | E27: 42208402.48 | F27: 43581491.14 | G27: 45087494.27 | H27: 46622592.2 | I27: 48283773.09 | K27: 109267207.8 | L27: 66631644.21 | M27: 42208402.48 | N27: 43581491.14 | O27: 45087494.27 | P27: 46622592.2 | Q27: 48283773.09 | S27: 0 | T27: 0 | U27: 0 | V27: 0 | W27: 0 | X27: 0 | Y27: 0
A28: DRAB0203 | B28: Straight line depreciation | C28: -41504627.58 | D28: -40718624.65 | E28: -61529427.36 | F28: -55276691.6 | G28: -52742941.51 | H28: -48985666.82 | I28: -48318059.16 | K28: -41504627.58 | L28: -40718624.65 | M28: -61529427.36 | N28: -55276691.6 | O28: -52742941.51 | P28: -48985666.82 | Q28: -48318059.16 | S28: 0 | T28: 0 | U28: 0 | V28: 0 | W28: 0 | X28: 0 | Y28: 0
A29: DRAB0205 | B29: Actual additions (recognised in RAB) | C29: 81390496.47 | D29: 70969278.68 | E29: 110667797.5 | F29: 109171638.5 | G29: 107679095.9 | H29: 108433919.9 | I29: 104501142.8 | K29: 81390496.47 | L29: 70969278.68 | M29: 110667797.5 | N29: 109171638.5 | O29: 107679095.9 | P29: 108433919.9 | Q29: 104501142.8 | S29: 0 | T29: 0 | U29: 0 | V29: 0 | W29: 0 | X29: 0 | Y29: 0
A30: DRAB0206 | B30: Disposals | C30: 0 | K30: 0 | L30: 0 | M30: 0 | N30: 0 | O30: 0 | P30: 0 | Q30: 0 | S30: 0 | T30: 0 | U30: 0 | V30: 0 | W30: 0 | X30: 0 | Y30: 0
A31: DRAB0207 | B31: Closing value | C31: =SUM(C26+C27+C28+C29+C30) -> 1514993174 | D31: 1499653755 | E31: 1559639615 | F31: 1613534562 | G31: 1668470718 | H31: 1727918972 | I31: 1784102057 | K31: =SUM(K26+K27+K28+K29+K30) -> 1514993174 | L31: 1499653755 | M31: 1559639615 | N31: 1613534562 | O31: 1668470718 | P31: 1727918972 | Q31: 1784102057 | S31: =SUM(S26+S27+S28+S29+S30) -> 0 | T31: 0 | U31: 0 | V31: 0 | W31: 0 | X31: 0 | Y31: 0
B32: For underground network assets less than 33kV:
A33: DRAB0301 | B33: Opening value | C33: 1601650471 | D33: 1548876960 | E33: 1530435082 | F33: 1442367494 | G33: 1361074449 | H33: 1283653052 | I33: 1211983675 | K33: 1601650471 | L33: 1548876960 | M33: 1530435082 | N33: 1442367494 | O33: 1361074449 | P33: 1283653052 | Q33: 1211983675 | S33: 0 | T33: 0 | U33: 0 | V33: 0 | W33: 0 | X33: 0 | Y33: 0
A34: DRAB0302 | B34: Inflation addition | C34: 128132037.6 | D34: 73571655.58 | E34: 43994779.57 | F34: 41463137.29 | G34: 39126239.98 | H34: 36900639.34 | I34: 34840389.59 | K34: 128132037.6 | L34: 73571655.58 | M34: 43994779.57 | N34: 41463137.29 | O34: 39126239.98 | P34: 36900639.34 | Q34: 34840389.59 | S34: 0 | T34: 0 | U34: 0 | V34: 0 | W34: 0 | X34: 0 | Y34: 0
A35: DRAB0303 | B35: Straight line depreciation | C35: -65491608.58 | D35: -64251346.96 | E35: -97089442.96 | F35: -87223031.76 | G35: -83224938.56 | H35: -77296202.96 | I35: -76242761.4 | K35: -65491608.58 | L35: -64251346.96 | M35: -97089442.96 | N35: -87223031.76 | O35: -83224938.56 | P35: -77296202.96 | Q35: -76242761.4 | S35: 0 | T35: 0 | U35: 0 | V35: 0 | W35: 0 | X35: 0 | Y35: 0
A36: DRAB0305 | B36: Actual additions (recognised in RAB) | C36: 8496216.616 | D36: 4255285.598 | E36: 6490211.48 | F36: 3593088.446 | G36: 3577940.446 | H36: 3566574.974 | I36: 3550296.258 | K36: 8496216.616 | L36: 4255285.598 | M36: 6490211.48 | N36: 3593088.446 | O36: 3577940.446 | P36: 3566574.974 | Q36: 3550296.258 | S36: 0 | T36: 0 | U36: 0 | V36: 0 | W36: 0 | X36: 0 | Y36: 0
A37: DRAB0306 | B37: Disposals | C37: 0 | D37: 0 | E37: 0 | F37: 0 | G37: 0 | H37: 0 | I37: 0 | K37: 0 | L37: 0 | M37: 0 | N37: 0 | O37: 0 | P37: 0 | Q37: 0 | S37: 0 | T37: 0 | U37: 0 | V37: 0 | W37: 0 | X37: 0 | Y37: 0
A38: DRAB0307 | B38: Closing value | C38: =SUM(C33+C34+C35+C36+C37) -> 1672787116 | D38: 1562452554 | E38: 1483830630 | F38: 1400200688 | G38: 1320553691 | H38: 1246824064 | I38: 1174131599 | K38: =SUM(K33+K34+K35+K36+K37) -> 1672787116 | L38: 1562452554 | M38: 1483830630 | N38: 1400200688 | O38: 1320553691 | P38: 1246824064 | Q38: 1174131599 | S38: =SUM(S33+S34+S35+S36+S37) -> 0 | T38: 0 | U38: 0 | V38: 0 | W38: 0 | X38: 0 | Y38: 0
B39: For distribution substations and transformers:
A40: DRAB0401 | B40: Opening value | C40: 659787524.6 | D40: 657886019.4 | E40: 673260300.3 | F40: 653618193.4 | G40: 639909482.3 | H40: 628028013.5 | I40: 619368100.1 | K40: 659787524.6 | L40: 657886019.4 | M40: 673260300.3 | N40: 653618193.4 | O40: 639909482.3 | P40: 628028013.5 | Q40: 619368100.1 | S40: 0 | T40: 0 | U40: 0 | V40: 0 | W40: 0 | X40: 0 | Y40: 0
A41: DRAB0402 | B41: Inflation addition | C41: 52783001.97 | D41: 31249585.92 | E41: 19353933.3 | F41: 18789289.83 | G41: 18395211.22 | H41: 18053659.58 | I41: 17804716.64 | K41: 52783001.97 | L41: 31249585.92 | M41: 19353933.3 | N41: 18789289.83 | O41: 18395211.22 | P41: 18053659.58 | Q41: 17804716.64 | S41: 0 | T41: 0 | U41: 0 | V41: 0 | W41: 0 | X41: 0 | Y41: 0
A42: DRAB0403 | B42: Straight line depreciation | C42: -38547416.74 | D42: -37817416.63 | E42: -57145446.57 | F42: -51338219.16 | G42: -48984999.14 | H42: -45495430.83 | I42: -44875390.31 | K42: -38547416.74 | L42: -37817416.63 | M42: -57145446.57 | N42: -51338219.16 | O42: -48984999.14 | P42: -45495430.83 | Q42: -44875390.31 | S42: 0 | T42: 0 | U42: 0 | V42: 0 | W42: 0 | X42: 0 | Y42: 0
A43: DRAB0405 | B43: Actual additions (recognised in RAB) | C43: 36535144.61 | D43: 36247449.29 | E43: 36979231.03 | F43: 37275974.61 | G43: 36802539.2 | H43: 36627150.72 | I43: 36689952.3 | K43: 36535144.61 | L43: 36247449.29 | M43: 36979231.03 | N43: 37275974.61 | O43: 36802539.2 | P43: 36627150.72 | Q43: 36689952.3 | S43: 0 | T43: 0 | U43: 0 | V43: 0 | W43: 0 | X43: 0 | Y43: 0
A44: DRAB0406 | B44: Disposals | C44: -41353.46079 | D44: -38770.13398 | E44: -40535.28966 | F44: -40545.57827 | G44: -40560.88018 | H44: -40576.69268 | I44: -40595.07367 | K44: -41353.46079 | L44: -38770.13398 | M44: -40535.28966 | N44: -40545.57827 | O44: -40560.88018 | P44: -40576.69268 | Q44: -40595.07367 | S44: 0 | T44: 0 | U44: 0 | V44: 0 | W44: 0 | X44: 0 | Y44: 0
A45: DRAB0407 | B45: Closing value | C45: =SUM(C40+C41+C42+C43+C44) -> 710516901 | D45: 687526867.9 | E45: 672407482.8 | F45: 658304693.1 | G45: 646081672.7 | H45: 637172816.3 | I45: 628946783.6 | K45: =SUM(K40+K41+K42+K43+K44) -> 710516901 | L45: 687526867.9 | M45: 672407482.8 | N45: 658304693.1 | O45: 646081672.7 | P45: 637172816.3 | Q45: 628946783.6 | S45: =SUM(S40+S41+S42+S43+S44) -> 0 | T45: 0 | U45: 0 | V45: 0 | W45: 0 | X45: 0 | Y45: 0
B46: For overhead network assets 33kV and above:
A47: DRAB0501 | B47: Opening value | C47: 331505650.6 | D47: 317551892.3 | E47: 326849176.9 | F47: 301900129 | G47: 273707222.8 | H47: 249278988.9 | I47: 227633978.1 | K47: 331505650.6 | L47: 317551892.3 | M47: 326849176.9 | N47: 301900129 | O47: 273707222.8 | P47: 249278988.9 | Q47: 227633978.1 | S47: 0 | T47: 0 | U47: 0 | V47: 0 | W47: 0 | X47: 0 | Y47: 0
A48: DRAB0502 | B48: Inflation addition | C48: 26520452.05 | D48: 15083714.88 | E48: 9395797.09 | F48: 8678597.2 | G48: 7868147.471 | H48: 7165919.207 | I48: 6543699.1 | K48: 26520452.05 | L48: 15083714.88 | M48: 9395797.09 | N48: 8678597.2 | O48: 7868147.471 | P48: 7165919.207 | Q48: 6543699.1 | S48: 0 | T48: 0 | U48: 0 | V48: 0 | W48: 0 | X48: 0 | Y48: 0
A49: DRAB0503 | B49: Straight line depreciation | C49: -32119561.89 | D49: -31511290.68 | E49: -47616334.98 | F49: -42777473.75 | G49: -40816657.63 | H49: -37908981.45 | I49: -37392333.87 | K49: -32119561.89 | L49: -31511290.68 | M49: -47616334.98 | N49: -42777473.75 | O49: -40816657.63 | P49: -37908981.45 | Q49: -37392333.87 | S49: 0 | T49: 0 | U49: 0 | V49: 0 | W49: 0 | X49: 0 | Y49: 0
A50: DRAB0505 | B50: Actual additions (recognised in RAB) | C50: 17049502.9 | D50: 32665061.02 | E50: 21950086.94 | F50: 13774117.68 | G50: 15686195.27 | H50: 15641750.47 | I50: 15282277.39 | K50: 17049502.9 | L50: 32665061.02 | M50: 21950086.94 | N50: 13774117.68 | O50: 15686195.27 | P50: 15641750.47 | Q50: 15282277.39 | S50: 0 | T50: 0 | U50: 0 | V50: 0 | W50: 0 | X50: 0 | Y50: 0
A51: DRAB0506 | B51: Disposals | C51: 0 | D51: 0 | E51: 0 | F51: 0 | G51: 0 | H51: 0 | I51: 0 | K51: 0 | L51: 0 | M51: 0 | N51: 0 | O51: 0 | P51: 0 | Q51: 0 | S51: 0 | T51: 0 | U51: 0 | V51: 0 | W51: 0 | X51: 0 | Y51: 0
A52: DRAB0507 | B52: Closing value | C52: =SUM(C47+C48+C49+C50+C51) -> 342956043.6 | D52: 333789377.5 | E52: 310578726 | F52: 281575370.1 | G52: 256444907.9 | H52: 234177677.1 | I52: 212067620.7 | K52: =SUM(K47+K48+K49+K50+K51) -> 342956043.6 | L52: 333789377.5 | M52: 310578726 | N52: 281575370.1 | O52: 256444907.9 | P52: 234177677.1 | Q52: 212067620.7 | S52: =SUM(S47+S48+S49+S50+S51) -> 0 | T52: 0 | U52: 0 | V52: 0 | W52: 0 | X52: 0 | Y52: 0
B53: For underground network assets 33kV and above:
A54: DRAB0601 | B54: Opening value | C54: 98783500.92 | D54: 101442868 | E54: 107922313.6 | F54: 115577193.4 | G54: 125653789.5 | H54: 133718083.1 | I54: 142524701.6 | K54: 98783500.92 | L54: 101442868 | M54: 107922313.6 | N54: 115577193.4 | O54: 125653789.5 | P54: 133718083.1 | Q54: 142524701.6 | S54: 0 | T54: 0 | U54: 0 | V54: 0 | W54: 0 | X54: 0 | Y54: 0
A55: DRAB0602 | B55: Inflation addition | C55: 7902680.073 | D55: 4818536.229 | E55: 3102397.777 | F55: 3322449.416 | G55: 3612117.124 | H55: 3843938.01 | I55: 4097098.199 | K55: 7902680.073 | L55: 4818536.229 | M55: 3102397.777 | N55: 3322449.416 | O55: 3612117.124 | P55: 3843938.01 | Q55: 4097098.199 | S55: 0 | T55: 0 | U55: 0 | V55: 0 | W55: 0 | X55: 0 | Y55: 0
A56: DRAB0603 | B56: Straight line depreciation | C56: -15276236.76 | D56: -14986939.69 | E56: -22646585.56 | F56: -20345197.08 | G56: -19412622.37 | H56: -18029715.91 | I56: -17783995.53 | K56: -15276236.76 | L56: -14986939.69 | M56: -22646585.56 | N56: -20345197.08 | O56: -19412622.37 | P56: -18029715.91 | Q56: -17783995.53 | S56: 0 | T56: 0 | U56: 0 | V56: 0 | W56: 0 | X56: 0 | Y56: 0
A57: DRAB0605 | B57: Actual additions (recognised in RAB) | C57: 18148353.18 | D57: 18965799.43 | E57: 30521516.98 | F57: 30711460.81 | G57: 27708736.78 | H57: 27089494.5 | I57: 26800454.54 | K57: 18148353.18 | L57: 18965799.43 | M57: 30521516.98 | N57: 30711460.81 | O57: 27708736.78 | P57: 27089494.5 | Q57: 26800454.54 | S57: 0 | T57: 0 | U57: 0 | V57: 0 | W57: 0 | X57: 0 | Y57: 0
A58: DRAB0606 | B58: Disposals | C58: 0 | D58: 0 | E58: 0 | F58: 0 | G58: 0 | H58: 0 | I58: 0 | K58: 0 | L58: 0 | M58: 0 | N58: 0 | O58: 0 | P58: 0 | Q58: 0 | S58: 0 | T58: 0 | U58: 0 | V58: 0 | W58: 0 | X58: 0 | Y58: 0
A59: DRAB0607 | B59: Closing value | C59: =SUM(C54+C55+C56+C57+C58) -> 109558297.4 | D59: 110240263.9 | E59: 118899642.8 | F59: 129265906.6 | G59: 137562021.1 | H59: 146621799.8 | I59: 155638258.9 | K59: =SUM(K54+K55+K56+K57+K58) -> 109558297.4 | L59: 110240263.9 | M59: 118899642.8 | N59: 129265906.6 | O59: 137562021.1 | P59: 146621799.8 | Q59: 155638258.9 | S59: =SUM(S54+S55+S56+S57+S58) -> 0 | T59: 0 | U59: 0 | V59: 0 | W59: 0 | X59: 0 | Y59: 0
B60: Zone substations and transformers
A61: DRAB0701 | B61: Opening value | C61: 2923470615 | D61: 3009583291 | E61: 3159700816 | F61: 3205978763 | G61: 3260413679 | H61: 3289701605 | I61: 3311650077 | K61: 2923470615 | L61: 3009583291 | M61: 3159700816 | N61: 3205978763 | O61: 3260413679 | P61: 3289701605 | Q61: 3311650077 | S61: 0 | T61: 0 | U61: 0 | V61: 0 | W61: 0 | X61: 0 | Y61: 0
A62: DRAB0702 | B62: Inflation addition | C62: 233877649.2 | D62: 142955206.3 | E62: 90830602.69 | F62: 92160935.52 | G62: 93725753.31 | H62: 94567681.08 | I62: 95198624.61 | K62: 233877649.2 | L62: 142955206.3 | M62: 90830602.69 | N62: 92160935.52 | O62: 93725753.31 | P62: 94567681.08 | Q62: 95198624.61 | S62: 0 | T62: 0 | U62: 0 | V62: 0 | W62: 0 | X62: 0 | Y62: 0
A63: DRAB0703 | B63: Straight line depreciation | C63: -81423175.22 | D63: -79881206.08 | E63: -120707536.4 | F63: -108441010.3 | G63: -103470336.2 | H63: -96099369.28 | I63: -94789666.27 | K63: -81423175.22 | L63: -79881206.08 | M63: -120707536.4 | N63: -108441010.3 | O63: -103470336.2 | P63: -96099369.28 | Q63: -94789666.27 | S63: 0 | T63: 0 | U63: 0 | V63: 0 | W63: 0 | X63: 0 | Y63: 0
A64: DRAB0705 | B64: Actual additions (recognised in RAB) | C64: 174550711.2 | D64: 154719308.6 | E64: 168439170.3 | F64: 164564128.3 | G64: 133723621.6 | H64: 118802264.1 | I64: 99626462.44 | K64: 174550711.2 | L64: 154719308.6 | M64: 168439170.3 | N64: 164564128.3 | O64: 133723621.6 | P64: 118802264.1 | Q64: 99626462.44 | S64: 0 | T64: 0 | U64: 0 | V64: 0 | W64: 0 | X64: 0 | Y64: 0
A65: DRAB0706 | B65: Disposals | C65: -125845.3124 | D65: -117983.8284 | E65: -123355.4845 | F65: -123386.7944 | G65: -123433.3606 | H65: -123481.4806 | I65: -123537.4169 | K65: -125845.3124 | L65: -117983.8284 | M65: -123355.4845 | N65: -123386.7944 | O65: -123433.3606 | P65: -123481.4806 | Q65: -123537.4169 | S65: 0 | T65: 0 | U65: 0 | V65: 0 | W65: 0 | X65: 0 | Y65: 0
A66: DRAB0707 | B66: Closing value | C66: =SUM(C61+C62+C63+C64+C65) -> 3250349955 | D66: 3227258616 | E66: 3298139697 | F66: 3354139430 | G66: 3384269284 | H66: 3406848700 | I66: 3411561961 | K66: =SUM(K61+K62+K63+K64+K65) -> 3250349955 | L66: 3227258616 | M66: 3298139697 | N66: 3354139430 | O66: 3384269284 | P66: 3406848700 | Q66: 3411561961 | S66: =SUM(S61+S62+S63+S64+S65) -> 0 | T66: 0 | U66: 0 | V66: 0 | W66: 0 | X66: 0 | Y66: 0
B67: For easements:
A68: DRAB0801 | B68: Opening value | C68: 20507751.04 | D68: 20669101.15 | E68: 21201251.96 | F68: 21201251.97 | G68: 21201251.99 | H68: 21201252 | I68: 21201252.01 | K68: 20507751.04 | L68: 20669101.15 | M68: 21201251.96 | N68: 21201251.97 | O68: 21201251.99 | P68: 21201252 | Q68: 21201252.01 | S68: 0 | T68: 0 | U68: 0 | V68: 0 | W68: 0 | X68: 0 | Y68: 0
A69: DRAB0802 | B69: Inflation addition | C69: 1640620.083 | D69: 981782.3046 | E69: 609463.5554 | F69: 609463.5555 | G69: 609463.5556 | H69: 609463.5557 | I69: 609463.5557 | K69: 1640620.083 | L69: 981782.3046 | M69: 609463.5554 | N69: 609463.5555 | O69: 609463.5556 | P69: 609463.5557 | Q69: 609463.5557 | S69: 0 | T69: 0 | U69: 0 | V69: 0 | W69: 0 | X69: 0 | Y69: 0
A70: DRAB0803 | B70: Actual additions (recognised in RAB) | C70: 174258.1174 | D70: 0 | E70: 0 | F70: 0 | G70: 0 | H70: 0 | I70: 0 | K70: 174258.1174 | L70: 0 | M70: 0 | N70: 0 | O70: 0 | P70: 0 | Q70: 0 | S70: 0 | T70: 0 | U70: 0 | V70: 0 | W70: 0 | X70: 0 | Y70: 0
A71: DRAB0804 | B71: Disposals | C71: 0 | D71: 0 | E71: 0 | F71: 0 | G71: 0 | H71: 0 | I71: 0 | K71: 0 | L71: 0 | M71: 0 | N71: 0 | O71: 0 | P71: 0 | Q71: 0 | S71: 0 | T71: 0 | U71: 0 | V71: 0 | W71: 0 | X71: 0 | Y71: 0
A72: DRAB0805 | B72: Closing value | C72: =SUM(C68+C69+C70+C71) -> 22322629.24 | D72: 21650883.45 | E72: 21810715.51 | F72: 21810715.53 | G72: 21810715.54 | H72: 21810715.55 | I72: 21810715.57 | K72: =SUM(K68+K69+K70+K71) -> 22322629.24 | L72: 21650883.45 | M72: 21810715.51 | N72: 21810715.53 | O72: 21810715.54 | P72: 21810715.55 | Q72: 21810715.57 | S72: =SUM(S68+S69+S70+S71) -> 0 | T72: 0 | U72: 0 | V72: 0 | W72: 0 | X72: 0 | Y72: 0
B73: For meters:
A74: DRAB0901 | B74: Opening value | C74: 22423002.73 | D74: 19817109.28 | E74: 17571144.54 | F74: 13397449.89 | G74: 9633688.764 | H74: 6042489.201 | I74: 2707191.824 | K74: 22423002.73 | L74: 19817109.28 | M74: 17571144.54 | N74: 13397449.89 | O74: 9633688.764 | P74: 6042489.201 | Q74: 2707191.824 | S74: 22986097.82 | T74: 21082913.87 | U74: 19634668.5 | V74: 17927979.3 | W74: 16369639.34 | X74: 14946753.76 | Y74: 13647548.57
A75: DRAB0902 | B75: Inflation addition | C75: 1793840.219 | D75: 941312.6909 | E75: 505110.3701 | F75: 385130.9091 | G75: 276935.6362 | H75: 173700.9189 | I75: 77822.51512 | K75: 1793840.219 | L75: 941312.6909 | M75: 505110.3701 | N75: 385130.9091 | O75: 276935.6362 | P75: 173700.9189 | Q75: 77822.51512 | S75: 1838887.826 | T75: 1001438.409 | U75: 564429.6201 | V75: 515368.1381 | W75: 470571.1895 | X75: 429668.0917 | Y75: 392320.3824
A76: DRAB0903 | B76: Straight line depreciation | C76: -2908226.14 | D76: -2853150.973 | E76: -4311362.357 | F76: -3873233.632 | G76: -3695693.953 | H76: -3432421.998 | I76: -2786241.562 | K76: -2908226.14 | L76: -2853150.973 | M76: -4311362.357 | N76: -3873233.632 | O76: -3695693.953 | P76: -3432421.998 | Q76: -2786241.562 | S76: -2055438.67 | T76: -1885254.155 | U76: -1755750.681 | V76: -1603136.914 | W76: -1463788.676 | X76: -1336552.898 | Y76: -1220376.738
A77: DRAB0905 | B77: Actual additions (recognised in RAB) | C77: 93861.21529 | D77: 17740.21741 | E77: 17688.24064 | F77: 1277.224109 | G77: 1259.669529 | H77: 1246.215616 | I77: 1227.224368 | K77: 93861.21529 | L77: 17740.21741 | M77: 17688.24064 | N77: 1277.224109 | O77: 1259.669529 | P77: 1246.215616 | Q77: 1227.224368 | S77: 0 | T77: 0 | U77: 0 | V77: 0 | W77: 0 | X77: 0 | Y77: 0
A78: DRAB0906 | B78: Disposals | C78: 0 | D78: 0 | E78: 0 | F78: 0 | G78: 0 | H78: 0 | I78: 0 | K78: 0 | L78: 0 | M78: 0 | N78: 0 | O78: 0 | P78: 0 | Q78: 0 | S78: 0 | T78: 0 | U78: 0 | V78: 0 | W78: 0 | X78: 0 | Y78: 0
A79: DRAB0907 | B79: Closing value | C79: =SUM(C74+C75+C76+C77+C78) -> 21402478.03 | D79: 17923011.22 | E79: 13782580.79 | F79: 9910624.394 | G79: 6216190.116 | H79: 2785014.338 | I79: 0.001876150444 | K79: =SUM(K74+K75+K76+K77+K78) -> 21402478.03 | L79: 17923011.22 | M79: 13782580.79 | N79: 9910624.394 | O79: 6216190.116 | P79: 2785014.338 | Q79: 0.001876150444 | S79: =SUM(S74+S75+S76+S77+S78) -> 22769546.98 | T79: 20199098.12 | U79: 18443347.44 | V79: 16840210.53 | W79: 15376421.85 | X79: 14039868.95 | Y79: 12819492.21
B80: For “other” asset items with long lives:
A81: DRAB1001 | B81: Opening value | C81: 122250118 | D81: 162483581.7 | E81: 165375928.4 | F81: 155506437.1 | G81: 146919457 | H81: 138989961.3 | I81: 131916136.9 | K81: 122250118 | L81: 162483581.7 | M81: 165375928.4 | N81: 155506437.1 | O81: 146919457 | P81: 138989961.3 | Q81: 131916136.9 | S81: 119790.0036 | T81: 109871.7298 | U81: 102324.3279 | V81: 93430.069 | W81: 85308.91892 | X81: 77893.67733 | Y81: 71122.98509
A82: DRAB1002 | B82: Inflation addition | C82: 9780009.442 | D82: 7717970.13 | E82: 4753992.901 | F82: 4470278.745 | G82: 4223432.404 | H82: 3995486.493 | I82: 3792138.21 | K82: 9780009.442 | L82: 7717970.13 | M82: 4753992.901 | N82: 4470278.745 | O82: 4223432.404 | P82: 3995486.493 | Q82: 3792138.21 | S82: 9583.20029 | T82: 5218.907165 | U82: 2941.474745 | V82: 2685.795197 | W82: 2452.339885 | X82: 2239.17703 | Y82: 2044.542766
A83: DRAB1003 | B83: Straight line depreciation | C83: -6733743.188 | D83: -6606221.458 | E83: -9982582.339 | F83: -8968133.608 | G83: -8557056.015 | H83: -7947472.836 | I83: -7839159.648 | K83: -6733743.188 | L83: -6606221.458 | M83: -9982582.339 | N83: -8968133.608 | O83: -8557056.015 | P83: -7947472.836 | Q83: -7839159.648 | S83: -10711.73575 | T83: -9824.834291 | U83: -9149.938457 | V83: -8354.605389 | W83: -7628.404446 | X83: -6965.32651 | Y83: -6359.884787
A84: DRAB1005 | B84: Actual additions (recognised in RAB) | C84: 55574214.05 | D84: 10329846.16 | E84: 5111099.688 | F84: 5417370.555 | G84: 5684671.67 | H84: 5957417.777 | I84: 6076317.13 | K84: 55574214.05 | L84: 10329846.16 | M84: 5111099.688 | N84: 5417370.555 | O84: 5684671.67 | P84: 5957417.777 | Q84: 6076317.13 | S84: 0 | T84: 0 | U84: 0 | V84: 0 | W84: 0 | X84: 0 | Y84: 0
A85: DRAB1006 | B85: Disposals | C85: -5388330.104 | D85: -5051724.235 | E85: -5281722.917 | F85: -5283063.516 | G85: -5285057.345 | H85: -5287117.705 | I85: -5289512.736 | K85: -5388330.104 | L85: -5051724.235 | M85: -5281722.917 | N85: -5283063.516 | O85: -5285057.345 | P85: -5287117.705 | Q85: -5289512.736 | S85: 0 | T85: 0 | U85: 0 | V85: 0 | W85: 0 | X85: 0 | Y85: 0
A86: DRAB1007 | B86: Closing value | C86: =SUM(C81+C82+C83+C84+C85) -> 175482268.2 | D86: 168873452.3 | E86: 159976715.7 | F86: 151142889.3 | G86: 142985447.7 | H86: 135708275 | I86: 128655919.8 | K86: =SUM(K81+K82+K83+K84+K85) -> 175482268.2 | L86: 168873452.3 | M86: 159976715.7 | N86: 151142889.3 | O86: 142985447.7 | P86: 135708275 | Q86: 128655919.8 | S86: =SUM(S81+S82+S83+S84+S85) -> 118661.4682 | T86: 105265.8027 | U86: 96115.8642 | V86: 87761.25881 | W86: 80132.85436 | X86: 73167.52785 | Y86: 66807.64306
B87: For “other” asset items with short lives:
A88: DRAB1101 | B88: Opening value | C88: 546190925.8 | D88: 561000106.2 | E88: 560664034.4 | F88: 545601619.7 | G88: 523896395.7 | H88: 497797457.8 | I88: 479221793.2 | K88: 546190925.8 | L88: 561000106.2 | M88: 560664034.4 | N88: 545601619.7 | O88: 523896395.7 | P88: 497797457.8 | Q88: 479221793.2 | S88: 469192.6946 | T88: 430344.8651 | U88: 400783.2513 | V88: 365946.2768 | W88: 334137.4099 | X88: 305093.4406 | Y88: 278574.038
A89: DRAB1102 | B89: Inflation addition | C89: 43695274.07 | D89: 26647505.04 | E89: 16117175.37 | F89: 15684182.4 | G89: 15060231.36 | H89: 14309976.06 | I89: 13775989.17 | K89: 43695274.07 | L89: 26647505.04 | M89: 16117175.37 | N89: 15684182.4 | O89: 15060231.36 | P89: 14309976.06 | Q89: 13775989.17 | S89: 37535.41556 | T89: 20441.38109 | U89: 11521.14884 | V89: 10519.70488 | W89: 9605.308656 | X89: 8770.393795 | Y89: 8008.051596
A90: DRAB1103 | B90: Straight line depreciation | C90: -52294538.88 | D90: -51304199.65 | E90: -77525163.3 | F90: -69646910.87 | G90: -66454464.63 | H90: -61720415.47 | I90: -60879250.6 | K90: -52294538.88 | L90: -51304199.65 | M90: -77525163.3 | N90: -69646910.87 | O90: -66454464.63 | P90: -61720415.47 | Q90: -60879250.6 | S90: -41955.65578 | T90: -38481.84602 | U90: -35838.41848 | V90: -32723.26318 | W90: -29878.88412 | X90: -27281.74484 | Y90: -24910.35471
A91: DRAB1105 | B91: Actual additions (recognised in RAB) | C91: 69207048.38 | D91: 36960852.06 | E91: 62930175.75 | F91: 48218384.49 | G91: 40506260.05 | H91: 43512103.89 | I91: 31005674.1 | K91: 69207048.38 | L91: 36960852.06 | M91: 62930175.75 | N91: 48218384.49 | O91: 40506260.05 | P91: 43512103.89 | Q91: 31005674.1 | S91: 0 | T91: 0 | U91: 0 | V91: 0 | W91: 0 | X91: 0 | Y91: 0
A92: DRAB1106 | B92: Disposals | C92: -918594.732 | D92: -861210.6496 | E92: -900420.4928 | F92: -900649.0362 | G92: -900988.9412 | H92: -901340.1884 | I92: -901748.4898 | K92: -918594.732 | L92: -861210.6496 | M92: -900420.4928 | N92: -900649.0362 | O92: -900988.9412 | P92: -901340.1884 | Q92: -901748.4898 | S92: 0 | T92: 0 | U92: 0 | V92: 0 | W92: 0 | X92: 0 | Y92: 0
A93: DRAB1107 | B93: Closing value | C93: =SUM(C88+C89+C90+C91+C92) -> 605880114.7 | D93: 572443053 | E93: 561285801.8 | F93: 538956626.7 | G93: 512107433.5 | H93: 492997782.1 | I93: 462222457.4 | K93: =SUM(K88+K89+K90+K91+K92) -> 605880114.7 | L93: 572443053 | M93: 561285801.8 | N93: 538956626.7 | O93: 512107433.5 | P93: 492997782.1 | Q93: 462222457.4 | S93: =SUM(S88+S89+S90+S91+S92) -> 464772.4543 | T93: 412304.4002 | U93: 376465.9817 | V93: 343742.7185 | W93: 313863.8344 | X93: 286582.0896 | Y93: 261671.7349
B97: 3.3.3 - TOTAL DISAGGREGATED RAB ASSET VALUES
C98: Network services | K98: Standard control services | S98: Alternative control services
C99: =CONCATENATE(" VALUE Forecast ($0's, real ", dms_DollarReal, ")") -> VALUE Forecast ($0's, real June 2024) | K99: =CONCATENATE(" VALUE Forecast ($0's, real ", dms_DollarReal, ")") -> VALUE Forecast ($0's, real June 2024) | S99: =CONCATENATE(" VALUE Forecast ($0's, real ", dms_DollarReal, ")") -> VALUE Forecast ($0's, real June 2024)
C100: =CRCP_y4 -> 2022-23 | D100: =CRCP_y5 -> 2023-24 | E100: =FRCP_y1 -> 2024-25 | F100: =FRCP_y2 -> 2025-26 | G100: =FRCP_y3 -> 2026-27 | H100: =FRCP_y4 -> 2027-28 | I100: =FRCP_y5 -> 2028-29 | K100: =CRCP_y4 -> 2022-23 | L100: =CRCP_y5 -> 2023-24 | M100: =FRCP_y1 -> 2024-25 | N100: =FRCP_y2 -> 2025-26 | O100: =FRCP_y3 -> 2026-27 | P100: =FRCP_y4 -> 2027-28 | Q100: =FRCP_y5 -> 2028-29 | S100: =CRCP_y4 -> 2022-23 | T100: =CRCP_y5 -> 2023-24 | U100: =FRCP_y1 -> 2024-25 | V100: =FRCP_y2 -> 2025-26 | W100: =FRCP_y3 -> 2026-27 | X100: =FRCP_y4 -> 2027-28 | Y100: =FRCP_y5 -> 2028-29
A101: DRAB1201 | B101: Overhead network assets less than 33kV (wires and poles) | C101: 1440416635 | D101: 1451212606 | E101: 1513966228 | F101: 1564796343 | G101: 1618458894 | H101: 1674883549 | I101: 1731868628 | K101: 1440416635 | L101: 1451212606 | M101: 1513966228 | N101: 1564796343 | O101: 1618458894 | P101: 1674883549 | Q101: 1731868628 | S101: 0 | T101: 0 | U101: 0 | V101: 0 | W101: 0 | X101: 0 | Y101: 0
A102: DRAB1202 | B102: Underground network assets less than 33kV (cables) | C102: 1637218793 | D102: 1555664757 | E102: 1507132856 | F102: 1421284091 | G102: 1340814070 | H102: 1265238558 | I102: 1193057637 | K102: 1637218793 | L102: 1555664757 | M102: 1507132856 | N102: 1421284091 | O102: 1340814070 | P102: 1265238558 | Q102: 1193057637 | S102: 0 | T102: 0 | U102: 0 | V102: 0 | W102: 0 | X102: 0 | Y102: 0
A103: DRAB1203 | B103: Distribution substations including transformers | C103: 685152212.8 | D103: 672706443.6 | E103: 672833891.5 | F103: 655961443.2 | G103: 642995577.5 | H103: 632600414.9 | I103: 624157441.8 | K103: 685152212.8 | L103: 672706443.6 | M103: 672833891.5 | N103: 655961443.2 | O103: 642995577.5 | P103: 632600414.9 | Q103: 624157441.8 | S103: 0 | T103: 0 | U103: 0 | V103: 0 | W103: 0 | X103: 0 | Y103: 0
A104: DRAB1204 | B104: Overhead network assets 33kV and above (wires and towers / poles etc) | C104: 337230847.1 | D104: 325670634.9 | E104: 318713951.4 | F104: 291737749.5 | G104: 265076065.4 | H104: 241728333 | I104: 219850799.4 | K104: 337230847.1 | L104: 325670634.9 | M104: 318713951.4 | N104: 291737749.5 | O104: 265076065.4 | P104: 241728333 | Q104: 219850799.4 | S104: 0 | T104: 0 | U104: 0 | V104: 0 | W104: 0 | X104: 0 | Y104: 0
A105: DRAB1205 | B105: Underground network assets 33kV and above(cables, ducts etc) | C105: 104170899.2 | D105: 105841566 | E105: 113410978.2 | F105: 122421550 | G105: 131607905.3 | H105: 140169941.5 | I105: 149081480.2 | K105: 104170899.2 | L105: 105841566 | M105: 113410978.2 | N105: 122421550 | O105: 131607905.3 | P105: 140169941.5 | Q105: 149081480.2 | S105: 0 | T105: 0 | U105: 0 | V105: 0 | W105: 0 | X105: 0 | Y105: 0
A106: DRAB1206 | B106: Zone substations and transformers | C106: 3086910285 | D106: 3118420954 | E106: 3228920256 | F106: 3280059097 | G106: 3322341482 | H106: 3348275153 | I106: 3361606019 | K106: 3086910285 | L106: 3118420954 | M106: 3228920256 | N106: 3280059097 | O106: 3322341482 | P106: 3348275153 | Q106: 3361606019 | S106: 0 | T106: 0 | U106: 0 | V106: 0 | W106: 0 | X106: 0 | Y106: 0
A107: DRAB1207 | B107: Easements | C107: 21415190.14 | D107: 21159992.3 | E107: 21505983.73 | F107: 21505983.75 | G107: 21505983.76 | H107: 21505983.78 | I107: 21505983.79 | K107: 21415190.14 | L107: 21159992.3 | M107: 21505983.73 | N107: 21505983.75 | O107: 21505983.76 | P107: 21505983.78 | Q107: 21505983.79 | S107: 0 | T107: 0 | U107: 0 | V107: 0 | W107: 0 | X107: 0 | Y107: 0
A108: DRAB1208 | B108: Meters | C108: 21912740.38 | D108: 18870060.25 | E108: 15676862.67 | F108: 11654037.14 | G108: 7924939.44 | H108: 4413751.769 | I108: 1353595.913 | K108: 21912740.38 | L108: 18870060.25 | M108: 15676862.67 | N108: 11654037.14 | O108: 7924939.44 | P108: 4413751.769 | Q108: 1353595.913 | S108: 22877822.4 | T108: 20641005.99 | U108: 19039007.97 | V108: 17384094.91 | W108: 15873030.59 | X108: 14493311.36 | Y108: 13233520.39
A109: DRAB1209 | B109: “Other” assets with long lives | C109: 148866193.1 | D109: 165678517 | E109: 162676322.1 | F109: 153324663.2 | G109: 144952452.3 | H109: 137349118.1 | I109: 130286028.4 | K109: 148866193.1 | L109: 165678517 | M109: 162676322.1 | N109: 153324663.2 | O109: 144952452.3 | P109: 137349118.1 | Q109: 130286028.4 | S109: 119225.7359 | T109: 107568.7662 | U109: 99220.09605 | V109: 90595.6639 | W109: 82720.88664 | X109: 75530.60259 | Y109: 68965.31408
A110: DRAB1210 | B110: “Other” assets with short lives | C110: 576035520.2 | D110: 566721579.6 | E110: 560974918.1 | F110: 542279123.2 | G110: 518001914.6 | H110: 495397619.9 | I110: 470722125.3 | K110: 576035520.2 | L110: 566721579.6 | M110: 560974918.1 | N110: 542279123.2 | O110: 518001914.6 | P110: 495397619.9 | Q110: 470722125.3 | S110: 466982.5744 | T110: 421324.6327 | U110: 388624.6165 | V110: 354844.4977 | W110: 324000.6221 | X110: 295837.7651 | Y110: 270122.8864
A111: DRAB13 | B111: Value of Capital Contributions or Contributed Assets (included in the above) | C111: 0 | D111: 0 | E111: 0 | F111: 0 | G111: 0 | H111: 0 | I111: 0 | K111: 0 | L111: 0 | M111: 0 | N111: 0 | O111: 0 | P111: 0 | Q111: 0 | S111: 0 | T111: 0 | U111: 0 | V111: 0 | W111: 0 | X111: 0 | Y111: 0
B114: 3.3.4 - ASSET LIVES
C115: Network services | K115: Standard control services | S115: Alternative control services
C116: Forecast ( years ) | K116: Forecast ( years ) | S116: Forecast ( years )
C117: =CRCP_y4 -> 2022-23 | D117: =CRCP_y5 -> 2023-24 | E117: =FRCP_y1 -> 2024-25 | F117: =FRCP_y2 -> 2025-26 | G117: =FRCP_y3 -> 2026-27 | H117: =FRCP_y4 -> 2027-28 | I117: =FRCP_y5 -> 2028-29 | K117: =CRCP_y4 -> 2022-23 | L117: =CRCP_y5 -> 2023-24 | M117: =FRCP_y1 -> 2024-25 | N117: =FRCP_y2 -> 2025-26 | O117: =FRCP_y3 -> 2026-27 | P117: =FRCP_y4 -> 2027-28 | Q117: =FRCP_y5 -> 2028-29 | S117: =CRCP_y4 -> 2022-23 | T117: =CRCP_y5 -> 2023-24 | U117: =FRCP_y1 -> 2024-25 | V117: =FRCP_y2 -> 2025-26 | W117: =FRCP_y3 -> 2026-27 | X117: =FRCP_y4 -> 2027-28 | Y117: =FRCP_y5 -> 2028-29
B118: Estimated service life of new assets
A119: DRAB1401 | B119: Overhead network assets less than 33kV (wires and poles) | C119: 52.95727554 | D119: 52.95727554 | E119: 52.95727554 | F119: 52.95727554 | G119: 52.95727554 | H119: 52.95727554 | I119: 52.95727554 | K119: 52.95727554 | L119: 52.95727554 | M119: 52.95727554 | N119: 52.95727554 | O119: 52.95727554 | P119: 52.95727554 | Q119: 52.95727554 | S119: 0 | T119: 0 | U119: 0 | V119: 0 | W119: 0 | X119: 0 | Y119: 0
A120: DRAB1402 | B120: Underground network assets less than 33kV (cables) | C120: 60 | D120: 60 | E120: 60 | F120: 60 | G120: 60 | H120: 60 | I120: 60 | K120: 60 | L120: 60 | M120: 60 | N120: 60 | O120: 60 | P120: 60 | Q120: 60 | S120: 0 | T120: 0 | U120: 0 | V120: 0 | W120: 0 | X120: 0 | Y120: 0
A121: DRAB1403 | B121: Distribution substations including transformers | C121: 41.70172879 | D121: 41.70172879 | E121: 41.70172879 | F121: 41.70172879 | G121: 41.70172879 | H121: 41.70172879 | I121: 41.70172879 | K121: 41.70172879 | L121: 41.70172879 | M121: 41.70172879 | N121: 41.70172879 | O121: 41.70172879 | P121: 41.70172879 | Q121: 41.70172879 | S121: 0 | T121: 0 | U121: 0 | V121: 0 | W121: 0 | X121: 0 | Y121: 0
A122: DRAB1404 | B122: Overhead network assets 33kV and above (wires and towers / poles etc) | C122: 56.23182057 | D122: 56.23182057 | E122: 56.23182057 | F122: 56.23182057 | G122: 56.23182057 | H122: 56.23182057 | I122: 56.23182057 | K122: 56.23182057 | L122: 56.23182057 | M122: 56.23182057 | N122: 56.23182057 | O122: 56.23182057 | P122: 56.23182057 | Q122: 56.23182057 | S122: 0 | T122: 0 | U122: 0 | V122: 0 | W122: 0 | X122: 0 | Y122: 0
A123: DRAB1405 | B123: Underground network assets 33kV and above(cables, ducts etc) | C123: 45 | D123: 45 | E123: 45 | F123: 45 | G123: 45 | H123: 45 | I123: 45 | K123: 45 | L123: 45 | M123: 45 | N123: 45 | O123: 45 | P123: 45 | Q123: 45 | S123: 0 | T123: 0 | U123: 0 | V123: 0 | W123: 0 | X123: 0 | Y123: 0
A124: DRAB1406 | B124: Zone substations and transformers | C124: 45.25823462 | D124: 45.25823462 | E124: 45.25823462 | F124: 45.25823462 | G124: 45.25823462 | H124: 45.25823462 | I124: 45.25823462 | K124: 45.25823462 | L124: 45.25823462 | M124: 45.25823462 | N124: 45.25823462 | O124: 45.25823462 | P124: 45.25823462 | Q124: 45.25823462 | S124: 0 | T124: 0 | U124: 0 | V124: 0 | W124: 0 | X124: 0 | Y124: 0
A125: DRAB1407 | B125: Meters | C125: 25 | D125: 25 | E125: 25 | F125: 25 | G125: 25 | H125: 25 | I125: 25 | K125: 25 | L125: 25 | M125: 25 | N125: 25 | O125: 25 | P125: 25 | Q125: 25 | S125: 25 | T125: 25 | U125: 25 | V125: 25 | W125: 25 | X125: 25 | Y125: 25
A126: DRAB1408 | B126: “Other” assets with long lives | C126: 47.02688948 | D126: 47.02688948 | E126: 47.02688948 | F126: 47.02688948 | G126: 47.02688948 | H126: 47.02688948 | I126: 47.02688948 | K126: 47.02688948 | L126: 47.02688948 | M126: 47.02688948 | N126: 47.02688948 | O126: 47.02688948 | P126: 47.02688948 | Q126: 47.02688948 | S126: 47.02688948 | T126: 47.02688948 | U126: 47.02688948 | V126: 47.02688948 | W126: 47.02688948 | X126: 47.02688948 | Y126: 47.02688948
A127: DRAB1409 | B127: “Other” assets with short lives | C127: 7.065663052 | D127: 7.065663052 | E127: 7.065663052 | F127: 7.065663052 | G127: 7.065663052 | H127: 7.065663052 | I127: 7.065663052 | K127: 7.065663052 | L127: 7.065663052 | M127: 7.065663052 | N127: 7.065663052 | O127: 7.065663052 | P127: 7.065663052 | Q127: 7.065663052 | S127: 7.065663052 | T127: 7.065663052 | U127: 7.065663052 | V127: 7.065663052 | W127: 7.065663052 | X127: 7.065663052 | Y127: 7.065663052
B128: Estimated residual service life
A129: DRAB1501 | B129: Overhead network assets less than 33kV (wires and poles) | C129: 39.3663834 | D129: 39.30312595 | E129: 39.23997015 | F129: 39.17691583 | G129: 39.11396284 | H129: 39.051111 | I129: 38.98836016 | K129: 39.3663834 | L129: 39.30312595 | M129: 39.23997015 | N129: 39.17691583 | O129: 39.11396284 | P129: 39.051111 | Q129: 38.98836016 | S129: 0 | T129: 0 | U129: 0 | V129: 0 | W129: 0 | X129: 0 | Y129: 0
A130: DRAB1502 | B130: Underground network assets less than 33kV (cables) | C130: 44.42114016 | D130: 43.94305607 | E130: 43.47011737 | F130: 43.0022687 | G130: 42.53945526 | H130: 42.08162287 | I130: 41.62871791 | K130: 44.42114016 | L130: 43.94305607 | M130: 43.47011737 | N130: 43.0022687 | O130: 42.53945526 | P130: 42.08162287 | Q130: 41.62871791 | S130: 0 | T130: 0 | U130: 0 | V130: 0 | W130: 0 | X130: 0 | Y130: 0
A131: DRAB1503 | B131: Distribution substations including transformers | C131: 29.31242754 | D131: 28.88511507 | E131: 28.46403191 | F131: 28.04908724 | G131: 27.64019157 | H131: 27.23725672 | I131: 26.84019581 | K131: 29.31242754 | L131: 28.88511507 | M131: 28.46403191 | N131: 28.04908724 | O131: 27.64019157 | P131: 27.23725672 | Q131: 26.84019581 | S131: 0 | T131: 0 | U131: 0 | V131: 0 | W131: 0 | X131: 0 | Y131: 0
A132: DRAB1504 | B132: Overhead network assets 33kV and above (wires and towers / poles etc) | C132: 43.81842164 | D132: 43.97361319 | E132: 44.12935439 | F132: 44.28564717 | G132: 44.4424935 | H132: 44.59989533 | I132: 44.75785462 | K132: 43.81842164 | L132: 43.97361319 | M132: 44.12935439 | N132: 44.28564717 | O132: 44.4424935 | P132: 44.59989533 | Q132: 44.75785462 | S132: 0 | T132: 0 | U132: 0 | V132: 0 | W132: 0 | X132: 0 | Y132: 0
A133: DRAB1505 | B133: Underground network assets 33kV and above (cables, ducts etc) | C133: 28.33850019 | D133: 27.58531244 | E133: 26.85214309 | F133: 26.1384601 | G133: 25.44374556 | H133: 24.76749532 | I133: 24.10921862 | K133: 28.33850019 | L133: 27.58531244 | M133: 26.85214309 | N133: 26.1384601 | O133: 25.44374556 | P133: 24.76749532 | Q133: 24.10921862 | S133: 0 | T133: 0 | U133: 0 | V133: 0 | W133: 0 | X133: 0 | Y133: 0
A134: DRAB1506 | B134: Zone substations and transformers | C134: 35.58123259 | D134: 35.30217669 | E134: 35.02530936 | F134: 34.75061345 | G134: 34.47807192 | H134: 34.20766787 | I134: 33.93938454 | K134: 35.58123259 | L134: 35.30217669 | M134: 35.02530936 | N134: 34.75061345 | O134: 34.47807192 | P134: 34.20766787 | Q134: 33.93938454 | S134: 0 | T134: 0 | U134: 0 | V134: 0 | W134: 0 | X134: 0 | Y134: 0
A135: DRAB1507 | B135: Meters | C135: 8.683959293 | D135: 8.096282573 | E135: 7.548376182 | F135: 7.037548712 | G135: 6.561290889 | H135: 6.117263254 | I135: 5.703284665 | K135: 8.683959293 | L135: 8.096282573 | M135: 7.548376182 | N135: 7.037548712 | O135: 6.561290889 | P135: 6.117263254 | Q135: 5.703284665 | S135: 8.683959293 | T135: 8.096282573 | U135: 7.548376182 | V135: 7.037548712 | W135: 6.561290889 | X135: 6.117263254 | Y135: 5.703284665
A136: DRAB1508 | B136: “Other” assets with long lives | C136: 32.22531174 | D136: 31.93288241 | E136: 31.64310673 | F136: 31.35596063 | G136: 31.07142025 | H136: 30.78946193 | I136: 30.51006225 | K136: 32.22531174 | L136: 31.93288241 | M136: 31.64310673 | N136: 31.35596063 | O136: 31.07142025 | P136: 30.78946193 | Q136: 30.51006225 | S136: 32.22531174 | T136: 31.93288241 | U136: 31.64310673 | V136: 31.35596063 | W136: 31.07142025 | X136: 30.78946193 | Y136: 30.51006225
A137: DRAB1509 | B137: “Other” assets with short lives | C137: 3.598516262 | D137: 3.473920633 | E137: 3.353639024 | F137: 3.237522065 | G137: 3.125425559 | H137: 3.017210302 | I137: 2.912741907 | K137: 3.598516262 | L137: 3.473920633 | M137: 3.353639024 | N137: 3.237522065 | O137: 3.125425559 | P137: 3.017210302 | Q137: 2.912741907 | S137: 3.598516262 | T137: 3.473920633 | U137: 3.353639024 | V137: 3.237522065 | W137: 3.125425559 | X137: 3.017210302 | Y137: 2.912741907

Sheet 3.4 Operational data
B1: =INDEX(dms_Worksheet_List,MATCH(dms_Model,dms_Model_List)) -> REGULATORY REPORTING STATEMENT
B2: =INDEX(dms_TradingNameFull_List,MATCH(dms_TradingName,dms_TradingName_List)) -> Endeavour Energy
B3: =CONCATENATE("REGULATORY PERIOD FROM ", FRCP_y1," TO ",dms_MultiYear_FinalYear_Result) -> REGULATORY PERIOD FROM 2024-25 TO 2028-29
B4: 3.4 OPERATIONAL DATA
B6: There are TWO tables on this worksheet. Each table has been grouped for ease of navigation. See the Instructions sheet on how to group or ungroup tables.
B8: 3.4.1 - ENERGY DELIVERY
D9: Standard control services
D10: Forecast
C11: Units | D11: =CRCP_y4 -> 2022-23 | E11: =CRCP_y5 -> 2023-24 | F11: =FRCP_y1 -> 2024-25 | G11: =FRCP_y2 -> 2025-26 | H11: =FRCP_y3 -> 2026-27 | I11: =FRCP_y4 -> 2027-28 | J11: =FRCP_y5 -> 2028-29
A12: DOPED01 | B12: TOTAL ENERGY DELIVERED
B13: 3.4.1.1 - Energy grouping - delivery by chargeable quantity
A14: DOPED0201 | B14: Energy Delivery where time of use is not a determinant | C14: GWh | D14: 6414.97368 | E14: 6416.724672 | F14: 6399.727555 | G14: 6437.586101 | H14: 6566.236906 | I14: 6666.169375 | J14: 6754.345299
A15: DOPED0202 | B15: Energy Delivery at On-peak times | C15: GWh | D15: 1199.380449 | E15: 1199.707824 | F15: 1196.529946 | G15: 1203.608197 | H15: 1227.661493 | I15: 1246.345444 | J15: 1262.831323
A16: DOPED0203 | B16: Energy Delivery at Shoulder times | C16: GWh | D16: 0 | E16: 0 | F16: 0 | G16: 0 | H16: 0 | I16: 0 | J16: 0
A17: DOPED0204 | B17: Energy Delivery at Off-peak times | C17: GWh | D17: 8126.050595 | E17: 8128.268632 | F17: 8106.737846 | G17: 8154.694466 | H17: 8317.660521 | I17: 8444.248148 | J17: 8555.943388
A18: DOPED0205 | B18: Controlled load energy deliveries | C18: GWh | D18: 915.5506392 | E18: 915.8005423 | F18: 913.374699 | G18: 918.7779037 | H18: 937.1390588 | I18: 951.4015079 | J18: 963.9860528
A19: DOPED0206 | B19: Energy Delivery to unmetered supplies | C19: GWh | D19: 134.7802467 | E19: 134.8170355 | F19: 134.4599217 | G19: 135.2553395 | H19: 137.958326 | I19: 140.0579328 | J19: 141.9105317
B20: 3.4.1.2 - Energy - received from TNSP and other DNSPs by time of receipt
A21: DOPED0301 | B21: Energy into DNSP network at On-peak times | C21: GWh | D21: 3508.48904 | E21: 3509.544491 | F21: 3500.248138 | G21: 3520.95438 | H21: 3591.318272 | I21: 3645.975042 | J21: 3694.201723
A22: DOPED0302 | B22: Energy into DNSP network at Shoulder times | C22: GWh | D22: 3787.229388 | E22: 3788.368692 | F22: 3778.333768 | G22: 3800.685067 | H22: 3876.639188 | I22: 3935.638296 | J22: 3987.696461
A23: DOPED0303 | B23: Energy into DNSP network at Off-peak times | C23: GWh | D23: 8200.602931 | E23: 8203.069901 | F23: 8181.340975 | G23: 8229.738921 | H23: 8394.204689 | I23: 8521.957252 | J23: 8634.680379
A24: DOPED0304 | B24: Energy received from TNSP and other DNSPs not included in the above categories | C24: GWh | D24: 0 | E24: 0 | F24: 0 | G24: 0 | H24: 0 | I24: 0 | J24: 0
B25: 3.4.1.3 - Energy - received into DNSP system from embedded generation by time of receipt
A26: DOPED0401 | B26: Energy into DNSP network at On-peak times from non-residential embedded generation | C26: GWh | D26: 443.9680915 | E26: 444.1016494 | F26: 442.9252786 | G26: 445.5454694 | H26: 454.4493943 | I26: 461.3657226 | J26: 467.4683802
A27: DOPED0402 | B27: Energy into DNSP network at Shoulder times from non-residential embedded generation | C27: GWh | D27: 426.6149348 | E27: 426.7432724 | F27: 425.6128818 | G27: 428.1306585 | H27: 436.6865602 | I27: 443.3325534 | J27: 449.1966795
A28: DOPED0403 | B28: Energy into DNSP network at Off-peak times from non-residential embedded generation | C28: GWh | D28: 808.2717272 | E28: 808.5148778 | F28: 806.373221 | G28: 811.1434425 | H28: 827.3535957 | I28: 839.9452046 | J28: 851.0554751
A29: DOPED0404 | B29: Energy received from embedded generation not included in above categories from non-residential embedded generation | C29: GWh | D29: 0 | E29: 0 | F29: 0 | G29: 0 | H29: 0 | I29: 0 | J29: 0
A30: DOPED0405 | B30: Energy into DNSP network at On-peak times from residential embedded generation | C30: GWh | D30: 0 | E30: 0 | F30: 0 | G30: 0 | H30: 0 | I30: 0 | J30: 0
A31: DOPED0406 | B31: Energy into DNSP network at Shoulder times from residential embedded generation | C31: GWh | D31: 0 | E31: 0 | F31: 0 | G31: 0 | H31: 0 | I31: 0 | J31: 0
A32: DOPED0407 | B32: Energy into DNSP network at Off-peak times from residential embedded generation | C32: GWh | D32: 0 | E32: 0 | F32: 0 | G32: 0 | H32: 0 | I32: 0 | J32: 0
A33: DOPED0408 | B33: Energy received from embedded generation not included in above categories from residential embedded generation | C33: GWh | D33: 354.1672974 | E33: 354.2738407 | F33: 353.3354128 | G33: 355.4256213 | H33: 362.528562 | I33: 368.0459344 | J33: 372.9142161
B34: 3.4.1.4 - Energy grouping - customer type or class
A35: DOPED0501 | B35: Residential customers energy deliveries | C35: GWh | D35: 5908.202371 | E35: 5909.815038 | F35: 5894.160663 | G35: 5929.028453 | H35: 6047.516077 | I35: 6139.554061 | J35: 6220.764247
A36: DOPED0502 | B36: Non residential customers not on demand tariffs energy deliveries | C36: GWh | D36: 1592.054569 | E36: 1592.489126 | F36: 1588.270818 | G36: 1597.666472 | H36: 1629.594756 | I36: 1654.395784 | J36: 1676.279098
A37: DOPED0503 | B37: Non-residential low voltage demand tariff customers energy deliveries | C37: GWh | D37: 3652.215038 | E37: 3653.211925 | F37: 3643.535015 | G37: 3665.088891 | H37: 3738.333214 | I37: 3795.227425 | J37: 3845.428323
A38: DOPED0504 | B38: Non-residential high voltage demand tariff customers energy deliveries | C38: GWh | D38: 5638.26363 | E38: 5639.802617 | F38: 5624.863471 | G38: 5658.138193 | H38: 5771.212259 | I38: 5859.045137 | J38: 5936.544926
A39: DOPED0505 | B39: Other Customer Class Energy Deliveries | C39: GWh | D39: 0 | E39: 0 | F39: 0 | G39: 0 | H39: 0 | I39: 0 | J39: 0
B43: 3.4.3 - SYSTEM DEMAND
D44: Standard control services
D45: Forecast
C46: Units | D46: =CRCP_y4 -> 2022-23 | E46: =CRCP_y5 -> 2023-24 | F46: =FRCP_y1 -> 2024-25 | G46: =FRCP_y2 -> 2025-26 | H46: =FRCP_y3 -> 2026-27 | I46: =FRCP_y4 -> 2027-28 | J46: =FRCP_y5 -> 2028-29
B47: 3.4.3.1 - Annual system maximum demand characteristics at the zone substation level – MW measure
A48: DOPSD0102 | B48: Non–coincident Summated Weather Adjusted System Annual Maximum Demand 10% POE | C48: MW | D48: 5325.569355 | E48: 5595.329602 | F48: 5867.380674 | G48: 5919.852622 | H48: 6060.885923 | I48: 6194.86307 | J48: 6338.168153
A49: DOPSD0103 | B49: Non–coincident Summated Weather Adjusted System Annual Maximum Demand 50% POE | C49: MW | D49: 4997.379635 | E49: 5268.757223 | F49: 5541.617749 | G49: 5594.877943 | H49: 5736.543897 | I49: 5871.05836 | J49: 6015.451122
A50: DOPSD0105 | B50: Coincident Weather Adjusted System Annual Maximum Demand 10% POE | C50: MW | D50: 0 | E50: 0 | F50: 0 | G50: 0 | H50: 0 | I50: 0 | J50: 0
A51: DOPSD0106 | B51: Coincident Weather Adjusted System Annual Maximum Demand 50% POE | C51: MW | D51: 0 | E51: 0 | F51: 0 | G51: 0 | H51: 0 | I51: 0 | J51: 0
B52: 3.4.3.2 - Annual system maximum demand characteristics at the transmission connection point – MW measure
A53: DOPSD0108 | B53: Non–coincident Summated Weather Adjusted System Annual Maximum Demand 10% POE | C53: MW | D53: 4501.521542 | E53: 4744.458275 | F53: 4996.991583 | G53: 5048.277269 | H53: 5176.443053 | I53: 5296.098908 | J53: 5423.354842
A54: DOPSD0109 | B54: Non–coincident Summated Weather Adjusted System Annual Maximum Demand 50% POE | C54: MW | D54: 4210.687784 | E54: 4454.576982 | F54: 4707.533161 | G54: 4759.95862 | H54: 4888.686055 | I54: 5008.764519 | J54: 5137.201725
A55: DOPSD0111 | B55: Coincident Weather Adjusted System Annual Maximum Demand 10% POE | C55: MW | D55: 4393.769144 | E55: 4630.890728 | F55: 4877.379176 | G55: 4927.437242 | H55: 5052.535137 | I55: 5169.326804 | J55: 5293.536627
A56: DOPSD0112 | B56: Coincident Weather Adjusted System Annual Maximum Demand 50% POE | C56: MW | D56: 4109.897039 | E56: 4347.94829 | F56: 4594.849487 | G56: 4646.020043 | H56: 4771.666144 | I56: 4888.870304 | J56: 5014.233124
B57: 3.4.3.3 - Annual system maximum demand characteristics at the zone substation level – MVA measure
A58: DOPSD0202 | B58: Non–coincident Summated Weather Adjusted System Annual Maximum Demand 10% POE | C58: MVA | D58: 5452.079527 | E58: 5730.746847 | F58: 6013.642999 | G58: 6069.91149 | H58: 6215.813521 | I58: 6354.175453 | J58: 6503.578098
A59: DOPSD0203 | B59: Non–coincident Summated Weather Adjusted System Annual Maximum Demand 50% POE | C59: MVA | D59: 5119.000335 | E59: 5399.349811 | F59: 5683.058753 | G59: 5740.161788 | H59: 5886.688291 | I59: 6025.604955 | J59: 6176.136856
A60: DOPSD0205 | B60: Coincident Weather Adjusted System Annual Maximum Demand 10% POE | C60: MVA | D60: 0 | E60: 0 | F60: 0 | G60: 0 | H60: 0 | I60: 0 | J60: 0
A61: DOPSD0206 | B61: Coincident Weather Adjusted System Annual Maximum Demand 50% POE | C61: MVA | D61: 0 | E61: 0 | F61: 0 | G61: 0 | H61: 0 | I61: 0 | J61: 0
B62: 3.4.3.4 - Annual system maximum demand characteristics at the transmission connection point – MVA measure
A63: DOPSD0208 | B63: Non–coincident Summated Weather Adjusted System Annual Maximum Demand 10% POE | C63: MVA | D63: 4562.532641 | E63: 4808.02854 | F63: 5062.832421 | G63: 5114.7749 | H63: 5244.377024 | I63: 5365.463518 | J63: 5494.276238
A64: DOPSD0209 | B64: Non–coincident Summated Weather Adjusted System Annual Maximum Demand 50% POE | C64: MVA | D64: 4267.638485 | E64: 4514.101054 | F64: 4769.341482 | G64: 4822.436225 | H64: 4952.609627 | I64: 5074.122593 | J64: 5204.126398
A65: DOPSD0211 | B65: Coincident Weather Adjusted System Annual Maximum Demand 10% POE | C65: MVA | D65: 4413.008543 | E65: 4651.168433 | F65: 4898.736203 | G65: 4949.013462 | H65: 5074.659135 | I65: 5191.962208 | J65: 5316.71592
A66: DOPSD0212 | B66: Coincident Weather Adjusted System Annual Maximum Demand 50% POE | C66: MVA | D66: 4127.893421 | E66: 4366.987049 | F66: 4614.969374 | G66: 4666.363997 | H66: 4792.560275 | I66: 4910.277648 | J66: 5036.189405
B67: 3.4.3.5 - Power factor conversion between MVA and MW
A68: DOPSD0301 | B68: Average overall network power factor conversion between MVA and MW | C68: Factor | D68: 0.995 | E68: 0.995 | F68: 0.995 | G68: 0.995 | H68: 0.995 | I68: 0.995 | J68: 0.995
A69: DOPSD0302 | B69: Average power factor conversion for low voltage distribution lines | C69: Factor | D69: 0.9581861852 | E69: 0.9596073419 | F69: 0.9604809041 | G69: 0.9604188094 | H69: 0.9609926236 | I69: 0.9615441945 | J69: 0.9618596915
A70: DOPSD0303 | B70: Average power factor conversion for 3.3 kV lines | C70: Factor | D70: 0 | E70: 0 | F70: 0 | G70: 0 | H70: 0 | I70: 0 | J70: 0
A71: DOPSD0304 | B71: Average power factor conversion for 6.6 kV lines | C71: Factor | D71: 0 | E71: 0 | F71: 0 | G71: 0 | H71: 0 | I71: 0 | J71: 0
A72: DOPSD0305 | B72: Average power factor conversion for 7.6 kV lines | C72: Factor | D72: 0 | E72: 0 | F72: 0 | G72: 0 | H72: 0 | I72: 0 | J72: 0
A73: DOPSD0306 | B73: Average power factor conversion for 11 kV lines | C73: Factor | D73: 0.9581861852 | E73: 0.9596073419 | F73: 0.9604809041 | G73: 0.9604188094 | H73: 0.9609926236 | I73: 0.9615441945 | J73: 0.9618596915
A74: DOPSD0307 | B74: Average power factor conversion for SWER lines | C74: Factor | D74: 0.9629446106 | E74: 0.9629446106 | F74: 0.9629446106 | G74: 0.9629446106 | H74: 0.9629446106 | I74: 0.9629446106 | J74: 0.9629446106
A75: DOPSD0308 | B75: Average power factor conversion for 22 kV lines | C75: Factor | D75: 0.9628613471 | E75: 0.9623311578 | F75: 0.9629138235 | G75: 0.9633466474 | H75: 0.9635539849 | I75: 0.9637891013 | J75: 0.9640468555
A76: DOPSD0309 | B76: Average power factor conversion for 33 kV lines | C76: Factor | D76: 0.9867843602 | E76: 0.9869558931 | F76: 0.9869812396 | G76: 0.9870006591 | H76: 0.9870878817 | I76: 0.9871696434 | J76: 0.98730588
A77: DOPSD0310 | B77: Average power factor conversion for 44 kV lines | C77: Factor | D77: 0 | E77: 0 | F77: 0 | G77: 0 | H77: 0 | I77: 0 | J77: 0
A78: DOPSD0311 | B78: Average power factor conversion for 66 kV lines | C78: Factor | D78: 0.9800238723 | E78: 0.980206361 | F78: 0.9809403872 | G78: 0.9810008052 | H78: 0.9810516516 | I78: 0.9811283776 | J78: 0.9812146578
A79: DOPSD0312 | B79: Average power factor conversion for 110 kV lines | C79: Factor | D79: 0 | E79: 0 | F79: 0 | G79: 0 | H79: 0 | I79: 0 | J79: 0
A80: DOPSD0313 | B80: Average power factor conversion for 132 kV lines | C80: Factor | D80: 0.9890376133 | E80: 0.9891995976 | F80: 0.9894088403 | G80: 0.9893822151 | H80: 0.989418627 | I80: 0.9894368618 | J80: 0.9894498761
A81: DOPSD0314 | B81: Average power factor conversion for 220 kV lines | C81: Factor | D81: 0 | E81: 0 | F81: 0 | G81: 0 | H81: 0 | I81: 0
B82: 3.4.3.6 - Demand supplied (for customers charged on this basis) – MW measure
A83: DOPSD0401 | B83: Summated Chargeable Contracted Maximum Demand | C83: MW | D83: 0 | E83: 0 | F83: 0 | G83: 0 | H83: 0 | I83: 0 | J83: 0
A84: DOPSD0402 | B84: Summated Chargeable Measured Maximum Demand | C84: MW | D84: 3285718.42 | E84: 3393516.923 | F84: 3880405.801 | G84: 3870140.061 | H84: 3859901.479 | I84: 3849689.984 | J84: 3839505.504
B85: 3.4.3.7 - Demand supplied (for customers charged on this basis) – MVA measure
A86: DOPSD0403 | B86: Summated Chargeable Contracted Maximum Demand | C86: MVA | D86: 0 | E86: 0 | F86: 0 | G86: 0 | H86: 0 | I86: 0 | J86: 0
A87: DOPSD0404 | B87: Summated Chargeable Measured Maximum Demand | C87: MVA | D87: 22544490.47 | E87: 23284134.59 | F87: 26624853.51 | G87: 26554416.59 | H87: 26484166.02 | I87: 26414101.29 | J87: 26344221.93

Sheet 3.5 Physical assets
B1: =INDEX(dms_Worksheet_List,MATCH(dms_Model,dms_Model_List)) -> REGULATORY REPORTING STATEMENT
B2: =INDEX(dms_TradingNameFull_List,MATCH(dms_TradingName,dms_TradingName_List)) -> Endeavour Energy
B3: =CONCATENATE("REGULATORY PERIOD FROM ", FRCP_y1," TO ",dms_MultiYear_FinalYear_Result) -> REGULATORY PERIOD FROM 2024-25 TO 2028-29
B4: 3.5 PHYSICAL ASSETS DATA
B6: There are THREE tables on this worksheet. Each table has been grouped (and sub-grouped) for ease of navigation. See the Instructions sheet on how to group or ungroup tables.
B8: 3.5.1 - NETWORK CAPACITIES VARIABLES
D9: Forecast
C10: Units | D10: 2022-23 | E10: 2023-24 | F10: 2024-25 | G10: 2025-26 | H10: 2026-27 | I10: 2027-28 | J10: 2028-29
B11: CIRCUIT LENGTH
B12: 3.5.1.1 - Overhead network length of circuit at each voltage
A13: DPA0101 | B13: Overhead low voltage distribution | C13: km | D13: 8554.186159 | E13: 8525.688573 | F13: 8497.285924 | G13: 8468.977896 | H13: 8440.764175 | I13: 8412.644445 | J13: 8384.618394
A14: DPA0102 | B14: Overhead 2.2 kV | C14: km | D14: 0 | E14: 0 | F14: 0 | G14: 0 | H14: 0 | I14: 0 | J14: 0
A15: DPA0103 | B15: Overhead 7.6 kV | C15: km | D15: 0 | E15: 0 | F15: 0 | G15: 0 | H15: 0 | I15: 0 | J15: 0
A16: DPA0104 | B16: Overhead 11 kV | C16: km | D16: 0 | E16: 0 | F16: 0 | G16: 0 | H16: 0 | I16: 0 | J16: 0
A17: DPA0105 | B17: Overhead SWER | C17: km | D17: 10420.64381 | E17: 10372.88947 | F17: 10325.35398 | G17: 10278.03632 | H17: 10230.93551 | I17: 10184.05054 | J17: 10137.38043
A18: DPA0106 | B18: Overhead 22 kV | C18: km | D18: 483.949072 | E18: 484.0701743 | F18: 484.191307 | G18: 484.3124699 | H18: 484.4336632 | I18: 484.5548868 | J18: 484.6761407
A19: DPA0107 | B19: Overhead 33 kV | C19: km | D19: 292.1340482 | E19: 296.892358 | F19: 301.7281717 | G19: 306.6427517 | H19: 311.6373808 | I19: 316.713363 | J19: 321.8720233
A20: DPA0108 | B20: Overhead 44 kV | C20: km | D20: 1392.617356 | E20: 1387.743827 | F20: 1382.887354 | G20: 1378.047875 | H20: 1373.225333 | I20: 1368.419667 | J20: 1363.630819
A21: DPA0109 | B21: Overhead 66 kV | C21: km | D21: 0 | E21: 0 | F21: 0 | G21: 0 | H21: 0 | I21: 0 | J21: 0
A22: DPA0110 | B22: Overhead 132 kV | C22: km | D22: 510.925649 | E22: 511.2094555 | F22: 511.4934197 | G22: 511.7775416 | H22: 512.0618213 | I22: 512.346259 | J22: 512.6308546
A23: DPA0111 | B23: Overhead 6.6kv | C23: km | D23: 0 | E23: 0 | F23: 0 | G23: 0 | H23: 0 | I23: 0 | J23: 0
A24: DPA0112 | B24: Overhead 110kV | C24: km | D24: 1091.980937 | E24: 1089.500522 | F24: 1087.02574 | G24: 1084.55658 | H24: 1082.093029 | I24: 1079.635073 | J24: 1077.182701
A25: DPA0113 | B25: Overhead 220kV | C25: km | D25: 0 | E25: 0 | F25: 0 | G25: 0 | H25: 0 | I25: 0 | J25: 0
A26: DPA0114 | B26: Other | C26: km | D26: 0 | E26: 0 | F26: 0 | G26: 0 | H26: 0 | I26: 0 | J26: 0
A27: DPA01 | B27: Total overhead circuit km | D27: =SUM(D13:D26) -> 22746.43703 | E27: 22667.99438 | F27: 22589.96589 | G27: 22512.35144 | H27: 22435.15091 | I27: 22358.36423 | J27: 22281.99136
B28: 3.5.1.2 - Underground network circuit length at each voltage
A29: DPA0201 | B29: Underground low voltage distribution | C29: km | D29: 11041.35432 | E29: 11482.22657 | F29: 11930.47913 | G29: 12386.33604 | H29: 12850.03013 | I29: 13321.80343 | J29: 13801.90756
A30: DPA0202 | B30: Underground 5 kV | C30: km | D30: 0 | E30: 0 | F30: 0 | G30: 0 | H30: 0 | I30: 0 | J30: 0
A31: DPA0203 | B31: Underground 6.6 Kv | C31: km | D31: 0 | E31: 0 | F31: 0 | G31: 0 | H31: 0 | I31: 0 | J31: 0
A32: DPA0204 | B32: Underground 7.6 kV | C32: km | D32: 0 | E32: 0 | F32: 0 | G32: 0 | H32: 0 | I32: 0 | J32: 0
A33: DPA0205 | B33: Underground 11 kV | C33: km | D33: 5502.779977 | E33: 5664.410624 | F33: 5825.346613 | G33: 5985.439976 | H33: 6144.533356 | I33: 6302.459511 | J33: 6459.04079
A34: DPA0206 | B34: Underground SWER | C34: km | D34: 0 | E34: 0 | F34: 0 | G34: 0 | H34: 0 | I34: 0 | J34: 0
A35: DPA0207 | B35: Underground 22 kV | C35: km | D35: 449.4550691 | E35: 472.3437311 | F35: 496.0134702 | G35: 520.5100594 | H35: 545.8821147 | I35: 572.1812681 | J35: 599.4623513
A36: DPA0208 | B36: Underground 33 kV | C36: km | D36: 210.8653686 | E36: 212.2600187 | F36: 213.4296065 | G36: 214.3615223 | H36: 215.0425678 | I36: 215.4589293 | J36: 215.5961506
A37: DPA0209 | B37: Underground 66 kV | C37: km | D37: 43.3877498 | E37: 45.00842659 | F37: 46.6487828 | G37: 48.30908995 | H37: 49.98961886 | I37: 51.69063921 | J37: 53.41241918
A38: DPA0210 | B38: Underground 110 kV | C38: km | D38: 0 | E38: 0 | F38: 0 | G38: 0 | H38: 0 | I38: 0 | J38: 0
A39: DPA0211 | B39: Underground 132 kV | C39: km | D39: 175.726971 | E39: 181.3486255 | F39: 186.9790095 | G39: 192.6150264 | H39: 198.2533565 | I39: 203.8904436 | J39: 209.5224826
A40: DPA0212 | B40: Other | C40: km | D40: 0 | E40: 0 | F40: 0 | G40: 0 | H40: 0 | I40: 0 | J40: 0
A41: DPA02 | B41: Total underground circuit km | D41: =SUM(D29:D40) -> 17423.56946 | E41: 18057.598 | F41: 18698.89662 | G41: 19347.57171 | H41: 20003.73114 | I41: 20667.48422 | J41: 21338.94175
B43: CIRCUIT CAPACITY MVA
B44: 3.5.1.3 - Estimated overhead network weighted average MVA capacity by voltage class
A45: DPA0301 | B45: Overhead low voltage distribution | C45: MVA | D45: 0.1574736357 | E45: 0.1569490248 | F45: 0.1564261617 | G45: 0.1559050405 | H45: 0.1553856553 | I45: 0.1548680005 | J45: 0.1543520701
A46: DPA0302 | B46: Overhead 6.6 kV | C46: MVA | D46: 0 | E46: 0 | F46: 0 | G46: 0 | H46: 0 | I46: 0 | J46: 0
A47: DPA0303 | B47: Overhead 7.6 kV | C47: MVA | D47: 0 | E47: 0 | F47: 0 | G47: 0 | H47: 0 | I47: 0 | J47: 0
A48: DPA0304 | B48: Overhead 11 kV | C48: MVA | D48: 3.435185217 | E48: 3.419442908 | F48: 3.403772741 | G48: 3.388174384 | H48: 3.37264751 | I48: 3.357191791 | J48: 3.341806899
A49: DPA0305 | B49: Overhead SWER | C49: MVA | D49: 0.9242312197 | E49: 0.9244624972 | F49: 0.9246938326 | G49: 0.9249252259 | H49: 0.9251566771 | I49: 0.9253881862 | J49: 0.9256197533
A50: DPA0306 | B50: Overhead 22 kV | C50: MVA | D50: 5.23794889 | E50: 5.323265148 | F50: 5.409971046 | G50: 5.498089219 | H50: 5.58764267 | I50: 5.678654777 | J50: 5.771149299
A51: DPA0307 | B51: Overhead 33 kV | C51: MVA | D51: 28.40823494 | E51: 28.308819 | F51: 28.20975098 | G51: 28.11102965 | H51: 28.0126538 | I51: 27.91462223 | J51: 27.81693371
A52: DPA0308 | B52: Overhead 44 kV | C52: MVA | D52: 0 | E52: 0 | F52: 0 | G52: 0 | H52: 0 | I52: 0 | J52: 0
A53: DPA0309 | B53: Overhead 66 kV | C53: MVA | D53: 37.10259813 | E53: 37.1232077 | F53: 37.14382873 | G53: 37.1644612 | H53: 37.18510514 | I53: 37.20576054 | J53: 37.22642742
A54: DPA0310 | B54: Overhead 110 kV | C54: MVA | D54: 0 | E54: 0 | F54: 0 | G54: 0 | H54: 0 | I54: 0 | J54: 0
A55: DPA0311 | B55: Overhead 132 kV | C55: MVA | D55: 176.5839794 | E55: 176.1828719 | F55: 175.7826756 | G55: 175.3833883 | H55: 174.985008 | I55: 174.5875326 | J55: 174.1909601
A56: DPA0312 | B56: Overhead 220 kV | C56: MVA | D56: 0 | E56: 0 | F56: 0 | G56: 0 | H56: 0 | I56: 0 | J56: 0
A57: DPA0313 | B57: Other | C57: MVA | D57: 0 | E57: 0 | F57: 0 | G57: 0 | H57: 0 | I57: 0 | J57: 0
B58: 3.5.1.4 - Estimated underground network weighted average MVA capacity by voltage class
A59: DPA0401 | B59: Underground low voltage distribution | C59: MVA | D59: 0.2071337744 | E59: 0.2154044568 | F59: 0.2238135923 | G59: 0.2323653839 | H59: 0.2410641997 | I59: 0.2499145799 | J59: 0.2589212449
A60: DPA0402 | B60: Underground 5 kV | C60: MVA | D60: 0 | E60: 0 | F60: 0 | G60: 0 | H60: 0 | I60: 0 | J60: 0
A61: DPA0403 | B61: Underground 6.6 kV | C61: MVA | D61: 0 | E61: 0 | F61: 0 | G61: 0 | H61: 0 | I61: 0 | J61: 0
A62: DPA0404 | B62: Underground 7.6 kV | C62: MVA | D62: 0 | E62: 0 | F62: 0 | G62: 0 | H62: 0 | I62: 0 | J62: 0
A63: DPA0405 | B63: Underground 11 kV | C63: MVA | D63: 4.238885326 | E63: 4.363392172 | F63: 4.48736391 | G63: 4.61068656 | H63: 4.733238905 | I63: 4.854892118 | J63: 4.975509349
A64: DPA0406 | B64: Underground SWER | C64: MVA | D64: 0 | E64: 0 | F64: 0 | G64: 0 | H64: 0 | I64: 0 | J64: 0
A65: DPA0407 | B65: Underground 12.7 kV | C65: MVA | D65: 0 | E65: 0 | F65: 0 | G65: 0 | H65: 0 | I65: 0 | J65: 0
A66: DPA0408 | B66: Underground 22 kV | C66: MVA | D66: 8.720675804 | E66: 9.164779375 | F66: 9.624038008 | G66: 10.09933983 | H66: 10.59162812 | I66: 11.10190469 | J66: 11.63123343
A67: DPA0409 | B67: Underground 33 kV | C67: MVA | D67: 39.70427819 | E67: 39.96687975 | F67: 40.18710386 | G67: 40.36257623 | H67: 40.4908117 | I67: 40.56920926 | J67: 40.59504695
A68: DPA0410 | B68: Underground 66 kV | C68: MVA | D68: 75.48286871 | E68: 78.30240496 | F68: 81.15617805 | G68: 84.04466034 | H68: 86.96832296 | I68: 89.92763514 | J68: 92.92306339
A69: DPA0411 | B69: Underground 110 kV | C69: MVA | D69: 0 | E69: 0 | F69: 0 | G69: 0 | H69: 0 | I69: 0 | J69: 0
A70: DPA0412 | B70: Underground 132 kV | C70: MVA | D70: 172.3904941 | E70: 177.9054119 | F70: 183.4288934 | G70: 188.9579009 | H70: 194.4891776 | I70: 200.019235 | J70: 205.5443401
A71: DPA0413 | B71: Other | C71: MVA | D71: 0 | E71: 0 | F71: 0 | G71: 0 | H71: 0 | I71: 0 | J71: 0
B75: 3.5.2 - TRANSFORMER CAPACITIES VARIABLES
D76: VOLUMES
C77: Units | D77: =CRCP_y4 -> 2022-23 | E77: =CRCP_y5 -> 2023-24 | F77: =FRCP_y1 -> 2024-25 | G77: =FRCP_y2 -> 2025-26 | H77: =FRCP_y3 -> 2026-27 | I77: =FRCP_y4 -> 2027-28 | J77: =FRCP_y5 -> 2028-29
B78: Distribution transformer total installed capacity
A79: DPA0501 | B79: Distribution transformer capacity owned by utility | C79: MVA | D79: 11626.43706 | E79: 11893.14514 | F79: 12165.97145 | G79: 12445.05634 | H79: 12730.54338 | I79: 13022.57943 | J79: 13321.31473
A80: DPA0502 | B80: Distribution transformer capacity owned by High Voltage Customers | C80: MVA | D80: 783.3825676 | E80: 766.6627696 | F80: 750.2998237 | G80: 734.2861134 | H80: 718.614185 | I80: 703.2767439 | J80: 688.2666511
A81: DPA0503 | B81: Cold spare capacity included in DPA0501 | C81: MVA | D81: 0 | E81: 0 | F81: 0 | G81: 0 | H81: 0 | I81: 0 | J81: 0
B82: Zone substation transformer capacity
A83: DPA0601 | B83: Total installed capacity for first step transformation where there are two steps to reach distribution voltage | C83: MVA | D83: 6389.589683 | E83: 6495.211791 | F83: 6600.596229 | G83: 6585.743529 | H83: 6570.924252 | I83: 6556.13832 | J83: 6541.38566
A84: DPA0602 | B84: Total installed capacity for second step transformation where there are two steps to reach distribution voltage | C84: MVA | D84: 6258.916231 | E84: 6235.593059 | F84: 6190.438778 | G84: 6180.611476 | H84: 6135.855338 | I84: 6091.423295 | J84: 6047.313002
A85: DPA0603 | B85: Total zone substation transformer capacity where there is only a single step transformation to reach distribution voltage | C85: MVA | D85: 2395.873755 | E85: 2447.151917 | F85: 2498.56445 | G85: 2730.111704 | H85: 2827.265706 | I85: 2959.674291 | J85: 3137.429841
A86: DPA0604 | B86: Total zone substation transformer capacity | C86: MVA | D86: 15044.37967 | E86: 15177.95677 | F86: 15289.59946 | G86: 15496.46671 | H86: 15534.0453 | I86: 15607.23591 | J86: 15726.1285
A87: DPA0605 | B87: Cold spare capacity of zone substation transformers included in DPA0604 | C87: MVA | D87: 0 | E87: 0 | F87: 0 | G87: 0 | H87: 0 | I87: 0 | J87: 0
B91: 3.5.3 - PUBLIC LIGHTING
D92: VOLUMES
C93: Units | D93: =CRCP_y4 -> 2022-23 | E93: =CRCP_y5 -> 2023-24 | F93: =FRCP_y1 -> 2024-25 | G93: =FRCP_y2 -> 2025-26 | H93: =FRCP_y3 -> 2026-27 | I93: =FRCP_y4 -> 2027-28 | J93: =FRCP_y5 -> 2028-29
A94: DPA0701 | B94: Public lighting luminaires | C94: 0's | D94: 233771.3731 | E94: 239070.1906 | F94: 244489.1147 | G94: 250030.8677 | H94: 255698.2338 | I94: 261494.0601 | J94: 267421.2586
A95: DPA0702 | B95: Public lighting poles | C95: 0's | D95: 6832.778265 | E95: 7718.111888 | F95: 8718.159556 | G95: 9847.784943 | H95: 11123.77764 | I95: 12565.10267 | J95: 14193.18241

Sheet 3.6 Quality of service
B1: =INDEX(dms_Worksheet_List,MATCH(dms_Model,dms_Model_List)) -> REGULATORY REPORTING STATEMENT
B2: =INDEX(dms_TradingNameFull_List,MATCH(dms_TradingName,dms_TradingName_List)) -> Endeavour Energy
B3: =CONCATENATE("REGULATORY PERIOD FROM ", FRCP_y1," TO ",dms_MultiYear_FinalYear_Result) -> REGULATORY PERIOD FROM 2024-25 TO 2028-29
B4: 3.6 QUALITY OF SERVICE DATA
B6: 3.6.2 - ENERGY NOT SUPPLIED
D7: FORECAST
C8: Units | D8: 2022-23 | E8: 2023-24 | F8: 2024-25 | G8: 2025-26 | H8: 2026-27 | I8: 2027-28 | J8: 2028-29
A9: DQS0201 | B9: Energy Not Supplied (planned) | C9: GWh | D9: 0.791024312 | E9: 0.7821493276 | F9: 0.7733739172 | G9: 0.7646969634 | H9: 0.7561173616 | I9: 0.7476340197 | J9: 0.7392458575
A10: DQS0202 | B10: Energy Not Supplied (unplanned) | C10: GWh | D10: 2.076438819 | E10: 2.053141985 | F10: 2.030106533 | G10: 2.007329529 | H10: 1.984808074 | I10: 1.962539302 | J10: 1.940520376
A11: DQS02 | B11: Total | D11: =SUM(D9:D10) -> 2.867463131 | E11: 2.835291313 | F11: 2.80348045 | G11: 2.772026492 | H11: 2.740925436 | I11: 2.710173321 | J11: 2.679766233
B13: 3.6.3 - SYSTEM LOSSES
D14: FORECAST
C15: Units | D15: 2022-23 | E15: 2023-24 | F15: 2024-25 | G15: 2025-26 | H15: 2026-27 | I15: 2027-28 | J15: 2028-29
A16: DQS03 | B16: System losses | C16: % | D16: 0.04216220004 | E16: 0.04216220004 | F16: 0.04216220004 | G16: 0.04216220004 | H16: 0.04216220004 | I16: 0.04216220004 | J16: 0.04216220004
B18: 3.6.4 - CAPACITY UTILISATION
D19: FORECAST
C20: Units | D20: 2022-23 | E20: 2023-24 | F20: 2024-25 | G20: 2025-26 | H20: 2026-27 | I20: 2027-28 | J20: 2028-29
A21: DQS04 | B21: Overall utilisation | C21: % | D21: 0.5914644196 | E21: 0.6218482549 | F21: 0.6540518635 | G21: 0.6441858502 | H21: 0.6567676887 | I21: 0.665731962 | J21: 0.6724343797

Sheet 3.7 Operating Environment
B1: =INDEX(dms_Worksheet_List,MATCH(dms_Model,dms_Model_List)) -> REGULATORY REPORTING STATEMENT
B2: =INDEX(dms_TradingNameFull_List,MATCH(dms_TradingName,dms_TradingName_List)) -> Endeavour Energy
B3: =CONCATENATE("REGULATORY PERIOD FROM ", FRCP_y1," TO ",dms_MultiYear_FinalYear_Result) -> REGULATORY PERIOD FROM 2024-25 TO 2028-29
B4: 3.7 OPERATING ENVIRONMENT FACTORS
B6: There are THREE tables on this worksheet. Each table has been grouped (and sub-grouped) for ease of navigation. See the Instructions sheet on how to group or ungroup tables.
A8: DOEF01 | B8: 3.7.1 - DENSITY FACTORS
D9: Forecast
C10: Units | D10: 2022-23 | E10: 2023-24 | F10: 2024-25 | G10: 2025-26 | H10: 2026-27 | I10: 2027-28 | J10: 2028-29
A11: DOEF0101 | B11: Customer density | C11: Customer / km | D11: 38.45197172
A12: DOEF0102 | B12: Energy density | C12: MWh/customer | D12: 14.82492366
A13: DOEF0103 | B13: Demand density | C13: kVA / customer | D13: 23.07136432
A15: DOEF02 | B15: 3.7.2 - TERRAIN FACTORS
D16: Forecast
C17: Units | D17: 2022-23 | E17: 2023-24 | F17: 2024-25 | G17: 2025-26 | H17: 2026-27 | I17: 2027-28 | J17: 2028-29
A18: DOEF0201 | B18: Rural proportion | C18: % | D18: 0.517
A19: DOEF0202 | B19: Urban and CBD vegetation maintenance spans | C19: 0's | D19: 102976
A20: DOEF0203 | B20: Rural vegetation maintenance spans | C20: 0's | D20: 44122
A21: DOEF0204 | B21: Total vegetation maintenance spans | C21: 0's | D21: 147098
A22: DOEF0205 | B22: Total number of spans | C22: 0's | D22: 320431
A23: DOEF0206 | B23: Average urban and CBD vegetation maintenance span cycle | C23: Years | D23: 1.195
A24: DOEF0207 | B24: Average rural vegetation maintenance span cycle | C24: Years | D24: 1.6925
A25: DOEF0208 | B25: Average number of trees per urban and CBD vegetation maintenance span | C25: Trees | D25: 17.675
A26: DOEF0209 | B26: Average number of trees per rural vegetation maintenance span | C26: Trees | D26: 23.194
A27: DOEF0210 | B27: Average number of defects per urban and CBD vegetation maintenance span | C27: Defects | D27: 2.47
A28: DOEF0211 | B28: Average number of defects per rural vegetation maintenance span | C28: Defects | D28: 4.24
A29: DOEF0212 | B29: Tropical proportion | C29: Spans | D29: 0
A30: DOEF0213 | B30: Standard vehicle access | C30: km | D30: 18384 | E30: 18421 | F30: 18457 | G30: 18494 | H30: 18531 | I30: 18568 | J30: 18605
A31: DOEF0214 | B31: Bushfire risk | C31: Spans | D31: 50514
A33: DOEF03 | B33: 3.7.3 - SERVICE AREA FACTORS
D34: Forecast
C35: Units | D35: 2022-23 | E35: 2023-24 | F35: 2024-25 | G35: 2025-26 | H35: 2026-27 | I35: 2027-28 | J35: 2028-29
A36: DOEF0301 | B36: Route Line length | C36: km | D36: 29454.15367 | E36: 29826.31023 | F36: 30203.16903 | G36: 30584.78948 | H36: 30971.23175 | I36: 31362.55676 | J36: 31758.82621

Sheet 4.1 Public lighting
B1: =INDEX(dms_Worksheet_List,MATCH(dms_Model,dms_Model_List)) -> REGULATORY REPORTING STATEMENT
B2: =INDEX(dms_TradingNameFull_List,MATCH(dms_TradingName,dms_TradingName_List)) -> Endeavour Energy
B3: =CONCATENATE("REGULATORY PERIOD FROM ", FRCP_y1," TO ",dms_MultiYear_FinalYear_Result) -> REGULATORY PERIOD FROM 2024-25 TO 2028-29
B4: 4.1 PUBLIC LIGHTING
B6: There are TWO tables on this worksheet. Each table has been grouped (and sub-grouped) for ease of navigation. See the Instructions sheet on how to group or ungroup tables.
B8: 4.1.2 - DESCRIPTOR METRICS ANNUALLY
D9: VOLUMES & EXPENDITURE
C10: Units | D10: =CRCP_y4 -> 2022-23 | E10: =CRCP_y5 -> 2023-24 | F10: =FRCP_y1 -> 2024-25 | G10: =FRCP_y2 -> 2025-26 | H10: =FRCP_y3 -> 2026-27 | I10: =FRCP_y4 -> 2027-28 | J10: =FRCP_y5 -> 2028-29
B11: LIGHT INSTALLATION
B12: Number of lights installed | C12: 0's | D12: 3038.576667 | E12: 3038.576667 | F12: 3038.576667 | G12: 3038.576667 | H12: 3038.576667 | I12: 3038.576667 | J12: 3038.576667
B13: Number of poles installed | C13: 0's | D13: 2808.111111 | E13: 2808.111111 | F13: 2808.111111 | G13: 2808.111111 | H13: 2808.111111 | I13: 2808.111111 | J13: 2808.111111
B14: Total expenditure | C14: $0's | D14: 697376.1527 | E14: 707836.795 | F14: 718454.3469 | G14: 729231.1621 | H14: 740169.6296 | I14: 751272.174 | J14: 762541.2566
B15: LIGHT REPLACEMENT
B16: Number of lights replaced | C16: 0's | D16: 42000 | E16: 46222 | F16: 3551.324655 | G16: 3604.594525 | H16: 3658.663443 | I16: 3713.543395 | J16: 3769.246546
B17: Number of poles replaced | C17: 0's | D17: 627 | E17: 636.405 | F17: 645.951075 | G17: 655.6403411 | H17: 665.4749462 | I17: 675.4570704 | J17: 685.5889265
B18: Total expenditure | C18: $0's | D18: 10443556.91 | E18: 18890163.2 | F18: 2343507.403 | G18: 2258048.594 | H18: 2174249.644 | I18: 2092063.703 | J18: 2011444.965
B19: LIGHT MAINTENANCE
B20: Number of lights maintained | C20: 0's | D20: 21580.443 | E20: 20104.44156 | F20: 17472.5173 | G20: 17734.60506 | H20: 18000.62414 | I20: 18270.6335 | J20: 18544.693
B21: Number of poles maintained | C21: 0's | D21: 33629.25 | E21: 34133.68875 | F21: 34645.69408 | G21: 35165.37949 | H21: 35692.86018 | I21: 36228.25309 | J21: 36771.67688
B22: Total expenditure | C22: $0's | D22: 19498446.12 | E22: 19706763.58 | F22: 18046547.87 | G22: 17476465.8 | H22: 17476465.8 | I22: 17476465.8 | J22: 17476465.8
B23: QUALITY OF SUPPLY
B24: Mean days to rectify/replace public lighting assets | C24: days | D24: 10.5225 | E24: 10.5225 | F24: 10.5225 | G24: 10.5225 | H24: 10.5225 | I24: 10.5225 | J24: 10.5225
B25: GSO breaches | C25: 0's | D25: 0 | E25: 0 | F25: 0 | G25: 0 | H25: 0 | I25: 0 | J25: 0
B26: GSL payments | C26: $0's | D26: 0 | E26: 0 | F26: 0 | G26: 0 | H26: 0 | I26: 0 | J26: 0
B27: Customer complaints | C27: 0's | D27: 0 | E27: 0 | F27: 0 | G27: 0 | H27: 0 | I27: 0 | J27: 0
B31: 4.1.3 - COST METRICS
D32: =CONCATENATE("AVERAGE UNIT COST ($0's, real ",dms_DollarReal, ")") -> AVERAGE UNIT COST ($0's, real June 2024)
D33: =CRCP_y4 -> 2022-23 | E33: =CRCP_y5 -> 2023-24 | F33: =FRCP_y1 -> 2024-25 | G33: =FRCP_y2 -> 2025-26 | H33: =FRCP_y3 -> 2026-27 | I33: =FRCP_y4 -> 2027-28 | J33: =FRCP_y5 -> 2028-29
B34: LIGHT INSTALLATION
B35: Minor Road 13W LED Luminair Install | D35: 358.41 | E35: 351.60021 | F35: 344.919806 | G35: 338.3663297 | H35: 331.9373694 | I35: 325.6305594 | J35: 319.4435788
B36: Minor Road 24W LED Luminair Install | D36: 390.46 | E36: 383.04126 | F36: 375.7634761 | G36: 368.62397 | H36: 361.6201146 | I36: 354.7493324 | J36: 348.0090951
B37: Major Road 63W LED Luminair Install | D37: 621.23 | E37: 609.42663 | F37: 597.847524 | G37: 586.4884211 | H37: 575.3451411 | I37: 564.4135834 | J37: 553.6897253
B38: Major Road 230W LED Luminair Install | D38: 698.16 | E38: 684.89496 | F38: 671.8819558 | G38: 659.1161986 | H38: 646.5929908 | I38: 634.307724 | J38: 622.2558772
B95: LIGHT REPLACEMENT
B96: Minor Road 13W LED Luminair | D96: 160 | E96: 164 | F96: 168.1 | G96: 172.3025 | H96: 176.6100625 | I96: 181.0253141 | J96: 185.5509469
B97: Minor Road 24W LED Luminair | D97: 185 | E97: 189.625 | F97: 194.365625 | G97: 199.2247656 | H97: 204.2053848 | I97: 209.3105194 | J97: 214.5432824
B98: Major Road 63W LED Luminair | D98: 365 | E98: 374.125 | F98: 383.478125 | G98: 393.0650781 | H98: 402.8917051 | I98: 412.9639977 | J98: 423.2880976
B99: Major Road 230W LED Luminair | D99: 425 | E99: 435.625 | F99: 446.515625 | G99: 457.6785156 | H99: 469.1204785 | I99: 480.8484905 | J99: 492.8697027
B156: LIGHT MAINTENANCE
B157: Major Road 250W HPS lamp | D157: 106.89 | E157: 106.89 | F157: 0 | G157: 0 | H157: 0 | I157: 0 | J157: 0
B158: Major Road 150W HPS lamp | D158: 106.28 | E158: 106.28 | F158: 0 | G158: 0 | H158: 0 | I158: 0 | J158: 0
B159: Minor Road 42W CFL lamp | D159: 106.51 | E159: 106.51 | F159: 0 | G159: 0 | H159: 0 | I159: 0 | J159: 0
B160: Minor Road 2x24W T5 lamp | D160: 101.44 | E160: 101.44 | F160: 0 | G160: 0 | H160: 0 | I160: 0 | J160: 0

Sheet 5.4 MD & utilisation-Spatial
B1: =INDEX(dms_Worksheet_List,MATCH(dms_Model,dms_Model_List)) -> REGULATORY REPORTING STATEMENT
B2: =INDEX(dms_TradingNameFull_List,MATCH(dms_TradingName,dms_TradingName_List)) -> Endeavour Energy
B3: =CONCATENATE("REGULATORY PERIOD FROM ", FRCP_y1," TO ",dms_MultiYear_FinalYear_Result) -> REGULATORY PERIOD FROM 2024-25 TO 2028-29
B4: 5.4 MAXIMUM DEMAND AND UTILISATION AT SPATIAL LEVEL
B6: There are two tables on this worksheet. The tables have been sub-grouped for ease of navigation. See the Instructions sheet on how to group or ungroup tables.
B8: 5.4.1 - NON-COINCIDENT & COINCIDENT MAXIMUM DEMAND
B9: SUBTRANSMISSION SUBSTATION
F10: DEMAND
B11: SUBSTATION | C11: FORECASTING ELEMENTS | D11: UNIT | E11: MAX DEMAND | F11: =CRCP_y4 -> 2022-23 | G11: =CRCP_y5 -> 2023-24 | H11: =FRCP_y1 -> 2024-25 | I11: =FRCP_y2 -> 2025-26 | J11: =FRCP_y3 -> 2026-27 | K11: =FRCP_y4 -> 2027-28 | L11: =FRCP_y5 -> 2028-29
B12: Dapto BSP | C12: Substation Rating | D12: MVA | E12: Non-Coincident
E13: Coincident
C14: Raw Adjusted MD | D14: MW | E14: Non-Coincident
E15: Coincident
C16: Raw Adjusted MD | D16: MVA | E16: Non-Coincident
E17: Coincident
C18: Date MD occurred | E18: Non-Coincident
E19: Coincident
C20: Half hour time period MD occurred | E20: Non-Coincident
E21: Coincident
C22: Winter/Summer Peaking | E22: Non-Coincident
E23: Coincident
C24: Adjustments - Embedded generation | D24: MW | E24: Non-Coincident
E25: Coincident
C26: Weather Corrected 10% POE | D26: MW | E26: Non-Coincident | F26: 609.6278595 | G26: 612.877324 | H26: 623.6083518 | I26: 620.3719681 | J26: 622.6376807 | K26: 627.1277084 | L26: 636.6637029
E27: Coincident
C28: Weather Corrected MD 10% POE | D28: MVA | E28: Non-Coincident | F28: 616.5496083 | G28: 619.8359673 | H28: 630.6888359 | I28: 627.415706 | J28: 629.7071437 | K28: 634.2481514 | L28: 643.8924181
E29: Coincident
C30: Weather Corrected MD 50% POE | D30: MW | E30: Non-Coincident | F30: 579.3187994 | G30: 583.3118097 | H30: 594.1567216 | I30: 590.9613163 | J30: 593.2533708 | K30: 597.8244162 | L30: 607.7426739
E31: Coincident
C32: Weather Corrected MD 50% POE | D32: MVA | E32: Non-Coincident | F32: 585.8964174 | G32: 589.9347646 | H32: 600.9028102 | I32: 597.671124 | J32: 599.9892027 | K32: 604.612148 | L32: 614.6430181
E33: Coincident
B34: Holroyd BSP | C34: Substation Rating | D34: MVA | E34: Non-Coincident
E35: Coincident
C36: Raw Adjusted MD | D36: MW | E36: Non-Coincident
E37: Coincident
C38: Raw Adjusted MD | D38: MVA | E38: Non-Coincident
E39: Coincident
C40: Date MD occurred | E40: Non-Coincident
E41: Coincident
C42: Half hour time period MD occurred | E42: Non-Coincident
E43: Coincident
C44: Winter/Summer Peaking | E44: Non-Coincident
E45: Coincident
C46: Adjustments - Embedded generation | D46: MW | E46: Non-Coincident
E47: Coincident
C48: Weather Corrected 10% POE | D48: MW | E48: Non-Coincident | F48: 429.5238979 | G48: 488.4248885 | H48: 540.172955 | I48: 523.7320064 | J48: 542.9109332 | K48: 556.8981167 | L48: 570.8045394
E49: Coincident
C50: Weather Corrected MD 10% POE | D50: MVA | E50: Non-Coincident | F50: 429.9273456 | G50: 488.8836614 | H50: 540.6803344 | I50: 524.2239429 | J50: 543.4208843 | K50: 557.4212059 | L50: 571.3406906
E51: Coincident
C52: Weather Corrected MD 50% POE | D52: MW | E52: Non-Coincident | F52: 407.5753071 | G52: 466.5751435 | H52: 518.2635677 | I52: 502.1890219 | J52: 521.2013958 | K52: 535.2930895 | L52: 549.5981055
E53: Coincident
C54: Weather Corrected MD 50% POE | D54: MVA | E54: Non-Coincident | F54: 407.9581387 | G54: 467.0133931 | H54: 518.7503678 | I54: 502.6607233 | J54: 521.6909554 | K54: 535.7958852 | L54: 550.1143378
E55: Coincident
B56: Ilford BSP | C56: Substation Rating | D56: MVA | E56: Non-Coincident
E57: Coincident
C58: Raw Adjusted MD | D58: MW | E58: Non-Coincident
E59: Coincident
C60: Raw Adjusted MD | D60: MVA | E60: Non-Coincident
E61: Coincident
C62: Date MD occurred | E62: Non-Coincident
E63: Coincident
C64: Half hour time period MD occurred | E64: Non-Coincident
E65: Coincident
C66: Winter/Summer Peaking | E66: Non-Coincident
E67: Coincident
C68: Adjustments - Embedded generation | D68: MW | E68: Non-Coincident
E69: Coincident
C70: Weather Corrected 10% POE | D70: MW | E70: Non-Coincident | F70: 5.312034458 | G70: 5.292904758 | H70: 17.58647399 | I70: 17.55467672 | J70: 17.63734544 | K70: 17.78796854 | L70: 18.01150371
E71: Coincident
C72: Weather Corrected MD 10% POE | D72: MVA | E72: Non-Coincident | F72: 5.312151979 | G72: 5.293021856 | H72: 17.58686307 | I72: 17.55506509 | J72: 17.63773564 | K72: 17.78836207 | L72: 18.01190219
E73: Coincident
C74: Weather Corrected MD 50% POE | D74: MW | E74: Non-Coincident | F74: 5.312034458 | G74: 5.292904758 | H74: 17.58647399 | I74: 17.55467672 | J74: 17.63734544 | K74: 17.78796854 | L74: 18.01150371
E75: Coincident
C76: Weather Corrected MD 50% POE | D76: MVA | E76: Non-Coincident | F76: 5.312151979 | G76: 5.293021856 | H76: 17.58686307 | I76: 17.55506509 | J76: 17.63773564 | K76: 17.78836207 | L76: 18.01190219
E77: Coincident
B78: Ingleburn BSP | C78: Substation Rating | D78: MVA | E78: Non-Coincident
E79: Coincident
C80: Raw Adjusted MD | D80: MW | E80: Non-Coincident
E81: Coincident
C82: Raw Adjusted MD | D82: MVA | E82: Non-Coincident
E83: Coincident
C84: Date MD occurred | E84: Non-Coincident
E85: Coincident
C86: Half hour time period MD occurred | E86: Non-Coincident
E87: Coincident
C88: Winter/Summer Peaking | E88: Non-Coincident
E89: Coincident
C90: Adjustments - Embedded generation | D90: MW | E90: Non-Coincident
E91: Coincident
C92: Weather Corrected 10% POE | D92: MW | E92: Non-Coincident | F92: 135.5875875 | G92: 135.8586144 | H92: 135.9934323 | I92: 135.1471598 | J92: 135.3402412 | K92: 135.9993061 | L92: 137.125372
E93: Coincident
C94: Weather Corrected MD 10% POE | D94: MVA | E94: Non-Coincident | F94: 140.0795051 | G94: 140.359511 | H94: 140.4987954 | I94: 139.6244865 | J94: 139.8239645 | K94: 140.5048638 | L94: 141.6682354
E95: Coincident
C96: Weather Corrected MD 50% POE | D96: MW | E96: Non-Coincident | F96: 126.57003 | G96: 126.8410569 | H96: 127.0915279 | I96: 126.2855134 | J96: 126.4785948 | K96: 127.1376597 | L96: 128.3375974
E97: Coincident
C98: Weather Corrected MD 50% POE | D98: MVA | E98: Non-Coincident | F98: 130.7632026 | G98: 131.0432084 | H98: 131.3019773 | I98: 130.4692602 | J98: 130.6687382 | K98: 131.3496375 | L98: 132.5893282
E99: Coincident
B100: Liverpool BSP | C100: Substation Rating | D100: MVA | E100: Non-Coincident
E101: Coincident
C102: Raw Adjusted MD | D102: MW | E102: Non-Coincident
E103: Coincident
C104: Raw Adjusted MD | D104: MVA | E104: Non-Coincident
E105: Coincident
C106: Date MD occurred | E106: Non-Coincident
E107: Coincident
C108: Half hour time period MD occurred | E108: Non-Coincident
E109: Coincident
C110: Winter/Summer Peaking | E110: Non-Coincident
E111: Coincident
C112: Adjustments - Embedded generation | D112: MW | E112: Non-Coincident
E113: Coincident
C114: Weather Corrected 10% POE | D114: MW | E114: Non-Coincident | F114: 452.6925783 | G114: 492.9717156 | H114: 513.5767757 | I114: 524.0211483 | J114: 535.2362308 | K114: 549.2591518 | L114: 563.6179461
E115: Coincident
C116: Weather Corrected MD 10% POE | D116: MVA | E116: Non-Coincident | F116: 459.9612235 | G116: 500.8871016 | H116: 521.8230063 | I116: 532.4350786 | J116: 543.8302358 | K116: 558.0783154 | L116: 572.6676613
E117: Coincident
C118: Weather Corrected MD 50% POE | D118: MW | E118: Non-Coincident | F118: 424.5816982 | G118: 464.8608355 | H118: 485.4831902 | I118: 495.9983364 | J118: 507.2966072 | K118: 521.3195283 | L118: 535.6876632
E119: Coincident
C120: Weather Corrected MD 50% POE | D120: MVA | E120: Non-Coincident | F120: 431.3989819 | G120: 472.3248599 | H120: 493.2783369 | I120: 503.9623193 | J120: 515.4420004 | K120: 529.6900801 | L120: 544.2889166
E121: Coincident
B122: Macarthur 66kV BSP | C122: Substation Rating | D122: MVA | E122: Non-Coincident
E123: Coincident
C124: Raw Adjusted MD | D124: MW | E124: Non-Coincident
E125: Coincident
C126: Raw Adjusted MD | D126: MVA | E126: Non-Coincident
E127: Coincident
C128: Date MD occurred | E128: Non-Coincident
E129: Coincident
C130: Half hour time period MD occurred | E130: Non-Coincident
E131: Coincident
C132: Winter/Summer Peaking | E132: Non-Coincident
E133: Coincident
C134: Adjustments - Embedded generation | D134: MW | E134: Non-Coincident
E135: Coincident
C136: Weather Corrected 10% POE | D136: MW | E136: Non-Coincident | F136: 160.0265133 | G136: 172.0326604 | H136: 175.3279146 | I136: 178.927041 | J136: 183.7039399 | K136: 190.1991036 | L136: 199.1055898
E137: Coincident
C138: Weather Corrected MD 10% POE | D138: MVA | E138: Non-Coincident | F138: 162.1673505 | G138: 174.334116 | H138: 177.6734541 | I138: 181.3207298 | J138: 186.1615341 | K138: 192.7435902 | L138: 201.7692275
E139: Coincident
C140: Weather Corrected MD 50% POE | D140: MW | E140: Non-Coincident | F140: 148.2182942 | G140: 160.2244413 | H140: 163.5196955 | I140: 167.1188219 | J140: 171.8957208 | K140: 178.4023156 | L140: 187.3546725
E141: Coincident
C142: Weather Corrected MD 50% POE | D142: MVA | E142: Non-Coincident | F142: 150.2011609 | G142: 162.3679264 | H142: 165.7072645 | I142: 169.3545401 | J142: 174.1953445 | K142: 180.7889846 | L142: 189.8611063
E143: Coincident
B144: Macarthur 132kV BSP | C144: Substation Rating | D144: MVA | E144: Non-Coincident
E145: Coincident
C146: Raw Adjusted MD | D146: MW | E146: Non-Coincident
E147: Coincident
C148: Raw Adjusted MD | D148: MVA | E148: Non-Coincident
E149: Coincident
C150: Date MD occurred | E150: Non-Coincident
E151: Coincident
C152: Half hour time period MD occurred | E152: Non-Coincident
E153: Coincident
C154: Winter/Summer Peaking | E154: Non-Coincident
E155: Coincident
C156: Adjustments - Embedded generation | D156: MW | E156: Non-Coincident
E157: Coincident
C158: Weather Corrected 10% POE | D158: MW | E158: Non-Coincident | F158: 222.8956429 | G158: 240.6643711 | H158: 252.3927065 | I158: 263.3763935 | J158: 283.8931839 | K158: 302.6003825 | L158: 323.4638527
E159: Coincident
C160: Weather Corrected MD 10% POE | D160: MVA | E160: Non-Coincident | F160: 227.0436073 | G160: 245.1430017 | H160: 257.0895949 | I160: 268.2776822 | J160: 289.1762787 | K160: 308.2316079 | L160: 329.4833357
E161: Coincident
C162: Weather Corrected MD 50% POE | D162: MW | E162: Non-Coincident | F162: 211.1634142 | G162: 229.0220475 | H162: 240.769679 | I162: 251.7640695 | J162: 272.3388162 | K162: 291.076783 | L162: 311.9565533
E163: Coincident
C164: Weather Corrected MD 50% POE | D164: MVA | E164: Non-Coincident | F164: 215.0930483 | G164: 233.2840209 | H164: 245.2502693 | I164: 256.4492594 | J164: 277.4068906 | K164: 296.4935606 | L164: 317.7618919
E165: Coincident
B166: Marulan BSP | C166: Substation Rating | D166: MVA | E166: Non-Coincident
E167: Coincident
C168: Raw Adjusted MD | D168: MW | E168: Non-Coincident
E169: Coincident
C170: Raw Adjusted MD | D170: MVA | E170: Non-Coincident
E171: Coincident
C172: Date MD occurred | E172: Non-Coincident
E173: Coincident
C174: Half hour time period MD occurred | E174: Non-Coincident
E175: Coincident
C176: Winter/Summer Peaking | E176: Non-Coincident
E177: Coincident
C178: Adjustments - Embedded generation | D178: MW | E178: Non-Coincident
E179: Coincident
C180: Weather Corrected 10% POE | D180: MW | E180: Non-Coincident | F180: 88.89410731 | G180: 92.88817756 | H180: 96.01835625 | I180: 98.24792467 | J180: 100.2893605 | K180: 102.5094083 | L180: 104.74682
E181: Coincident
C182: Weather Corrected MD 10% POE | D182: MVA | E182: Non-Coincident | F182: 92.26722558 | G182: 96.41285223 | H182: 99.66180666 | I182: 101.9759768 | J182: 104.0948756 | K182: 106.3991639 | L182: 108.721475
E183: Coincident
C184: Weather Corrected MD 50% POE | D184: MW | E184: Non-Coincident | F184: 83.44143479 | G184: 87.54113719 | H184: 90.67261333 | I184: 92.90218176 | J184: 94.94361755 | K184: 97.16366536 | L184: 99.40107705
E185: Coincident
C186: Weather Corrected MD 50% POE | D186: MVA | E186: Non-Coincident | F186: 86.60764948 | G186: 90.86291653 | H186: 94.11321764 | I186: 96.42738782 | J186: 98.54628662 | K186: 100.8505749 | L186: 103.172886
E187: Coincident
B188: Mount Piper BSP | C188: Substation Rating | D188: MVA | E188: Non-Coincident
E189: Coincident
C190: Raw Adjusted MD | D190: MW | E190: Non-Coincident
E191: Coincident
C192: Raw Adjusted MD | D192: MVA | E192: Non-Coincident
E193: Coincident
C194: Date MD occurred | E194: Non-Coincident
E195: Coincident
C196: Half hour time period MD occurred | E196: Non-Coincident
E197: Coincident
C198: Winter/Summer Peaking | E198: Non-Coincident
E199: Coincident
C200: Adjustments - Embedded generation | D200: MW | E200: Non-Coincident
E201: Coincident
C202: Weather Corrected 10% POE | D202: MW | E202: Non-Coincident | F202: 41.30644118 | G202: 41.28932817 | H202: 43.58961513 | I202: 43.56478454 | J202: 43.58687331 | K202: 43.63547637 | L202: 43.71102071
... 11370 more rows

Sheet 6.2 Reliability & Cust serv
B1: =INDEX(dms_Worksheet_List,MATCH(dms_Model,dms_Model_List)) -> REGULATORY REPORTING STATEMENT
B2: =INDEX(dms_TradingNameFull_List,MATCH(dms_TradingName,dms_TradingName_List)) -> Endeavour Energy
B3: =CONCATENATE("REGULATORY PERIOD FROM ", FRCP_y1," TO ",dms_MultiYear_FinalYear_Result) -> REGULATORY PERIOD FROM 2024-25 TO 2028-29
B4: 6.2 RELIABILITY AND CUSTOMER SERVICE PERFORMANCE
B6: There are FIVE tables on this worksheet. Each table has been grouped for ease of navigation. See the Instructions sheet on how to group or ungroup tables.
B8: 6.2.1 - UNPLANNED MINUTES OFF SUPPLY (SAIDI)
E9: Proposed target
B10: SAIDI | E10: =FRCP_y1 -> 2024-25 | F10: =FRCP_y2 -> 2025-26 | G10: =FRCP_y3 -> 2026-27 | H10: =FRCP_y4 -> 2027-28 | I10: =FRCP_y5 -> 2028-29
B11: Total sustained minutes off supply after removing excluded events
B12: =INDEX(dms_FeederName_1,MATCH(dms_TradingName,dms_TradingName_List)) -> CBD
B13: =INDEX(dms_FeederName_2,MATCH(dms_TradingName,dms_TradingName_List)) -> Urban | E13: 50.1 | F13: 50.1 | G13: 50.1 | H13: 50.1 | I13: 50.1
B14: =INDEX(dms_FeederName_3,MATCH(dms_TradingName,dms_TradingName_List)) -> Short rural | E14: 148 | F14: 148 | G14: 148 | H14: 148 | I14: 148
B15: =INDEX(dms_FeederName_4,MATCH(dms_TradingName,dms_TradingName_List)) -> Long rural | E15: - | F15: - | G15: - | H15: - | I15: -
B16: =IF(ISBLANK(INDEX(dms_FeederName_5,MATCH(dms_TradingName,dms_TradingName_List))),"",INDEX(dms_FeederName_5,MATCH(dms_TradingName,dms_TradingName_List))) -> 
B17: Total | E17: =SUM(E12:E16) -> 198.1 | F17: =SUM(F12:F16) -> 198.1 | G17: =SUM(G12:G16) -> 198.1 | H17: =SUM(H12:H16) -> 198.1 | I17: =SUM(I12:I16) -> 198.1
B20: 6.2.2 - UNPLANNED INTERRUPTIONS TO SUPPLY (SAIFI)
E21: Proposed target
B22: SAIFI | E22: =FRCP_y1 -> 2024-25 | F22: =FRCP_y2 -> 2025-26 | G22: =FRCP_y3 -> 2026-27 | H22: =FRCP_y4 -> 2027-28 | I22: =FRCP_y5 -> 2028-29
B23: Total sustained interruptions after removing excluded events
B24: =INDEX(dms_FeederName_1,MATCH(dms_TradingName,dms_TradingName_List)) -> CBD
B25: =INDEX(dms_FeederName_2,MATCH(dms_TradingName,dms_TradingName_List)) -> Urban | E25: 0.55 | F25: 0.55 | G25: 0.55 | H25: 0.55 | I25: 0.55
B26: =INDEX(dms_FeederName_3,MATCH(dms_TradingName,dms_TradingName_List)) -> Short rural | E26: 1.209 | F26: 1.209 | G26: 1.209 | H26: 1.209 | I26: 1.209
B27: =INDEX(dms_FeederName_4,MATCH(dms_TradingName,dms_TradingName_List)) -> Long rural | E27: - | F27: - | G27: - | H27: - | I27: -
B28: =IF(ISBLANK(INDEX(dms_FeederName_5,MATCH(dms_TradingName,dms_TradingName_List))),"",INDEX(dms_FeederName_5,MATCH(dms_TradingName,dms_TradingName_List))) -> 
B29: Total | E29: =SUM(E24:E28) -> 1.759 | F29: =SUM(F24:F28) -> 1.759 | G29: =SUM(G24:G28) -> 1.759 | H29: =SUM(H24:H28) -> 1.759 | I29: =SUM(I24:I28) -> 1.759
B32: 6.2.3 - UNPLANNED MOMENTARY INTERRUPTIONS TO SUPPLY (MAIFI)
E33: Proposed target
B34: MAIFI | E34: =FRCP_y1 -> 2024-25 | F34: =FRCP_y2 -> 2025-26 | G34: =FRCP_y3 -> 2026-27 | H34: =FRCP_y4 -> 2027-28 | I34: =FRCP_y5 -> 2028-29
B35: Total momentary interruptions after removing excluded events
B36: =INDEX(dms_FeederName_1,MATCH(dms_TradingName,dms_TradingName_List)) -> CBD
B37: =INDEX(dms_FeederName_2,MATCH(dms_TradingName,dms_TradingName_List)) -> Urban
B38: =INDEX(dms_FeederName_3,MATCH(dms_TradingName,dms_TradingName_List)) -> Short rural
B39: =INDEX(dms_FeederName_4,MATCH(dms_TradingName,dms_TradingName_List)) -> Long rural
B40: =IF(ISBLANK(INDEX(dms_FeederName_5,MATCH(dms_TradingName,dms_TradingName_List))),"",INDEX(dms_FeederName_5,MATCH(dms_TradingName,dms_TradingName_List))) -> 
B41: Total | E41: =SUM(E36:E40) -> 0 | F41: =SUM(F36:F40) -> 0 | G41: =SUM(G36:G40) -> 0 | H41: =SUM(H36:H40) -> 0 | I41: =SUM(I36:I40) -> 0
B44: 6.2.3(B) - UNPLANNED MOMENTARY INTERRUPTIONS TO SUPPLY (MAIFIe)
E45: Proposed target
B46: MAIFIe | E46: =FRCP_y1 -> 2024-25 | F46: =FRCP_y2 -> 2025-26 | G46: =FRCP_y3 -> 2026-27 | H46: =FRCP_y4 -> 2027-28 | I46: =FRCP_y5 -> 2028-29
B47: Total momentary interruptions after removing excluded events
B48: =INDEX(dms_FeederName_1,MATCH(dms_TradingName,dms_TradingName_List)) -> CBD
B49: =INDEX(dms_FeederName_2,MATCH(dms_TradingName,dms_TradingName_List)) -> Urban
B50: =INDEX(dms_FeederName_3,MATCH(dms_TradingName,dms_TradingName_List)) -> Short rural
B51: =INDEX(dms_FeederName_4,MATCH(dms_TradingName,dms_TradingName_List)) -> Long rural
B52: =IF(ISBLANK(INDEX(dms_FeederName_5,MATCH(dms_TradingName,dms_TradingName_List))),"",INDEX(dms_FeederName_5,MATCH(dms_TradingName,dms_TradingName_List))) -> 
B53: Total | E53: =SUM(E48:E52) -> 0 | F53: =SUM(F48:F52) -> 0 | G53: =SUM(G48:G52) -> 0 | H53: =SUM(H48:H52) -> 0 | I53: =SUM(I48:I52) -> 0
B56: The number of distribution customers is calculated as the average of the number of customers at the beginning of the reporting period and the number of customers at the end of the reporting period.
B58: 6.2.4 - DISTRIBUTION CUSTOMER NUMBERS
C59: Forecast
B60: Average customer numbers | C60: =CRCP_y4 -> 2022-23 | D60: =CRCP_y5 -> 2023-24 | E60: =FRCP_y1 -> 2024-25 | F60: =FRCP_y2 -> 2025-26 | G60: =FRCP_y3 -> 2026-27 | H60: =FRCP_y4 -> 2027-28 | I60: =FRCP_y5 -> 2028-29
B61: =INDEX(dms_FeederName_1,MATCH(dms_TradingName,dms_TradingName_List)) -> CBD
B62: =INDEX(dms_FeederName_2,MATCH(dms_TradingName,dms_TradingName_List)) -> Urban | C62: 805330.962 | D62: 819168.0314 | E62: 837124.0343 | F62: 854220.0649 | G62: 871209.3108 | H62: 888810.8666 | I62: 906849.3101
B63: =INDEX(dms_FeederName_3,MATCH(dms_TradingName,dms_TradingName_List)) -> Short rural | C63: 326930.365 | D63: 332547.6309 | E63: 339837.0099 | F63: 346777.2764 | G63: 353674.1928 | H63: 360819.6812 | I63: 368142.5276
B64: =INDEX(dms_FeederName_4,MATCH(dms_TradingName,dms_TradingName_List)) -> Long rural | C64: 308.9569951 | D64: 314.2654453 | E64: 321.1540824 | F64: 327.7127998 | G64: 334.2305504 | H64: 340.9832075 | I64: 347.903472
B65: =IF(ISBLANK(INDEX(dms_FeederName_5,MATCH(dms_TradingName,dms_TradingName_List))),"",INDEX(dms_FeederName_5,MATCH(dms_TradingName,dms_TradingName_List))) -> 
B66: Total | C66: =SUM(C61:C65) -> 1132570.284 | D66: 1152029.928 | E66: 1177282.198 | F66: 1201325.054 | G66: 1225217.734 | H66: 1249971.531 | I66: 1275339.741
B68: The AER's definition of calls answered within 30 seconds is as follows: Calls to the fault line answered in 30 seconds where the time to answer a call is measured from when the call enters the telephone system of the call centre (including that time when it may be ringing unanswered by any response) and the caller speaks with a human operator, but excluding the time that the caller is connected to an automated interactive service that provides substantive information. This measure does not apply to: - calls to payment lines and automated interactive services; - calls abandoned by the customer within 30 seconds of the call being queued for response by a human operator. Where the time in which a telephone call is abandoned is not measured, then an estimate of the number of calls abandoned within 30 seconds will be determined by taking 20 per cent of all calls abandoned. Note: Being placed in a queuing system (automated or otherwise) does not constitute a response. 'Calls answered within 30 seconds' and 'Calls received' should be calculated excluding calls abandoned within 30 seconds of being queued for a human operator; and calls to payment lines and automated interactive services.
B70: 6.2.5 - CUSTOMER SERVICE
E71: Proposed target
E72: =FRCP_y1 -> 2024-25 | F72: =FRCP_y2 -> 2025-26 | G72: =FRCP_y3 -> 2026-27 | H72: =FRCP_y4 -> 2027-28 | I72: =FRCP_y5 -> 2028-29
B73: Number of calls received | E73: 110946 | F73: 105399 | G73: 100129 | H73: 95122 | I73: 90365
B74: Number of calls answered within 30 seconds | E74: 92085 | F74: 87481 | G74: 83107 | H74: 78951 | I74: 75002
B75: Percentage of calls answered within 30 seconds | E75: =IFERROR((E74/E73),"") -> 0.8299983776 | F75: =IFERROR((F74/F73),"") -> 0.8299983871 | G75: =IFERROR((G74/G73),"") -> 0.8299993009 | H75: =IFERROR((H74/H73),"") -> 0.8299972667 | I75: =IFERROR((I74/I73),"") -> 0.8299894871

Sheet 7.1 Policies and Procedures
B1: =INDEX(dms_Worksheet_List,MATCH(dms_Model,dms_Model_List)) -> REGULATORY REPORTING STATEMENT
B2: =INDEX(dms_TradingNameFull_List,MATCH(dms_TradingName,dms_TradingName_List)) -> Endeavour Energy
B3: =CONCATENATE("REGULATORY PERIOD FROM ", FRCP_y1," TO ",dms_MultiYear_FinalYear_Result) -> REGULATORY PERIOD FROM 2024-25 TO 2028-29
B4: 7.1 PLANS, POLICIES, PROCEDURES AND STRATEGIES
B6: 7.1.1 - PLANS, POLICIES, PROCEDURES AND STRATEGIES
C7: Brief description | D7: Relevance to regulatory proposal | E7: Expenditure impact
C8: Description of the plan, policy, procedure or strategy. | D8: Identify the element of the proposal/supporting documents that the policy, plan, procedure or strategy is relevant to e.g. replacement capex, capacity utilisation thresholds, opex | E8: Is this policy, plan or procedure identified in the response to section 4 'Step Changes' of the notice (yes or no)?
B9: Corporate
B10: Our Plan (Corporate Plan) | C10: The Our Plan document (Corporate Plan) outlines Endeavour Energy’s business strategies for the 5 years from FY24. The plan is the result of a rigorous planning process. The Company's Corporate Planning process reflects an integrated engagement process encompassing strategy development, planning and budgeting, implementation, measuring and reporting, communication and performance management processes around an annual planning timeframe. This process considers numerous inputs such as the prevailing economic situation, as well as input from our stakeholders, customers and community, to determine the future direction of our organisation. | D10: All elements of the regulatory proposal. | E10: No
B13: Governance framework
B14: Corporate Risk Management Plan | C14: The Corporate Risk Management Plan is maintained in an electronic risk and audit tool, Resolver. It is continuously updated, with subject matter experts from across the organisation, executive level risk owners and the corporate risk function working together to identify changes in current or future risk levels, relevant controls in place, additional actions required to mitigate risk, etc. The risk analysis methodology used is based on the bow-tie methodology that considers a plausible worst case hazardous event and identifies both the preventative and mitigative controls in place to either reduce the likelihood or mitigate the consequence of the event should it occur. | D14: All elements of the regulatory proposal | E14: No
B15: Group Board Policy 2.0.5 - Risk Management | C15: The purpose of this policy is to outline the business' appetite for risk and risk management framework. | D15: All elements of the regulatory proposal | E15: No
B16: Group Board Policies 1.1 NAP / 1.1 NOP / 1.1 NUP - Delegation of Powers and Functions to the Chief Executive Officer | C16: The purpose of these policies is to clearly articulate the delegations of authority throughout the business to support effective decision making. | D16: All elements of the regulatory proposal | E16: No
B17: Power of Attorney (NAP/NOP/NUP) | C17: These documents outline the officers appointed to act as Attorney on behalf of the Asset/Operator/Unregulated Partnership to sign, execute and deliver nominated documents. | D17: All elements of the regulatory proposal | E17: No
B18: Asset Management Framework Manual | C18: The document explains how asset management elements (e.g. components, artefacts, etc.) are linked and work together as one integrated and coherent system, referencing processes already in existence and controlled within its other management systems including business management, financial planning, investment management, risk management, environmental management, health and safety management, emergency management and project management systems. | D18: Capex | E18: No
B31: Accounting policies, procedures and methodologies (including a capitalisation policy, depreciation policy and an approved expenditure allocation methodology)
B32: Company Policy 6.0 Economic and Financial Management | C32: The purpose of this policy is to ensure the economic and financial management of the Company is managed consistently, effectively and in accordance with legislative and policy requirements. | D32: Opex, Capex | E32: No
B33: Company Policy 6.21 Accounting for Software and Easements | C33: The purpose of this policy is to ensure the Company documents a policy framework for consistent and well controlled processing of intangible asset acquisitions, transfers, disposals and amortisation provisions, in accordance with relevant policy requirements. Adherence to this policy will enable consistent generation of accurate financial reports which can be relied upon for decision making purposes. | D33: Capex | E33: No
B34: Company Policy 6.25 Equipment Registers | C34: The purpose of this policy is to ensure equipment registers are maintained and reflect accurate information necessary to allow the divisions who control items of equipment, to effectively manage those items of equipment, and to provide a means of reconciliation to the Fixed Asset Register. | D34: Capex | E34: No
B35: Company Policy 6.33 Non-cash Capital Contributions | C35: The purpose of this policy is to establish a clearly defined policy which will enable a consistent methodology to be applied for the treatment of non cash capital contributions related to customer funded contestable works. | D35: Capex | E35: No
B36: Company Policy 6.35 Capitalisation of Borrowing Costs | C36: The purpose of this policy is to ensure the Company documents a policy framework for ongoing compliance with Australian Accounting Standard Borrowing Costs | D36: Capex | E36: No
B37: Company Policy 6.64 Accounting for Outstanding High Voltage Reimbursements | C37: The purpose of this policy is to document a policy framework for correctly accounting for outstanding HV reimbursement claims following completion of contestable works projects, including those not lodged within a timely manner. | D37: Capex | E37: No
B38: Company Policy 6.9 Capital Expenditure - Overhead Capitalisation | C38: The purpose of this policy is to ensure a consistent methodology is applied by the Company in order to allocate overhead costs between operating and capital activities. | D38: Capex,Opex | E38: No
B39: Company Procedure GFC0005 Capital Expenditure | C39: The purpose of this procedure is to provide guidelines to assist in determining whether expenditure should be classified as capital expenditure or operating expenditure | D39: Capex, Opex | E39: No
B40: Company Procedure GFC0014 Fixed Asset Capitalisation and Disposal | C40: The purpose of this procedure is to ensure the Company outlines the accounting process for recognition of capital expenditure, works in progress, capitalisation to the Fixed Asset Register (FAR) and the Tax Asset Register (TAR), and disposal of fixed assets. | D40: Capex | E40: No
B41: Company Procedure GFC0015 Disposal of Items from the Fixed Asset Register | C41: The purpose of this procedure is to ensure the correct process is followed with respect to the disposal of assets from the Fixed Assets Register (FAR) and the Tax Assets Register (TAR). | D41: Capex, RAB, Tax | E41: No
B42: Company Procedure GFC0030 Non-system Fixed Asset Stocktakes | C42: The purpose of this procedure is to ensure non system fixed assets are managed and monitored by periodic stocktakes, to assist in ensuring the value of property, plant and equipment reported is a true and fair representation of actual non system fixed assets controlled by the Company. | D42: Capex | E42: No
B43: Company Procedure GFC0034 Budgeting and Forecasting | C43: The purpose of this procedure is to ensure adoption of a consistent methodology, for budgeting and forecasting throughout the Company, to enable accurate, timely and consistent preparation of budgets and forecasts for the Executive Leadership Team (ELT), the Board and external stakeholders. | D43: Opex, Capex, Depreciation | E43: No
B44: Company Procedure GFC0044 Capitalisation of Borrowing Costs | C44: The purpose of this procedure is to set out procedures to be followed to ensure that the requirements of Company Policy 6.35 – Capitalisation of Borrowing Costs are met. | D44: Capex | E44: No
B45: Cost Allocation Method | C45: The purpose of this methodology is to allocate costs between regulatory categories consistent with the AER-approved CAM (Cost Allocation Method) | D45: Opex, Capex | E45: No
B57: Asset management plan or equivalent documentation
B58: Asset Management Policies
B59: Asset Management Policy | C59: The purpose of this policy is to set out Endeavour Energy’s principles by which the business intends to apply asset management practice to achieve its corporate and sustainability objectives. | D59: All capex | E59: No
B61: Asset Management Strategies
B62: Network Business Strategy | C62: The Network Business Strategy (NBS) translates Endeavour Energy’s Corporate Strategy into tangible and measurable Network Objectives that inform investment over the period FY24 to FY29. Furthermore, it demonstrates the line of sight from the Corporate Strategy and other associated strategies to our investments. | D62: All Capex | E62: No
B66: Asset Management Plans
B67: Growth Servicing Strategy | C67: The growth servicing strategy has been developed to: •Define the growth challenge for Endeavour Energy including clarifying the characteristics of greenfield and brownfield development. •Outline Endeavour Energy’s approach to investment in augmentation capital that addresses the growth challenge. The approach will inform the development of prudent and efficient cases for investment to service the growth challenge. •Provide a line of sight between Endeavour Energy’s corporate strategy and strategic asset management plan and Department of Planning Infrastructure and Environment (DPIE’s) growth objectives and customers needs. | D67: Augmentation capex | E67: No
B68: Overhead System Strategy | C68: The purpose of the System Strategy is to outline a 10-year strategy for a discrete asset system. It provides a description of the investment, performance, key risks and intervention strategies associated with the asset system. The strategy also describes how the system is managed to achieve the network objectives and Endeavour Energy’s key goals. | D68: Replacement capex | E68: No
B69: Underground System Strategy | C69: The purpose of the System Strategy is to outline a 10-year strategy for a discrete asset system. It provides a description of the investment, performance, key risks and intervention strategies associated with the asset system. The strategy also describes how the system is managed to achieve the network objectives and Endeavour Energy’s key goals. | D69: Replacement capex | E69: No
B70: DER Integration Strategy | C70: The DER Integration Strategy has been developed to set a longer-term context and vision to guide and align DER integration investments in the Endeavour Energy network. Specifically, it will: •Provide a long-term DER penetration forecast developed from credible sources and contextualised to Endeavour Energy’s network and customer base. •Detail how tariff reform will be used to accommodate the forecast and reduce network investment. •Review current and past investments into DER integration to track their effectiveness in delivering customer outcomes. •Develop a portfolio of credible and industry leading options for better integrating DER and equitably managing and sharing network hosting capacity. •Detail our plans to implement Dynamic Operating Envelopes as well as any relevant jurisdictional requirements, directives or priorities as identified by regulators, government, or market operator. | D70: DER capex | E70: No
B71: Future Grid Strategy | C71: The purpose of the Future Grid Strategy is to: 1. Define the emerging challenges and opportunities for our customers generated by the energy transition. 2. Outline our approach to investment in our Future Grid programs. 3. Ensure investment line-of-sight between the long-term interests of our customers, our corporate strategy and Network Business Strategy and other major sector reform initiatives. | D71: DER capex | E71: No
B72: Resilience Strategy | C72: This strategy maps out how Endeavour Energy will achieve both community resilience as well as an increased resilient network in the face of changing customer expectations, an evolving industry and to mitigate emerging risks. This strategy has been developed with respect to, and informed by customer expectations and preferences and has also been informed by the AER’s guidance note, ‘Network Resilience – A Note on key issues’ (2022).’ | D72: Resilience capex | E72: No
B73: 2022 Aerotropolis Area Plan - Rev 3.1.1 | C73: The purpose of this document is to establish a supply plan for the Western Sydney Aerotropolis. | D73: Augmentation capex | E73: No
B74: 2022 Greater Macarthur Priority Growth Area Plan - Rev 2.0 | C74: The purpose of this document is to establish a supply plan for Sydney’s Greater Macarthur Priority Growth Area. | D74: Augmentation capex | E74: No
B75: 2022 Greater Parramatta Area Plan - Rev 2 | C75: The purpose of this document is to establish a supply plan for the Greater Parramatta Priority Growth Area. | D75: Augmentation capex | E75: No
B76: 2022 North West Priority Growth Area Plan - Rev 2 | C76: The purpose of this document is to establish a supply plan for the North West Priority Growth Area. | D76: Augmentation capex | E76: No
B77: 2022 West Lake Illawarra Area Plan - Rev 2 | C77: The purpose of this document is to establish a supply plan for the West Lake Illawarra Priority Growth Area. | D77: Augmentation capex | E77: No
B78: Asset Class Plan FY23 - Circuit Breakers, r1.0 | C78: The purpose of this document is to outline previous, current and proposed asset management practices for Circuit Breakers and define a 10-year strategic plan for the asset class based on the asset’s risk and cost. | D78: Replacement capex | E78: No
B79: Asset Class Plan FY23 - Power transformers, r1.0 | C79: The purpose of this document is to outline previous, current and proposed asset management practices for Power Transformers and define a 10-year strategic plan for the asset class based on the asset’s risk and cost. | D79: Replacement capex | E79: No
B80: Asset Class Plan - HV Overhead Switchgear r1.1 | C80: The purpose of this document is to outline previous, current and proposed asset management practices for HV Overhead (OH) Distribution Switchgear and define a 10-year strategic plan for the asset class based on the asset’s risk and cost. | D80: Replacement capex | E80: No
B81: Asset Class Plan - Overhead Conductors r1.0 | C81: The purpose of this document is to outline previous, current and proposed asset management practices for Overhead Conductors and define a 10-year strategic plan for the asset class based on the asset’s risk and cost. | D81: Replacement capex | E81: No
B82: Asset Class Plan - Overhead Structures r1.0 | C82: The purpose of this document is to outline previous, current and proposed asset management practices for HV Overhead Structures and define a 10-year strategic plan for the asset class based on the asset’s risk and cost. | D82: Replacement capex | E82: No
B83: Asset Class Plan - Underground Cables r1.0 | C83: The purpose of this document is to outline previous, current and proposed asset management practices for Underground Cables and define a 10-year strategic plan for the asset class based on the asset’s risk and cost. | D83: Replacement capex | E83: No
B91: Capital expenditure policies and procedures (including capex approval policies and procedures and replacement policy)
B92: Investment Portfolio Decision Making Methodology | C92: To provide guidance on our investment portfolio decision making methodology. The outcome of the methodology is an optimised delivery plan which delivers value through alignment to network objectives with consideration of internal and external constraints. | D92: All capex | E92: No
B93: Investment Management Framework | C93: A framework that supports the investment decision process, which is: •streamlined – decision pathways are clear and efficient •consistent – assessment of needs, outcomes and risks are aligned across the portfolio and consistent with the corporate strategy and risk appetite •accurate and transparent — the identification of requirements and justification for investments are based on evidence and follows a clear process; and •relevant – appropriate information, both level and content, is submitted to enable informed decisions. | D93: All capex | E93: No
B94: Internal standards for network planning, design, maintenance and operation
B95: Asset Risk Model Framework | C95: The purpose of this document is to set out Endeavour Energy’s Repex methodology for assessing condition-based risk for electricity transmission and distribution assets, for estimating risk cost and detailing how risk is used to make asset retirement, de-rating, and intervention decisions. | D95: Replacement capex | E95: No
B96: Resilience Method 1. Climate Risk | C96: The purpose of this method is to provide context and a framework for the activities required to ensure Endeavour meet the first of three Resilience Strategy Goals defined in the Resilience Plan, specifically Resilience Goal 1, which is to define and predict the risk of climate change on the network and community resilience | D96: Resilience capex | E96: No
B97: Resilience Method 2. Customer Engagement | C97: The purpose of this method is to provide context and a framework for the activities required to ensure Endeavour meet the first of three Resilience Strategy Goals defined in the Resilience Plan, specifically Resilience Goal 2, which is to enhance customer experience through regular engagement and improved electrical network resilience | D97: Resilience capex | E97: No
B98: Resilience Method 3. Investment | C98: The purpose of this method is to provide context and a framework for the activities required to ensure Endeavour meet the first of three Resilience Strategy Goals defined in the Resilience Plan, specifically Resilience Goal 3, which is to incorporate the concept of climate change resilience into investment planning | D98: Resilience capex | E98: No
B99: Value Framework | C99: Provides a consistent approach in assessing and quantifying the economic and financial value of investments. | D99: All capex | E99: No
B174: Procurement and contracting out policies
B175: 12.1 Procurement & Purchasing Policy | C175: This policy governs the procurement and purchasing of external goods and services. It enables a strategic approach to the management of external spend. It provides a framework for governing risk, sustainability, supplier management and sourcing to deliver outcomes within the regulated business. | D175: The overarching policy guides and governs how as an organisation we can interact with industry and suppliers to partner and deliver works associated within capital and maintenance delivery programs. | E175: No
B176: GSU 0001 Source to Contract | C176: This procedure establishes a common approach to procurement activities across the business, driving value for money whilst embedding a common effective risk and compliance controls whilst delivering sustainable benefits for the organisation and customer. | D176: This procedure helps guide the business on decision making to enable capex and opex spend within budgets. | E176: No
B177: Information technology policies or strategies
B178: Endeavour Energy Technology Strategy 2022-2029 | C178: The Endeavour Energy Technology Strategy supports achievement of the Corporate Goals through a plan developed to support seven strategic technology themes. These themes provide a logical grouping for the technology programs of work. | D178: ICT Asset Strategy 2024-2029: The Technology Strategy provides the business context and framework for delivering the outcomes defined in the ICT submission. | E178: No
B179: Endeavour Energy Data Strategy 2022 | C179: The Endeavour Energy Data Strategy identifies how data, analytics and insights support the achievement of Endeavour Energy's goals. | D179: ICT Asset Strategy 2024-2029: The Data Strategy identifies specific data and analytic investments for the future regulatory period and informs application platform and integration investments to extend data and analytic capabilities. | E179: No
B180: Endeavour Energy Cyber and Information Security Strategy 2024-2029 | C180: The Endeavour Energy Cyber and Information Security Strategy provides a roadmap for securing all data and sensitive information in accordance with licensing conditions, legislative obligations and the expectations of the community. | D180: ICT Asset Strategy 2024-2029: The Cyber and Information Strategy identifies ICT investments necessary to maintain data and information protection at levels needed for compliance with licensing conditions and meet community expectations. Step changes for standard control services - forecast opex & capex: The Cyber and Information Security Strategy identifies additional capabilities that are needed for Endeavour Energy to be compliant with Security of Critical Infrastructure legislation | E180: No
B214: Demand management policies or strategies
B215: Demand Side Engagement | C215: Outlines how Endeavour Energy engages with non-network service providers, interested stakeholders, registered parties and customers on the supply of non-network options and demand side solutions. It details our approach and processes to identify and evaluate non-network options and Stand-Alone Power System (SAPS) for addressing network limitations. It also outlines how non-network service providers are invited to submit proposals. | D215: Capex and Opex trade-offs | E215: No
B218: Self insurance guidelines or policy
B219: Health & Safety Company Policy 3.5 Workers Compensation | C219: The Company is committed to meeting its responsibilities under the Workers Compensation Act 1987 (NSW) (also the Workers Compensation Act 1926 (NSW) where still relevant) and Workplace Injury Management and Workers Compensation Act 1998 (NSW) and all relevant amendments and regulations by processing all workers compensation claims to meet legislative requirements in an efficient and cost effective manner. | D219: Opex | E219: No
C220: The Company is self-insured and holds a State insurance Regulatory Authority (SIRA) Self-Insurance Licence under Section 211 of the Worker Compensation Act 1987 (NSW). | D220: Opex | E220: No
B221: Land and easement acquisition polices
B222: Company Policy 9.2.3 - Property Tenure for Network Assets | C222: The purpose of this policy is to establish a framework for the company's land acquisition functions to secure network assets that achieves the company's objectives. | D222: Capex and Opex | E222: No
B226: Asset security plans and policies
B227: Company Policy 15.1.2 | C227: The purpose of this policy is to outline the requirements necessary for providing efficient and effective physical security using appropriate risk management and continuous improvement principles. | D227: Capex and Opex | E227: No
B237: Disaster recovery policy
B238: Company Policy 2.12 - Business Continuity Management | C238: The purpose of this policy is to establish and maintain a whole of business approach to business continuity management (BCM) that minimises the impacts of disruption-related risk on the company's essential service delivery. BCM encompasses business continuity, incident management and IT disaster recovery. The policy excludes: - Day to day operations and normal execution of critical business processes including any associated critical resource dependencies - Minor localised business disruptions dealt with via business as usual work practices. | D238: All elements of the regulatory proposal | E238: No
B239: Company Policy 2.4 - Incident Management | C239: The purpose of this policy is to provide a framework for the company so it is prepared to effectively respond to and manage incidents through the development of an Incident Management Plan (IMP) relevant to a specific event, supporting procedures and educating key workers on appropriate responses. | D239: All elements of the regulatory proposal | E239: No
B240: Company Policy 13.9 - Information, Communications and Technology - Disaster Recovery Planning | C240: This policy documents the guiding principles to recover ICT services following a disruptive event, and the maintenance of disaster recovery documentation. | D240: All elements of the regulatory proposal | E240: No
B241: Company Procedure GRM0038 - Business Continuity Management Framework | C241: This procedure provides an overview of the business continuity management framework and the detailed business continuity approach that minimises the impacts of disruptive events on the company's essential service delivery. This includes the development of business continuity plans and the business continuity management exercise program. | D241: All elements of the regulatory proposal | E241: No
B242: Company Procedure GRM0011 - Incident Management | C242: This procedure details the company's approach to incident management as required by Company Policy 2.4 - Incident Management. | D242: All elements of the regulatory proposal | E242: No
B243: Incident Management Plan | C243: The Incident Management Plan (IMP) provides the Incident Management Team (IMT) with a framework to guide the company through a major disruptive event. This framework document is to be used as a flexible tool to assist the IMT to manage an actual or potential incident, irrespective of the type of incident. The IMP provides guidance to the IMT to develop and implement an appropriate incident response. This includes: - Criteria for incident assessment - Notification and escalation procedures - Defined incident management roles and responsibilities - Guidelines for response actions reflecting the severity and nature of the incident and the ongoing risks to the business. | D243: All elements of the regulatory proposal | E243: No

Sheet 7.2 Contingent projects
B1: =INDEX(dms_Worksheet_List,MATCH(dms_Model,dms_Model_List)) -> REGULATORY REPORTING STATEMENT
B2: =INDEX(dms_TradingNameFull_List,MATCH(dms_TradingName,dms_TradingName_List)) -> Endeavour Energy
B3: =CONCATENATE("REGULATORY PERIOD FROM ", FRCP_y1," TO ",dms_MultiYear_FinalYear_Result) -> REGULATORY PERIOD FROM 2024-25 TO 2028-29
B4: 7.2 CONTINGENT PROJECTS
B6: 7.2.1 - PROPOSED CONTINGENT PROJECTS FOR THE FORTHCOMING REGULATORY CONTROL PERIOD
B7: Proposed contingent project name | C7: Proposed contingent capital expenditure ($0's, nominal) | D7: Proposed trigger events | E7: =CONCATENATE("Proposed annual revenue requirement for ", FRCP_y1, " ($0's, nominal)") -> Proposed annual revenue requirement for 2024-25 ($0's, nominal) | F7: =CONCATENATE("5% of the annual revenue requirement for ",FRCP_y1,"") -> 5% of the annual revenue requirement for 2024-25
B8: N/A | C8: 0 | F8: =+E8*0.05 -> 0
E9: =+$E$8 -> 0 | F9: 0
E10: 0 | F10: 0
E11: 0 | F11: 0
E12: 0 | F12: 0
E13: 0 | F13: 0
E14: 0 | F14: 0
E15: 0 | F15: 0
E16: 0 | F16: 0
E17: 0 | F17: 0
E18: 0 | F18: 0
E19: 0 | F19: 0
E20: 0 | F20: 0
E21: 0 | F21: 0
E22: 0 | F22: 0
E23: 0 | F23: 0
E24: 0 | F24: 0
E25: 0 | F25: 0
E26: 0 | F26: 0
E27: 0 | F27: 0
E28: 0 | F28: 0
E29: 0 | F29: 0
E30: 0 | F30: 0
E31: 0 | F31: 0
E32: 0 | F32: 0
E33: 0 | F33: 0
E34: 0 | F34: 0
E35: 0 | F35: 0
E36: 0 | F36: 0
E37: 0 | F37: 0
E38: 0 | F38: 0
E39: 0 | F39: 0
E40: 0 | F40: 0
E41: 0 | F41: 0
E42: 0 | F42: 0
E43: 0 | F43: 0
E44: 0 | F44: 0
E45: 0 | F45: 0

Sheet 7.3 Obligations
B1: =INDEX(dms_Worksheet_List,MATCH(dms_Model,dms_Model_List)) -> REGULATORY REPORTING STATEMENT
B2: =INDEX(dms_TradingNameFull_List,MATCH(dms_TradingName,dms_TradingName_List)) -> Endeavour Energy
B3: =CONCATENATE("REGULATORY PERIOD FROM ", FRCP_y1," TO ",dms_MultiYear_FinalYear_Result) -> REGULATORY PERIOD FROM 2024-25 TO 2028-29
B4: 7.3 OBLIGATIONS, REQUIREMENTS & STANDARDS
B6: 7.3.1 - OBLIGATIONS OR REQUIREMENTS
C7: Brief description | D7: Relevance to regulatory proposal | E7: Expenditure impact
C8: Description of relevant obligations or requirements within the instrument (e.g. safety obligations, reliability targets) | D8: Identify what element of the proposal/supporting documents the obligation or requirement is relevant to e.g. replacement capex, capacity utilisation thresholds, opex | E8: Is the obligation or requirement identified in the response to section 4 'Step Changes' of the notice (yes or no)?
B9: LEGISLATION
B10: Corporations Act 2001 (Cth) | C10: Management & administrative requirements for a Corporation | D10: See Description in Column C | E10: No
B11: Gas and Electricity (Consumer Safety) Act 2017 (NSW) | C11: Safety standards and requirements for customer electrical installations | D11: See Description in Column C | E11: No
B12: Electricity Network Assets (Authorised Transactions) Act 2015 (NSW) | C12: Authority and processes facilitating and governing the transaction of NSW network assets, including the imposition of licence and reporting obligations | D12: See Description in Column C | E12: No
B13: Electricity Supply Act 1995 (NSW) | C13: General requirements relating to construction, operation, repair, maintenance and safety | D13: See Description in Column C | E13: No
B14: Environmental Planning and Assessment Act 1979 (NSW) | C14: Environmental planning, assessment and consultation | D14: See Description in Column C | E14: No
B15: Essential Services Act 1988 (NSW) | C15: General requirements relating to performance and maintenance of electricity supply | D15: See Description in Column C | E15: No
B16: National Electricity (New South Wales) Act 1997 (NSW) | C16: Compliance with National Electricity Law as a law in NSW | D16: See Description in Column C | E16: No
B17: National Energy Retail Law (NSW) | C17: Customer contracts, customer complaints and dispute resolution, RoLR, customer connection services | D17: Part of NECF. See Description in Column C | E17: No
B18: National Energy Retail Rules | C18: obligations in relation to the provision of customer connection services, re-energisation, de-energisation planned and unplanned interruptions, deemed connection contracts | D18: Part of NECF. See Description in Column C | E18: No
B19: National Energy Retail Law (Adoption) Act 2012 (NSW) | C19: Distributor liability, planned interruptions, connection and disconnection arrangements | D19: Part of NECF. See Description in Column C | E19: No
B20: National Measurement Act 1960 (Cth) | C20: Energy metering and accuracy | D20: See Description in Column C | E20: No
B21: Partnership Act 1892 (NSW) | C21: Management & administrative requirements for a partnership | D21: See Description in Column C | E21: No
B22: Taxation Administration Act 1996 (NSW) | C22: Governs the administration and enforcement of the State tax-equivalent regime | D22: See Description in Column C | E22: No
B24: ENVIRONMENT AND PLANNING
B25: Contaminated Land Management Act 1997 (NSW) | C25: Remediation of sites | D25: See Description in Column C | E25: No
B26: Dangerous Goods (Road and Rail Transport) Act 2008 (NSW) | C26: Handling of hazardous and dangerous materials | D26: See Description in Column C | E26: No
B27: Environmental Planning and Assessment Act 1979 (NSW) | C27: Environmental planning, assessment and consultation | D27: See Description in Column C | E27: No
B28: Environment Protection and Biodiversity Conservation Act 1999 (Cth) | C28: Environmental planning, assessment and consultation | D28: See Description in Column C | E28: No
B29: Environmentally Hazardous Chemicals Act 1985 (NSW) | C29: Management of environmentally hazardous chemicals and chemical waste | D29: See Description in Column C | E29: No
B30: Fisheries Management Act 1994 (NSW) | C30: Environmental planning, assessment and consultation - acquatic habitats | D30: See Description in Column C | E30: No
B31: Forestry Act 2012 (NSW) | C31: Forestry operations | D31: See Description in Column C | E31: No
B32: Heritage Act 1977 (NSW) | C32: Heritage consideration in relation to historic, scientific, cultural, social, archaeological, architectural, natural or aesthetic significance. | D32: See Description in Column C | E32: No
B33: Land and Environment Court Act 1979 (NSW) | C33: Environmental planning, assessment and consultation | D33: See Description in Column C | E33: No
B34: Land and Environment Court Rules 2007 (NSW) | C34: Environmental planning, assessment and consultation | D34: See Description in Column C | E34: No
B35: Local Government Act 1993 (NSW) | C35: Development of land for construction of zone substations or other electricity system infrastructure | D35: See Description in Column C | E35: No
B36: National Environment Protection Council Act 1994 (Cth) | C36: Implementation of miscellaneous national environmental protection measures | D36: See Description in Column C | E36: No
B37: National Environment Protection Measures (Implementation) Act 1998 (Cth) | C37: Implementation of miscellaneous national environmental protection measures | D37: See Description in Column C | E37: No
B38: National Environment Protection Council (New South Wales) Act 1995 (NSW) | C38: General requirements relating to network management | D38: See Description in Column C | E38: No
B39: National Greenhouse and Energy Reporting Act 2007 (Cth) | C39: National framework for reporting and disseminating company information about greenhouse gas emissions, energy production, energy consumption and other information | D39: See Description in Column C | E39: No
B40: National Parks and Wildlife Act 1974 (NSW) | C40: Environmental planning, assessment and consultation- national parks, historic sites, nature reserves | D40: See Description in Column C | E40: No
B41: Native Title Act 1993 (Cth) | C41: Electrical infrastructure construction dealings affected by native title | D41: See Description in Column C | E41: No
B42: Native Title (New South Wales) Act 1994 (NSW) | C42: Electrical infrastructure construction dealings affected by native title | D42: See Description in Column C | E42: No
B43: Ozone Protection Act 1989 (NSW) | C43: Management of equipment with substances that deplete stratospheric ozone | D43: See Description in Column C | E43: No
B44: Pesticides Act 1999 (NSW) | C44: Use and management of pesticides for treatment of termites | D44: See Description in Column C | E44: No
B45: Protection of the Environment Operations Act 1997 (NSW) | C45: Miscellaneous environmental obligations | D45: See Description in Column C | E45: No
B46: Protection of the Environment Administration Act 1991 (NSW) | C46: Miscellaneous environmental obligations | D46: See Description in Column C | E46: No
B47: Renewable Energy (Electricity) Act 2000 (Cth) | C47: Establishment and administration of the Renewable Energy Target scheme | D47: See Description in Column C | E47: No
B48: Rural Fires Act, 1997 (NSW) | C48: Prevention and mitigation of bushfires | D48: See Description in Column C | E48: No
B49: Soil Conservation Act 1938 (NSW) | C49: Environmental planning, assessment and consultation - construction and easement management | D49: See Description in Column C | E49: No
B50: Roads Act 1993 (NSW) | C50: Carrying out of various activities on public roads | D50: See Description in Column C | E50: No
B51: Waste Avoidance and Resource Recovery Act 2001 (NSW) | C51: Miscellaneous environmental obligations | D51: See Description in Column C | E51: No
B52: Water Management Act 2000 (NSW) | C52: Environmental planning, assessment and consultation - protection of water sources/quality | D52: See Description in Column C | E52: No
B53: Wilderness Act 1987 (NSW) | C53: Environmental planning, assessment and consultation | D53: See Description in Column C | E53: No
B55: GENERAL
B56: A New Tax System (Goods and Services Tax) Act 1999 (Cth) | C56: Payment and pass through of goods and services tax | D56: See Description in Column C | E56: No
B57: Competition and Consumer Act 2010 (Cth) | C57: General requirements relating to consumer protection | D57: See Description in Column C | E57: No
B58: Crimes Act 1900 (NSW) | C58: Obligations and duties covering a range of offences that are classified as criminal offences, including personal injury, property damage and theft. | D58: see Description in Column C | E58: No
B59: Electricity Industry Act 2000 (Vic) | C59: Metering services obligations in Vic | D59: See Description in Column C | E59: No
B60: Electronic Transaction Act 1999 (Cth) | C60: Facilitates the use of electronic transactions and enables business and the community to use electronic communications in their dealings with government | D60: See Description in Column C | E60: No
B61: Electronic Transaction Act 2000 (NSW) | C61: Facilitates the use of electronic transactions and enables business and the community to use electronic communications in their dealings with government | D61: See Description in Column C | E61: No
B62: Energy and Utilities Administration Act 1987 (NSW) | C62: Promotion of customer awareness of safe, effective and efficient use of energy | D62: See Description in Column C | E62: No
B63: Fair Trading Act 1987 (NSW) | C63: Provision of safely designed and constructed infrastructure, other consumer protection requirements | D63: See Description in Column C | E63: No
B64: Fuel Tax Act 2006 (Cth) | C64: Payment of levied fuel taxes | D64: See Description in Column C | E64: No
B65: Independent Pricing and Regulatory Tribunal Act 1992 (NSW) | C65: Compliance with 2004 IPART Determination, NSW economic regulation framework, WAPC | D65: See Description in Column C | E65: No
B66: Insurance Act 1973 (Cth) | C66: General requirements and obligations relating to insurance contracts | D66: See Description in Column C | E66: No
B67: Insurance Contracts Act 1984 (Cth) | C67: General requirements relating to insurance contracts and the fair balance between contracting parties | D67: See Description in Column C | E67: No
B68: Natural Resources Commission Act 2003 (NSW) | C68: General environmental requirements | D68: See Description in Column C | E68: No
B69: Payroll Tax Act 2007 (NSW) | C69: Payment of levied payroll taxes | D69: See Description in Column C | E69: No
B70: Personal Property Securities Act 2009 (Cth) | C70: Arrangements, rights and enforcement of security agreements, security interests, attachment and perfection | D70: See Description in Column C | E70: No
B71: Government Sector Audit Act 1983 (NSW) | C71: Financial, compliance and performance audits | D71: See Description in Column C | E71: No
B72: Radiocommunications Act 1992 (Cth) | C72: Licensing of radiocommunication devices | D72: See Description in Column C | E72: No
B73: State Records Act 1998 (NSW) | C73: Records management | D73: See Description in Column C | E73: No
B74: Utilities Act 2000 (ACT) | C74: Metering services obligations in ACT | D74: See Description in Column C | E74: No
B75: Workers Compensation Act 1987 (NSW) | C75: Workplace injury management, insurance | D75: See Description in Column C | E75: No
B77: PROPERTY
B78: Aboriginal Land Rights Act 1983 (NSW) | C78: Aboriginal land rights | D78: See Description in Column C | E78: No
B79: Access to Neighbouring Land ACT 2000 (NSW) | C79: Rights and obligations relating to access to land for network activities | D79: See Description in Column C | E79: No
B80: Community Land Development Act 2021 (NSW) | C80: Development of land for electrical infrastructure, service centres, etc | D80: See Description in Column C | E80: No
B81: Community Land Management Act 2021 (NSW) | C81: Management of community land for electrical infrastructure, service centres, etc | D81: See Description in Column C | E81: No
B82: Contaminated Land Management Act 1997 (NSW) | C82: Remediation of sites | D82: See Description in Column C | E82: No
B83: Electronic Conveyancing (Adoption of National Law) Act 2012 (NSW) | C83: Application of electronic lodgement and processessing affecting property, sales, transactions, mortgages, leases etc | D83: See Description in Column C | E83: No
B84: Conveyancing Act 1919 (NSW) | C84: Application of general rules affecting property, sales, transactions, mortgages, leases etc | D84: See Description in Column C | E84: No
B85: Crown Land Management Act 2016 (NSW) | C85: Creation of line easement/access over crown lands | D85: See Description in Column C | E85: No
B86: Dividing Fences Act 1991 (NSW) | C86: Obligations and responsibilities for dividing fences between adjoining lands | D86: See Description in Column C | E86: No
B87: Duties Act 1997 (NSW) | C87: Payment of duties on land transactions | D87: See Description in Column C | E87: No
B88: Electricity Supply Act 1995 (NSW) | C88: General requirements relating to construction, operation, repair, maintenance and safety | D88: See Description in Column C | E88: No
B89: Encroachment of Buildings Act 1922 (NSW) | C89: Governs the preservation of land and titles from encroachment including remedies | D89: See Description in Column C | E89: No
B90: Home Building Act 1989 (NSW) | C90: Regulates 'residential building work' which includes electrical wiring work | D90: See Description in Column C | E90: No
B91: Land Tax Act 1956 (NSW) | C91: Payment of land taxes | D91: See Description in Column C | E91: No
B92: Land Tax Management Act 1956 (NSW) | C92: Payment of land taxes | D92: See Description in Column C | E92: No
B93: Protection of the Environment Operations Act 1997 (NSW) | C93: Miscellaneous environmental obligations | D93: See Description in Column C | E93: No
B94: Real Property Act 1900 (NSW) | C94: Application of general requirements relating to land transactions | D94: See Description in Column C | E94: No
B95: Retail Leases Act 1994 (NSW) | C95: Application of general requirements relating to property leasing arrangements | D95: See Description in Column C | E95: No
B96: Strata Schemes Management Act 2015 (NSW) | C96: Management of strata schemes created under the Strata Schemes (Freehold Development) Act 1973 or the Strata Schemes (Leasehold Development) Act 1986 | D96: See Description in Column C | E96: No
B97: Strata Schemes Development Act 2015 (NSW) | C97: Management of strata schemes created under the Strata Schemes (Freehold Development) Act 1973 or the Strata Schemes (Leasehold Development) Act 1986 | D97: See Description in Column C | E97: No
B100: EMPLOYMENT AND WORK HEALTH AND SAFETY
B101: Age Discrimination Act 2004 (Cth) | C101: Workplace and employment obligations, and related process | D101: See Description in Column C | E101: No
B102: Annual Holidays Act 1944 (NSW) | C102: Workplace and employment obligations, and related process | D102: See Description in Column C | E102: No
B103: Anti-Discrimination Act 1977 (NSW) | C103: Workplace and employment obligations, and related process | D103: See Description in Column C | E103: No
B104: Apprenticeship and Traineeship Act 2001 (NSW) | C104: Workplace and employment obligations, and related process | D104: See Description in Column C | E104: No
B105: Australian Human Rights Commission Act 1986 (Cth) | C105: Workplace and employment obligations, and related process | D105: See Description in Column C | E105: No
B106: Australian Jobs Act 2013 (Cth) | C106: Workplace and employment obligations, and related process | D106: See Description in Column C | E106: No
B107: Building and Construction Industry Security of Payments Act 1999 (NSW) | C107: Progress payments for construction work and related process | D107: See Description in Column C | E107: No
B108: Building and Construction Industry Long Service Payments Act 1996 (NSW) | C108: Levies on building work and related processes | D108: See Description in Column C | E108: No
B109: Criminal Records Act 1991 (NSW) | C109: Management of records relating to past criminal offences | D109: See Description in Column C | E109: No
B110: Disability Discrimination Act 1992 (Cth) | C110: Workplace and employment obligations, and related process | D110: See Description in Column C | E110: No
B111: Employees Liability Act 1991 (NSW) | C111: Workplace and employment obligations, and related process | D111: See Description in Column C | E111: No
B112: Employment Protection Act 1982 (NSW) | C112: Workplace and employment obligations, and related process | D112: See Description in Column C | E112: No
B113: Fair Work Act 2009 (Cth) | C113: Workplace and employment obligations, and related process | D113: See Description in Column C | E113: No
B114: Fringe Benefits Tax Act 1986 (Cth) | C114: Workplace and employment obligations, and related process | D114: See Description in Column C | E114: No
B115: Fringe Benefits Tax Assessment Act 1986 (Cth) | C115: Workplace and employment obligations, and related process | D115: See Description in Column C | E115: No
B116: Heavy Vehicle National Law (NSW) No.42a | C116: Implementation of workplace safety systems, plans, strategies, practices | D116: See Description in Column C | E116: No
B117: Income Tax Act 1986 (Cth) | C117: Workplace and employment obligations, and related process | D117: See Description in Column C | E117: No
B118: Income Tax Assessment Act 1936 (Cth) | C118: Workplace and employment obligations, and related process | D118: See Description in Column C | E118: No
B119: Income Tax Assessment Act 1997 (Cth) | C119: Workplace and employment obligations, and related process | D119: See Description in Column C | E119: No
B120: Independent Contractors Act 2006 (Cth) | C120: Workplace and employment obligations, and related process | D120: See Description in Column C | E120: No
B121: Industrial Relations (Child Employment) Act 2006 (NSW) | C121: Workplace and employment obligations, and related process | D121: See Description in Column C | E121: No
B122: Industrial Relations Act 1996 (NSW) | C122: Workplace and employment obligations, and related process | D122: See Description in Column C | E122: No
B123: Jury Act 1977 (NSW) | C123: Workplace and employment obligations, and related process | D123: See Description in Column C | E123: No
B124: Long Service Leave Act 1955 (NSW) | C124: Workplace and employment obligations, and related process | D124: See Description in Column C | E124: No
B125: Marine Safety Act 1998 (NSW) | C125: Marine and waterways safety and related process | D125: See Description in Column C | E125: No
B126: Coal Mine Subsidence Compensation Act 2017 (NSW) | C126: Determination of and payment of damages arising from mine subsidence | D126: See Description in Column C | E126: No
B127: Mutual Recognition (Automatic Licensed Occupations Recognition) Act 2014 (NSW) | C127: Workplace and employment obligations, and related process | D127: See Description in Column C | E127: No
B128: National Vocational Education and Training Regulator Act 2011 (Cth) | C128: Workplace and employment obligations, and related process | D128: See Description in Column C | E128: No
B129: Paid Parental Leave Act 2010 (Cth) | C129: Workplace and employment obligations, and related process | D129: See Description in Column C | E129: No
B130: Payroll Tax Act 2007 (NSW) | C130: Payment of levied payroll taxes | D130: See Description in Column C | E130: No
B131: Privacy Act 1988 (Cth) | C131: Workplace and employment obligations, and related process | D131: See Description in Column C | E131: No
B132: Racial Discrimination Act 1975 (Cth) | C132: Workplace and employment obligations, and related process | D132: See Description in Column C | E132: No
B133: Radiation Control Act 1990 (NSW) | C133: Implementation of workplace safety systems, plans, strategies, practices | D133: See Description in Column C | E133: No
B134: Rail Safety National Law (NSW) (2012 No 82a) | C134: Implementation of workplace safety systems, plans, strategies, practices | D134: See Description in Column C | E134: No
B135: NSW Rail Safety (Adoption of National Law) Act 2012 (NSW) | C135: Implementation of workplace safety systems, plans, strategies, practices | D135: See Description in Column C | E135: No
B136: Road Transport Act 2013 (NSW) | C136: Workplace and employment obligations, and related process | D136: See Description in Column C | E136: No
B137: Security Industry Act 1997 (NSW) | C137: Workplace and employment obligations, and related process | D137: See Description in Column C | E137: No
B138: Sex Discrimination Act 1984 (Cth) | C138: Workplace and employment obligations, and related process | D138: See Description in Column C | E138: No
B139: Smoke-free Environment Act 2000 (NSW) | C139: Implementation of workplace safety systems, plans, strategies, practices | D139: See Description in Column C | E139: No
B140: State Emergency and Rescue Management Act 1989 (NSW) | C140: Implementation of workplace safety systems, plans, strategies, practices | D140: See Description in Column C | E140: No
B141: Surveillance Devices Act 2007 (NSW) | C141: Workplace and employment obligations, and related process | D141: See Description in Column C | E141: No
B142: Superannuation Contributions Tax (Assessment and Collection) Act 1997 (Cth) | C142: Workplace and employment obligations, and related process | D142: See Description in Column C | E142: No
B143: Superannuation Contributions Tax Imposition Act 1997 (Cth) | C143: Workplace and employment obligations, and related process | D143: See Description in Column C | E143: No
B144: Superannuation Guarantee (Administration) Act 1992 (Cth) | C144: Workplace and employment obligations, and related process | D144: See Description in Column C | E144: No
B145: Superannuation Guarantee Charge Act 1992 (Cth) | C145: Workplace and employment obligations, and related process | D145: See Description in Column C | E145: No
B146: Superannuation Industry (Supervision) Act 1993 (Cth) | C146: Workplace and employment obligations, and related process | D146: See Description in Column C | E146: No
B147: Taxation Administration Act 1953 (Cth) | C147: Workplace and employment obligations, and related process | D147: See Description in Column C | E147: No
B148: Termination Payments Tax (Assessment and Collections) Act 1997 (Cth) | C148: Workplace and employment obligations, and related process | D148: See Description in Column C | E148: No
B149: Valuation of Land Act 1916 (NSW) | C149: Workplace and employment obligations, and related process | D149: See Description in Column C | E149: No
B150: Workplace Gender Equality Act 2012 (Cth) | C150: Workplace and employment obligations, and related process | D150: See Description in Column C | E150: No
B151: Work Health and Safety Act 2011 (NSW) | C151: Workplace and employment obligations, and related process | D151: See Description in Column C | E151: No
B152: Workers Compensation Act 1987 (NSW) | C152: Workplace injury management, insurance | D152: See Description in Column C | E152: No
B153: Workers Compensation (Dust Diseases) Act 1942 (NSW) | C153: Workplace injury management, insurance | D153: See Description in Column C | E153: No
B154: Workplace Injury Management and Workers Compensation Act 1998 (NSW) | C154: Workplace injury management, insurance | D154: See Description in Column C | E154: No
B155: Workplace Surveillance Act 2005 (NSW) | C155: Workplace and employment obligations, and related process | D155: See Description in Column C | E155: No
B156: Health Records and Information Privacy Act 2002 (NSW) | C156: Workplace and employment obligations, and related process | D156: See Description in Column C | E156: No
B159: PRIVACY
B160: Evidence Act 1995 (NSW) | C160: Obligations relating to the potential documentation of electronic communications that may be required by a Court | D160: See Description in Column C | E160: No
B161: Privacy Act 1988 (Cth) | C161: Application of privacy laws and related process; Australian National Privacy Principles | D161: See Description in Column C | E161: No
B162: Health Records and Information Privacy Act 2002 (NSW) | C162: Application of privacy laws and related process | D162: See Description in Column C | E162: No
B163: Telecommunications (Interception and Access) Act 1979 (Cth) | C163: Use, privacy and security of telecommunications activities without consent or authority | D163: See Description in Column C | E163: No
B164: Telecommunications Act 1997 (Cth) | C164: Use, privacy and security of telecommunications activities | D164: See Description in Column C | E164: No
B165: Trade Support Loans Act 2014 (Cth) | C165: Workplace and employment obligations, and related process | D165: See Description in Column C | E165: No
B166: Workplace Surveillance Act 2005 (NSW) | C166: Application of privacy laws and related process | D166: See Description in Column C | E166: No
B167: Tax File Number Guidelines (Cth) in relation to the use and disclosure of Tax file numbers (TFN) - Privacy Act 1988 | C167: Application of privacy laws and related process | D167: See Description in Column C | E167: No
B168: Taxation Administration Act 1953 (Cth) in relation to the use and disclosure of TFNs | C168: Application of privacy laws and related process | D168: See Description in Column C | E168: No
B169: Income Tax Assessment Act 1936 (Cth) in relation to the use and disclosure of TFNs | C169: Application of privacy laws and related process | D169: See Description in Column C | E169: No
B221: LICENCES
B222: Design, Reliability and Performance Licence Conditions for NSW DNSPs, (Revised) December 2007 | C222: Network reliability and security of supply planning, compliance reporting | D222: See Description in Column C | E222: No
B223: NSW Code of Practice for Authorised Network Operators | C223: Ensure that assessments under Part 5 are conducted appropriately and in a manner that supports proper environmental assessment including appropriate community consultation | D223: See Description in Column C | E223: No
B224: Electricity distribution licence conditions via the Electricity Supply Act 1995 (2017) | C224: Licence compliance annual reporting process | D224: See Description in Column C | E224: No
B226: RULES
B227: National Electricity Law and Rules | C227: Distribution network economic regulation, planning and consultation | D227: See Description in Column C | E227: No
B228: The NSW Service and Installation Rules | C228: Customer electricity equipment and installation - safety and compliance | D228: See Description in Column C | E228: No
B229: All relevant state and national rules as per NENS01 | C229: Asset management, operations and design and construction standards | D229: See Description in Column C | E229: No
B231: ORDERS
B232: S59A enforceable undertakings with the AER | C232: Enforceable undertaking in place over the 20014-19 regulatory control period to establish the revenue for the purposes of the annual pricing proposals as a result of the appeals processes | D232: See Description in Column C | E232: No
B235: CODES
B236: All relevant state and national codes as per NENS01 | C236: Asset management, operations and design and construction standards | D236: See Description in Column C | E236: No
B237: Building Code of Australia | C237: Zone substation design and construction | D237: See Description in Column C | E237: No
B251: GUIDELINES
B252: All relevant state and national guidelines as per NENS01 | C252: Asset management, operations and design and construction standards | D252: See Description in Column C | E252: No
B253: Joint use of poles, HB87-1997 | C253: Line design and construction, inspection and maintenance programs | D253: See Description in Column C | E253: No
B254: Risk Management Guidelines, HB436:2004 | C254: Risk management | D254: See Description in Column C | E254: No
B255: National Health and Medical Research Council Guidelines | C255: Environmental planning, assessment and consultation | D255: See Description in Column C | E255: No
B256: Connection charge guidelines for electricity retail customers under chapter 5A of the National Electricity Rules | C256: Sets out the circumstances where a retail customer or real estate developer to pay a connection charge and the pioneer scheme. | D256: See Description in Column C | E256: No
B257: AER compliance procedures and guidelines National Energy Retail Law, Retail Rules and Retail Regulations | C257: Sets out the manner in which regulated entities must submit information to the AER relating to compliance. | D257: See Description in Column C | E257: No
B290: DEFAULT AGREEMENTS
B291: Endeavour Energy Customer Connection Contracts and Connection Offers | C291: Preparation and availability Customer Connection Contracts and Offers | D291: See Description in Column C | E291: No
B294: OTHER
B295: All relevant AS/NZS Australian Standards as per NENS01 | C295: Asset management, and design and construction standards | D295: See Description in Column C | E295: No
B296: All relevant IEC standards | C296: Asset management, and design and construction standards | D296: See Description in Column C | E296: No
B297: All relevant IEEE standards | C297: Asset management, and design and construction standards | D297: See Description in Column C | E297: No
B298: All relevant HB series of standards | C298: Coordination of power and telecommunications | D298: See Description in Column C | E298: No
B299: All other relevant NOHSC guidelines and documents | C299: Safety standards, design and constructions standards | D299: See Description in Column C | E299: No
B300: Final Decision Endeavour Energy distribution determination 2015−16 to 2018−19, April 2015 | C300: Compliance with economic regulation framework, WAPC | D300: See Description in Column C | E300: No
B301: State Environmental Planning Policy 14 - Coastal Wetlands | C301: Environmental planning, assessment and consultation | D301: See Description in Column C | E301: No
B302: State Environmental Planning Policy 19 - Bushland in Urban Areas | C302: Environmental planning, assessment and consultation | D302: See Description in Column C | E302: No
B303: State Environmental Planning Policy 26 - Littoral Rainforests | C303: Environmental planning, assessment and consultation | D303: See Description in Column C | E303: No
B304: State Environmental Planning Policy 44 - Koala Habitat | C304: Environmental planning, assessment and consultation | D304: See Description in Column C | E304: No

Sheet 7.4 Shared Assets
B1: =INDEX(dms_Worksheet_List,MATCH(dms_Model,dms_Model_List)) -> REGULATORY REPORTING STATEMENT
B2: =INDEX(dms_TradingNameFull_List,MATCH(dms_TradingName,dms_TradingName_List)) -> Endeavour Energy
B3: =CONCATENATE("REGULATORY PERIOD FROM ", FRCP_y1," TO ",dms_MultiYear_FinalYear_Result) -> REGULATORY PERIOD FROM 2024-25 TO 2028-29
B4: 7.4 SHARED ASSETS
B6: 7.4.1 - TOTAL UNREGULATED REVENUE EARNED WITH SHARED ASSETS
B7: Name of shared asset unregulated service | C7: Description of shared assets used to provide the service | D7: =CONCATENATE("Shared asset unregulated revenue ($0's, real ", dms_DollarReal,")") -> Shared asset unregulated revenue ($0's, real June 2024)
D8: =CRCP_y4 -> 2022-23 | E8: =CRCP_y5 -> 2023-24 | F8: =FRCP_y1 -> 2024-25 | G8: =FRCP_y2 -> 2025-26 | H8: =FRCP_y3 -> 2026-27 | I8: =FRCP_y4 -> 2027-28 | J8: =FRCP_y5 -> 2028-29 | K8: =CONCATENATE("Total ",FRCP_y1," to ", FRCP_y5) -> Total 2024-25 to 2028-29
B9: Pole, Tower and Duct Rental | C9: Endeavour Energy charges rental income for use of its assets - Poles, Towers and Ducts | D9: 8415 | E9: 8625.375 | F9: 8625.375 | G9: 8732.526624 | H9: 8732.526624 | I9: 8732.526624 | J9: 8732.526624 | K9: =SUM(F9:J9) -> 43555.4815
B10: Property Rental | C10: Endeavour Energy charges rental income for use of its assets - Property | D10: 1306 | E10: 1338.65 | F10: 1355.27983 | G10: 1355.27983 | H10: 1355.27983 | I10: 1355.27983 | J10: 1355.27983 | K10: 6776.399151
B11: Electic Vehicle Chargin Station - Rental for the land | C11: Endeavour Energy charges rental income for use of its assets - Easement on which Electice Vehicle Chargin Station will be set up | D11: 0 | E11: 315.9167875 | F11: 422.9550415 | G11: 520.8485091 | H11: 613.7150764 | I11: 701.7417229 | J11: 785.1092973 | K11: 3044.369647
K12: 0
K13: 0
K14: 0
K15: 0
K16: 0
K17: 0
K18: 0
K19: 0
K20: 0
K21: 0
K22: 0
K23: 0
B25: 7.4.2 - SHARED ASSET UNREGULATED SERVICES - APPORTIONMENT METHODOLOGY
B26: Name of shared asset unregulated service for which revenues were apportioned | C26: Apportionment methodology

Sheet 7.7 TSS-LRMC
B1: =INDEX(dms_Worksheet_List,MATCH(dms_Model,dms_Model_List)) -> REGULATORY REPORTING STATEMENT
B2: =INDEX(dms_TradingNameFull_List,MATCH(dms_TradingName,dms_TradingName_List)) -> Endeavour Energy
B3: =CONCATENATE("REGULATORY PERIOD FROM ", FRCP_y1," TO ",dms_MultiYear_FinalYear_Result) -> REGULATORY PERIOD FROM 2024-25 TO 2028-29
B4: 7.7 - TARIFF STRUCTURE STATEMENT - INPUTS TO LRMC CALCULATION
D6: ="Is "&dms_TradingName&" using the 'Average Incremental Cost' approach?" -> Is Endeavour Energy using the 'Average Incremental Cost' approach?
F7: YES
B9: 7.7.1 - INPUTS TO LRMC CALCULATION - STANDARD CONTROL SERVICES - CAPEX
B10: 7.7.1.1 - SERIES A
C11: =CONCATENATE("Forecast ($0's, real ", dms_DollarReal) -> Forecast ($0's, real June 2024
C12: =CRCP_y4 -> 2022-23 | D12: =IF(dms_RPT="financial",(VALUE(LEFT(C12,4)+1)&"-"&MID(C12,3,2)+2),VALUE(LEFT(C12,4)+1)) -> 2023-24 | E12: 2024-25 | F12: 2025-26 | G12: 2026-27 | H12: 2027-28 | I12: 2028-29 | J12: 2029-30 | K12: 2030-31 | L12: 2031-32 | M12: 2032-33 | N12: 2033-34 | O12: 2034-35 | P12: 2035-36 | Q12: 2036-37 | R12: 2037-38 | S12: 2038-39 | T12: 2039-40 | U12: 2040-41 | V12: 2041-42
B13: Replacement expenditure | C13: 57973762.33 | D13: 56167205.38 | E13: 92247082.23 | F13: 71220313.37 | G13: 79495494.11 | H13: 81898915.11 | I13: 76193911.54 | J13: 80211143.27 | K13: 80211143.27 | L13: 80211143.27 | M13: 0 | N13: 0 | O13: 0 | P13: 0 | Q13: 0 | R13: 0 | S13: 0 | T13: 0 | U13: 0 | V13: 0
B14: Connections | C14: 19364344.34 | D14: 20578036.91 | E14: 25990019.14 | F14: 24504811.67 | G14: 22958358.34 | H14: 22462817.58 | I14: 23083994.5 | J14: 23800000.25 | K14: 23800000.25 | L14: 23800000.25 | M14: 0 | N14: 0 | O14: 0 | P14: 0 | Q14: 0 | R14: 0 | S14: 0 | T14: 0 | U14: 0 | V14: 0
B15: Augmentation Expenditure | C15: 121884926.8 | D15: 109476585.8 | E15: 103543052.6 | F15: 118784991.3 | G15: 78932203.58 | H15: 63837600.84 | I15: 47522267.66 | J15: 82524023.2 | K15: 82524023.2 | L15: 82524023.2 | M15: 0 | N15: 0 | O15: 0 | P15: 0 | Q15: 0 | R15: 0 | S15: 0 | T15: 0 | U15: 0 | V15: 0
B16: Non-network | C16: 0 | D16: 0 | E16: 0 | F16: 0 | G16: 0 | H16: 0 | I16: 0 | J16: 0 | K16: 0 | L16: 0 | M16: 0 | N16: 0 | O16: 0 | P16: 0 | Q16: 0 | R16: 0 | S16: 0 | T16: 0 | U16: 0 | V16: 0
B17: Export services | C17: 0 | D17: 0 | E17: 0 | F17: 0 | G17: 0 | H17: 0 | I17: 0 | J17: 0 | K17: 0 | L17: 0 | M17: 0 | N17: 0 | O17: 0 | P17: 0 | Q17: 0 | R17: 0 | S17: 0 | T17: 0 | U17: 0 | V17: 0
B18: Capitalised network overheads | C18: 49577268.07 | D18: 47615597.6 | E18: 47693841.38 | F18: 48387221.42 | G18: 45837176.59 | H18: 44663313.34 | I18: 42586435.46 | J18: 45968120.5 | K18: 45968120.5 | L18: 45968120.5 | M18: 0 | N18: 0 | O18: 0 | P18: 0 | Q18: 0 | R18: 0 | S18: 0 | T18: 0 | U18: 0 | V18: 0
B19: Capitalised corporate overheads | C19: 25956833.9 | D19: 24929775.4 | E19: 24970740.96 | F19: 25333769.25 | G19: 23998659.58 | H19: 23384067.96 | I19: 22296691.1 | J19: 24067216.99 | K19: 24067216.99 | L19: 24067216.99 | M19: 0 | N19: 0 | O19: 0 | P19: 0 | Q19: 0 | R19: 0 | S19: 0 | T19: 0 | U19: 0 | V19: 0
B20: Total capex | C20: =SUM(C13:C19) -> 274757135.5 | D20: =SUM(D13:D19) -> 258767201.1 | E20: 294444736.3 | F20: 288231107 | G20: 251221892.2 | H20: 236246714.8 | I20: 211683300.3 | J20: 256570504.2 | K20: 256570504.2 | L20: 256570504.2 | M20: 0 | N20: 0 | O20: 0 | P20: 0 | Q20: 0 | R20: 0 | S20: 0 | T20: 0 | U20: 0 | V20: 0
B22: 7.7.1.2 - SERIES B
C23: =CONCATENATE("Forecast ($0's, real ", dms_DollarReal) -> Forecast ($0's, real June 2024
C24: =CRCP_y4 -> 2022-23 | D24: =IF(dms_RPT="financial",(VALUE(LEFT(C24,4)+1)&"-"&MID(C24,3,2)+2),VALUE(LEFT(C24,4)+1)) -> 2023-24 | E24: =IF(dms_RPT="financial",(VALUE(LEFT(D24,4)+1)&"-"&MID(D24,3,2)+2),VALUE(LEFT(D24,4)+1)) -> 2024-25 | F24: =IF(dms_RPT="financial",(VALUE(LEFT(E24,4)+1)&"-"&MID(E24,3,2)+2),VALUE(LEFT(E24,4)+1)) -> 2025-26 | G24: =IF(dms_RPT="financial",(VALUE(LEFT(F24,4)+1)&"-"&MID(F24,3,2)+2),VALUE(LEFT(F24,4)+1)) -> 2026-27 | H24: =IF(dms_RPT="financial",(VALUE(LEFT(G24,4)+1)&"-"&MID(G24,3,2)+2),VALUE(LEFT(G24,4)+1)) -> 2027-28 | I24: =IF(dms_RPT="financial",(VALUE(LEFT(H24,4)+1)&"-"&MID(H24,3,2)+2),VALUE(LEFT(H24,4)+1)) -> 2028-29 | J24: =IF(dms_RPT="financial",(VALUE(LEFT(I24,4)+1)&"-"&MID(I24,3,2)+2),VALUE(LEFT(I24,4)+1)) -> 2029-30 | K24: =IF(dms_RPT="financial",(VALUE(LEFT(J24,4)+1)&"-"&MID(J24,3,2)+2),VALUE(LEFT(J24,4)+1)) -> 2030-31 | L24: =IF(dms_RPT="financial",(VALUE(LEFT(K24,4)+1)&"-"&MID(K24,3,2)+2),VALUE(LEFT(K24,4)+1)) -> 2031-32 | M24: =IF(dms_RPT="financial",(VALUE(LEFT(L24,4)+1)&"-"&MID(L24,3,2)+2),VALUE(LEFT(L24,4)+1)) -> 2032-33 | N24: =IF(dms_RPT="financial",(VALUE(LEFT(M24,4)+1)&"-"&MID(M24,3,2)+2),VALUE(LEFT(M24,4)+1)) -> 2033-34 | O24: =IF(dms_RPT="financial",(VALUE(LEFT(N24,4)+1)&"-"&MID(N24,3,2)+2),VALUE(LEFT(N24,4)+1)) -> 2034-35 | P24: =IF(dms_RPT="financial",(VALUE(LEFT(O24,4)+1)&"-"&MID(O24,3,2)+2),VALUE(LEFT(O24,4)+1)) -> 2035-36 | Q24: =IF(dms_RPT="financial",(VALUE(LEFT(P24,4)+1)&"-"&MID(P24,3,2)+2),VALUE(LEFT(P24,4)+1)) -> 2036-37 | R24: =IF(dms_RPT="financial",(VALUE(LEFT(Q24,4)+1)&"-"&MID(Q24,3,2)+2),VALUE(LEFT(Q24,4)+1)) -> 2037-38 | S24: =IF(dms_RPT="financial",(VALUE(LEFT(R24,4)+1)&"-"&MID(R24,3,2)+2),VALUE(LEFT(R24,4)+1)) -> 2038-39 | T24: =IF(dms_RPT="financial",(VALUE(LEFT(S24,4)+1)&"-"&MID(S24,3,2)+2),VALUE(LEFT(S24,4)+1)) -> 2039-40 | U24: =IF(dms_RPT="financial",(VALUE(LEFT(T24,4)+1)&"-"&MID(T24,3,2)+2),VALUE(LEFT(T24,4)+1)) -> 2040-41 | V24: =IF(dms_RPT="financial",(VALUE(LEFT(U24,4)+1)&"-"&MID(U24,3,2)+2),VALUE(LEFT(U24,4)+1)) -> 2041-42
B25: Replacement expenditure | C25: 0 | D25: 0 | E25: 0 | F25: 0 | G25: 0 | H25: 0 | I25: 0 | J25: 0 | K25: 0 | L25: 0 | M25: 0 | N25: 0 | O25: 0 | P25: 0 | Q25: 0 | R25: 0 | S25: 0 | T25: 0 | U25: 0 | V25: 0
B26: Connections | C26: 0 | D26: 0 | E26: 0 | F26: 0 | G26: 0 | H26: 0 | I26: 0 | J26: 0 | K26: 0 | L26: 0 | M26: 0 | N26: 0 | O26: 0 | P26: 0 | Q26: 0 | R26: 0 | S26: 0 | T26: 0 | U26: 0 | V26: 0
B27: Augmentation Expenditure | C27: 0 | D27: 0 | E27: 0 | F27: 0 | G27: 0 | H27: 0 | I27: 0 | J27: 0 | K27: 0 | L27: 0 | M27: 0 | N27: 0 | O27: 0 | P27: 0 | Q27: 0 | R27: 0 | S27: 0 | T27: 0 | U27: 0 | V27: 0
B28: Non-network | C28: 0 | D28: 0 | E28: 0 | F28: 0 | G28: 0 | H28: 0 | I28: 0 | J28: 0 | K28: 0 | L28: 0 | M28: 0 | N28: 0 | O28: 0 | P28: 0 | Q28: 0 | R28: 0 | S28: 0 | T28: 0 | U28: 0 | V28: 0
B29: Export services | C29: 0 | D29: 0 | E29: 9000000 | F29: 9000000 | G29: 9000000 | H29: 9000000 | I29: 9000000 | J29: 9000000 | K29: 9000000 | L29: 9000000 | M29: 9000000 | N29: 9000000 | O29: 0 | P29: 0 | Q29: 0 | R29: 0 | S29: 0 | T29: 0 | U29: 0 | V29: 0
B30: Capitalised network overheads | C30: 0 | D30: 0 | E30: 0 | F30: 0 | G30: 0 | H30: 0 | I30: 0 | J30: 0 | K30: 0 | L30: 0 | M30: 0 | N30: 0 | O30: 0 | P30: 0 | Q30: 0 | R30: 0 | S30: 0 | T30: 0 | U30: 0 | V30: 0
B31: Capitalised corporate overheads | C31: 0 | D31: 0 | E31: 0 | F31: 0 | G31: 0 | H31: 0 | I31: 0 | J31: 0 | K31: 0 | L31: 0 | M31: 0 | N31: 0 | O31: 0 | P31: 0 | Q31: 0 | R31: 0 | S31: 0 | T31: 0 | U31: 0 | V31: 0
B32: Total capex | C32: =SUM(C25:C31) -> 0 | D32: =SUM(D25:D31) -> 0 | E32: 9000000 | F32: 9000000 | G32: 9000000 | H32: 9000000 | I32: 9000000 | J32: 9000000 | K32: 9000000 | L32: 9000000 | M32: 9000000 | N32: 9000000 | O32: 0 | P32: 0 | Q32: 0 | R32: 0 | S32: 0 | T32: 0 | U32: 0 | V32: 0
B34: 7.7.1.3 - SERIES C
C35: =CONCATENATE("Forecast ($0's, real ", dms_DollarReal) -> Forecast ($0's, real June 2024
